Service Area,Service Division,Expense Type,Expense Code,Detailed Expense Type,Payment Date,Transaction Number,Amount Exc VAT,Supplier Name
Adult and Health Services,Public Health CC0450,Employees,080025,Agency Staff,01/11/2021,3930136-485062,738.38,VISION FOR EDUCATION LTD.
"Regeneration, Economy and Growth",Culture Sport and Tourism,Premises,145023,Cleaning and Domestic Supplies,01/11/2021,3929931-06/143630,539.37,GREENHAM TRADING LTD.
"Regeneration, Economy and Growth",Transport and Contracted Services,Supplies and Services,352001,Conference Expenses,01/11/2021,3929842-8144,"2,365.00",BIKERIGHT LTD.
Neighbourhoods and Climate Change,Environmental Services,Construction work A908,908105,Construction work,01/11/2021,3929812-DEMOLITION-PHASE1,"49,470.72",A BUCKLER (HAULAGE) LTD.
"Regeneration, Economy and Growth",Development and Housing,Construction work A908,908105,Construction work,01/11/2021,3930007-DEMOLITIONOCT21,"99,540.52",MGL DEMOLITION LTD.
Neighbourhoods and Climate Change,Technical Services CM0300,Construction work A908,908105,Construction work,01/11/2021,3930113-90017948,"1,552.38",SWARCO TRAFFIC LTD.
Children and Young Peoples Services,Head of Education and Skills,Transport,230006,Contract Hire,01/11/2021,3929825-00216,630.00,ANNE MARIE HENDERSON T/A HENDERSON HIRE (TAXIS).
Children and Young Peoples Services,Head of Education and Skills,Transport,230006,Contract Hire,01/11/2021,3929825-00224,"1,178.64",ANNE MARIE HENDERSON T/A HENDERSON HIRE (TAXIS).
Children and Young Peoples Services,Head of Education and Skills,Transport,230016,Contract Hire,01/11/2021,3929825-00217,"2,400.00",ANNE MARIE HENDERSON T/A HENDERSON HIRE (TAXIS).
Children and Young Peoples Services,Head of Education and Skills,Transport,230008,Contract Hire,01/11/2021,3929825-00212,"2,528.00",ANNE MARIE HENDERSON T/A HENDERSON HIRE (TAXIS).
Children and Young Peoples Services,Head of Education and Skills,Transport,230008,Contract Hire,01/11/2021,3929825-00210,"2,880.00",ANNE MARIE HENDERSON T/A HENDERSON HIRE (TAXIS).
Adult and Health Services,Head of Adults,Transport,230005,Contract Hire,01/11/2021,3929825-00215,"1,280.00",ANNE MARIE HENDERSON T/A HENDERSON HIRE (TAXIS).
Adult and Health Services,Head of Adults,Transport,230005,Contract Hire,01/11/2021,3929825-00214,649.44,ANNE MARIE HENDERSON T/A HENDERSON HIRE (TAXIS).
Children and Young Peoples Services,Head of Education and Skills,Transport,230008,Contract Hire,01/11/2021,3929831-DCC-11SEPT21,"3,367.20",ATLAS TAXIS MANAGEMENT LTD.
Children and Young Peoples Services,Head of Education and Skills,Transport,230006,Contract Hire,01/11/2021,3929839-1-E101-OCT21,"1,920.00",BH TRAVEL.
Children and Young Peoples Services,Head of Education and Skills,Transport,230008,Contract Hire,01/11/2021,3929839-2-M054-OCT21,"1,472.00",BH TRAVEL.
Children and Young Peoples Services,Head of Education and Skills,Transport,230006,Contract Hire,01/11/2021,3929841-F109-SEPT,"1,969.11",BIG MAMA`S TAXI.
Children and Young Peoples Services,Head of Education and Skills,Transport,230008,Contract Hire,01/11/2021,3929843-000464,"1,956.78",BIRDS TAXIS LTD.
Children and Young Peoples Services,Head of Education and Skills,Transport,230008,Contract Hire,01/11/2021,3929871-E031-KC1021,"2,873.28",CJ`S EXECUTIVE TRAVEL LTD.
Children and Young Peoples Services,Head of Education and Skills,Transport,230008,Contract Hire,01/11/2021,3929871-N049-JM1021,"1,837.50",CJ`S EXECUTIVE TRAVEL LTD.
Children and Young Peoples Services,Head of Education and Skills,Transport,230008,Contract Hire,01/11/2021,3929871-E032-CE1021,"1,984.00",CJ`S EXECUTIVE TRAVEL LTD.
Children and Young Peoples Services,Head of Education and Skills,Transport,230008,Contract Hire,01/11/2021,3929871-M011-AA1021,"1,817.28",CJ`S EXECUTIVE TRAVEL LTD.
Children and Young Peoples Services,Head of Education and Skills,Transport,230008,Contract Hire,01/11/2021,3929907-ES2,"1,938.20",ELITE TAXIS.
Neighbourhoods and Climate Change,Environmental Services,Transport,230005,Contract Hire,01/11/2021,3929910-8178218,557.60,ENTERPRISE FLEX-E-RENT T/A BURNT TREE GROUP LTD.
Children and Young Peoples Services,Head of Education and Skills,Transport,230008,Contract Hire,01/11/2021,3929914-E003-OCT21,"2,080.00",FAIR FARE TRAVEL (TAXIS).
Children and Young Peoples Services,Head of Education and Skills,Transport,230008,Contract Hire,01/11/2021,3929917-23142,"2,496.00",GARNETTS LTD (COACHES).
Children and Young Peoples Services,Head of Education and Skills,Transport,230034,Contract Hire,01/11/2021,3929918-SM003,"1,152.00",GARY JACKSON PRIVATE HIRE.
Children and Young Peoples Services,Head of Education and Skills,Transport,230007,Contract Hire,01/11/2021,3929918-CT002,576.00,GARY JACKSON PRIVATE HIRE.
Children and Young Peoples Services,Head of Education and Skills,Transport,230008,Contract Hire,01/11/2021,3929918-GS002-N336,576.00,GARY JACKSON PRIVATE HIRE.
Children and Young Peoples Services,Head of Education and Skills,Transport,230006,Contract Hire,01/11/2021,3929920-9B,"1,534.00",GERARD MCLOUGHLIN T/A GMAC TAXIS.
Children and Young Peoples Services,Head of Education and Skills,Transport,230008,Contract Hire,01/11/2021,3929924-020-22/10/21,"2,038.40",GMC TAXIS NORTH EAST.
Children and Young Peoples Services,Head of Education and Skills,Transport,230034,Contract Hire,01/11/2021,3929925-GT23,"1,024.98",GORDON`S TAXIS.
Children and Young Peoples Services,Head of Education and Skills,Transport,230008,Contract Hire,01/11/2021,3929927-82,"1,291.50",GP TAXIS.
Children and Young Peoples Services,Head of Education and Skills,Transport,230034,Contract Hire,01/11/2021,3929947-5089,"1,280.00",HORNDALE TAXIS LTD.
Children and Young Peoples Services,Head of Education and Skills,Transport,230035,Contract Hire,01/11/2021,3929947-5088,636.84,HORNDALE TAXIS LTD.
Children and Young Peoples Services,Head of Education and Skills,Transport,230008,Contract Hire,01/11/2021,3929949-1009,"1,865.60",I & R EXECUTIVE TRAVEL.
Children and Young Peoples Services,Head of Education and Skills,Transport,230008,Contract Hire,01/11/2021,3929949-1010,"1,582.72",I & R EXECUTIVE TRAVEL.
Adult and Health Services,Head of Adults,Transport,230005,Contract Hire,01/11/2021,3929949-1011-OCT21,"1,520.00",I & R EXECUTIVE TRAVEL.
Adult and Health Services,Head of Adults,Transport,230005,Contract Hire,01/11/2021,3929949-1014,672.00,I & R EXECUTIVE TRAVEL.
Children and Young Peoples Services,Head of Education and Skills,Transport,230009,Contract Hire,01/11/2021,3929954-0825,960.00,JACKSON`S TAXI.
Children and Young Peoples Services,Head of Education and Skills,Transport,230008,Contract Hire,01/11/2021,3929954-0826,"1,815.68",JACKSON`S TAXI.
Children and Young Peoples Services,Head of Education and Skills,Transport,230008,Contract Hire,01/11/2021,3929954-0827,"1,720.64",JACKSON`S TAXI.
Children and Young Peoples Services,Head of Education and Skills,Transport,230008,Contract Hire,01/11/2021,3929954-0824,"2,041.60",JACKSON`S TAXI.
Children and Young Peoples Services,Head of Education and Skills,Transport,230008,Contract Hire,01/11/2021,3929962-22/10/21C,"2,240.00",JL EBDON. T/A DIAL-A-CAB.
Children and Young Peoples Services,Head of Education and Skills,Transport,230008,Contract Hire,01/11/2021,3929962-22/10/21G,"2,208.00",JL EBDON. T/A DIAL-A-CAB.
Children and Young Peoples Services,Head of Education and Skills,Transport,230006,Contract Hire,01/11/2021,3929966-2-21/22,945.00,JOHN BELL TAXI.
Adult and Health Services,Head of Adults,Transport,230005,Contract Hire,01/11/2021,3929967-3-OCT21,560.00,JOHN CRAKE & SONS MINI BUSES LTD.
Adult and Health Services,Head of Adults,Transport,230005,Contract Hire,01/11/2021,3929968-01102021,"1,180.30",JOHN HUBBLE T/A HUBB`S TAXIS.
Children and Young Peoples Services,Head of Education and Skills,Transport,230016,Contract Hire,01/11/2021,3929969-M01542,"2,191.20",JOVIAL PRIVATE HIRE.
Children and Young Peoples Services,Head of Education and Skills,Transport,230008,Contract Hire,01/11/2021,3929969-M00941,"1,442.30",JOVIAL PRIVATE HIRE.
Children and Young Peoples Services,Head of Education and Skills,Transport,230008,Contract Hire,01/11/2021,3929969-M01602,"1,120.00",JOVIAL PRIVATE HIRE.
Children and Young Peoples Services,Head of Education and Skills,Transport,230008,Contract Hire,01/11/2021,3929969-M01741,746.72,JOVIAL PRIVATE HIRE.
Children and Young Peoples Services,Head of Education and Skills,Transport,230008,Contract Hire,01/11/2021,3929969-N03002,"2,217.84",JOVIAL PRIVATE HIRE.
Children and Young Peoples Services,Head of Education and Skills,Transport,230012,Contract Hire,01/11/2021,3929974-1208,"2,610.00",K & R TAXIS (STANLEY).
Children and Young Peoples Services,Head of Education and Skills,Transport,230012,Contract Hire,01/11/2021,3929974-1211,"2,520.00",K & R TAXIS (STANLEY).
Children and Young Peoples Services,Head of Education and Skills,Transport,230008,Contract Hire,01/11/2021,3929974-1214,"2,535.00",K & R TAXIS (STANLEY).
Children and Young Peoples Services,Head of Education and Skills,Transport,230008,Contract Hire,01/11/2021,3929974-1209,"2,548.80",K & R TAXIS (STANLEY).
Children and Young Peoples Services,Head of Education and Skills,Transport,230008,Contract Hire,01/11/2021,3929974-1210,"2,304.00",K & R TAXIS (STANLEY).
Children and Young Peoples Services,Head of Education and Skills,Transport,230006,Contract Hire,01/11/2021,3929978-002-OCT21,"1,000.00",KELLY`S.
Children and Young Peoples Services,Head of Education and Skills,Transport,230013,Contract Hire,01/11/2021,3929986-001-OCT21,640.00,KULDEEP MAHIL T/A KOLARS CAB.
Children and Young Peoples Services,Head of Education and Skills,Transport,230006,Contract Hire,01/11/2021,3929991-1949,"1,426.60",LD TAXIS.
Children and Young Peoples Services,Head of Education and Skills,Transport,230010,Contract Hire,01/11/2021,3929991-1953,"1,152.00",LD TAXIS.
Children and Young Peoples Services,Head of Education and Skills,Transport,230008,Contract Hire,01/11/2021,3929991-1950,"1,400.64",LD TAXIS.
Children and Young Peoples Services,Head of Education and Skills,Transport,230008,Contract Hire,01/11/2021,3929991-1952,"1,600.00",LD TAXIS.
Children and Young Peoples Services,Head of Education and Skills,Transport,230008,Contract Hire,01/11/2021,3929991-1954,"1,280.00",LD TAXIS.
Adult and Health Services,Head of Adults,Transport,230005,Contract Hire,01/11/2021,3929991-1951,"1,519.98",LD TAXIS.
Adult and Health Services,Head of Adults,Transport,230005,Contract Hire,01/11/2021,3929993-PEACO002-OCT21,589.04,LETS TRAVEL.
Children and Young Peoples Services,Head of Education and Skills,Transport,230006,Contract Hire,01/11/2021,3930008-221REVISED,"1,077.00",MICHAEL COBB T/A HAIL TAXIS.
Children and Young Peoples Services,Head of Education and Skills,Transport,230008,Contract Hire,01/11/2021,3930014-KDC-01102021,"1,449.28",MJ TIMNEY T/A KDC & C&M TAXIS.
Children and Young Peoples Services,Head of Education and Skills,Transport,230006,Contract Hire,01/11/2021,3930015-A204-SEPT21,"2,926.00",MOLLY`S TAXIS LTD.
Children and Young Peoples Services,Head of Education and Skills,Transport,230007,Contract Hire,01/11/2021,3930018-7A-A,540.00,MR BW YOUNG T/A ESH TAXIS.
Children and Young Peoples Services,Head of Education and Skills,Transport,230009,Contract Hire,01/11/2021,3930019-FRAM110-21,"1,019.20",MR CT WALKER T/A CW TAXIS.
Children and Young Peoples Services,Head of Education and Skills,Transport,230008,Contract Hire,01/11/2021,3930019-OAK110-21,"1,580.80",MR CT WALKER T/A CW TAXIS.
Children and Young Peoples Services,Head of Education and Skills,Transport,230008,Contract Hire,01/11/2021,3930019-OAK210-21,"1,378.24",MR CT WALKER T/A CW TAXIS.
Children and Young Peoples Services,Head of Education and Skills,Transport,230006,Contract Hire,01/11/2021,3930020-211,960.00,MR DAVID CULLEN T/A JED`S TAXIS.
Children and Young Peoples Services,Head of Education and Skills,Transport,230034,Contract Hire,01/11/2021,3930023-22771,"1,650.00",MR JOHN KNIGHTON T/A JK TAXIS.
Children and Young Peoples Services,Head of Education and Skills,Transport,230008,Contract Hire,01/11/2021,3930023-11177,900.00,MR JOHN KNIGHTON T/A JK TAXIS.
Children and Young Peoples Services,Head of Education and Skills,Transport,230012,Contract Hire,01/11/2021,3930024-209,"1,561.50",MR NEIL LEONARD T/A LENNY`S TAXIS.
Children and Young Peoples Services,Head of Education and Skills,Transport,230012,Contract Hire,01/11/2021,3930024-208,"2,546.80",MR NEIL LEONARD T/A LENNY`S TAXIS.
Children and Young Peoples Services,Head of Education and Skills,Transport,230008,Contract Hire,01/11/2021,3930024-203,"1,568.00",MR NEIL LEONARD T/A LENNY`S TAXIS.
Children and Young Peoples Services,Head of Education and Skills,Transport,230008,Contract Hire,01/11/2021,3930024-210,"2,097.28",MR NEIL LEONARD T/A LENNY`S TAXIS.
Children and Young Peoples Services,Head of Education and Skills,Transport,230008,Contract Hire,01/11/2021,3930024-205,"1,760.00",MR NEIL LEONARD T/A LENNY`S TAXIS.
Children and Young Peoples Services,Head of Education and Skills,Transport,230008,Contract Hire,01/11/2021,3930024-207,"2,172.48",MR NEIL LEONARD T/A LENNY`S TAXIS.
Children and Young Peoples Services,Head of Education and Skills,Transport,230034,Contract Hire,01/11/2021,3930025-INV0056,"1,650.39",MR S HUSSAIN T/A EMPIRE CARS.
Children and Young Peoples Services,Head of Education and Skills,Transport,230034,Contract Hire,01/11/2021,3930025-INV0055,593.10,MR S HUSSAIN T/A EMPIRE CARS.
Children and Young Peoples Services,Head of Education and Skills,Transport,230006,Contract Hire,01/11/2021,3930025-INV0057,835.81,MR S HUSSAIN T/A EMPIRE CARS.
Children and Young Peoples Services,Head of Education and Skills,Transport,230008,Contract Hire,01/11/2021,3930025-INV0053,"2,337.44",MR S HUSSAIN T/A EMPIRE CARS.
Children and Young Peoples Services,Head of Education and Skills,Transport,230007,Contract Hire,01/11/2021,3930044-272,"1,701.28",NEVILLE FORBES T/A FORBES TAXIS.
Children and Young Peoples Services,Head of Education and Skills,Transport,230008,Contract Hire,01/11/2021,3930061-70-A030,"1,638.08",PHILLIP BOYD T/A FILS TAXIS.
Children and Young Peoples Services,Head of Education and Skills,Transport,230007,Contract Hire,01/11/2021,3930072-01-SEPT21-3194,"1,580.00",RAYNERS COACHES.
Children and Young Peoples Services,Head of Education and Skills,Transport,230007,Contract Hire,01/11/2021,3930022-229,"1,112.00",REDACTED - PAYMENT TO INDIVIDUAL
Children and Young Peoples Services,Head of Education and Skills,Transport,230008,Contract Hire,01/11/2021,3930022-230,"1,786.40",REDACTED - PAYMENT TO INDIVIDUAL
Children and Young Peoples Services,Head of Education and Skills,Transport,230006,Contract Hire,01/11/2021,3930098-F859-OCT21,960.00,STEPHEN BRACE T/A JAFFA`S TAXI (SEAHAM).
Children and Young Peoples Services,Head of Education and Skills,Transport,230034,Contract Hire,01/11/2021,3930105-078,"1,362.72",STEVEN HENDERSON T/A HENDYS TAXIS.
Children and Young Peoples Services,Head of Education and Skills,Transport,230006,Contract Hire,01/11/2021,3930105-079,"1,019.60",STEVEN HENDERSON T/A HENDYS TAXIS.
Adult and Health Services,Head of Adults,Transport,230005,Contract Hire,01/11/2021,3930105-077,544.00,STEVEN HENDERSON T/A HENDYS TAXIS.
Children and Young Peoples Services,Head of Education and Skills,Transport,230009,Contract Hire,01/11/2021,3930124-4-7307-OCT21,784.00,TONYS TAXIS (J BIRCH).
Children and Young Peoples Services,Head of Education and Skills,Transport,230016,Contract Hire,01/11/2021,3930124-1-A105-OCT21,"2,254.56",TONYS TAXIS (J BIRCH).
Adult and Health Services,Head of Adults,Transport,230005,Contract Hire,01/11/2021,3930124-3-CLS045-OCT21,652.08,TONYS TAXIS (J BIRCH).
Adult and Health Services,Head of Adults,Transport,230005,Contract Hire,01/11/2021,3930124-2-SED121-OCT21,"1,260.00",TONYS TAXIS (J BIRCH).
Adult and Health Services,Head of Adults,Transport,230005,Contract Hire,01/11/2021,3930124-5-EAS001-OCT21,598.00,TONYS TAXIS (J BIRCH).
Children and Young Peoples Services,Head of Education and Skills,Transport,230007,Contract Hire,01/11/2021,3930147-013,850.88,WILLIAM PINDER T/A FEATHERBED TAXIS.
Adult and Health Services,Public Health CC0450,Third Party Payments,460803,Contract Payments,01/11/2021,3929878-3910019256,"25,996.00",COUNTY DURHAM & DARLINGTON NHS FOUNDATION TRUST (CDDFT).
Neighbourhoods and Climate Change,Technical Services CM0300,Supplies and Services,304221,Equipment and Materials,01/11/2021,3929816-32184448,786.46,AGGREGATE INDUSTRIES UK LTD.
"Regeneration, Economy and Growth",Corporate Property and Land,Supplies and Services,304221,Equipment and Materials,01/11/2021,3929817-172413,"7,939.00",ALBANY OFFICE EQUIPMENT (WHOLESALE) LTD.
"Regeneration, Economy and Growth",Corporate Property and Land,Supplies and Services,304221,Equipment and Materials,01/11/2021,3929817-172414,850.00,ALBANY OFFICE EQUIPMENT (WHOLESALE) LTD.
"Regeneration, Economy and Growth",Corporate Property and Land,Supplies and Services,304221,Equipment and Materials,01/11/2021,3929817-172415,"9,668.50",ALBANY OFFICE EQUIPMENT (WHOLESALE) LTD.
"Regeneration, Economy and Growth",Corporate Property and Land,Supplies and Services,304221,Equipment and Materials,01/11/2021,3929817-172416,"8,325.50",ALBANY OFFICE EQUIPMENT (WHOLESALE) LTD.
"Regeneration, Economy and Growth",Corporate Property and Land,Supplies and Services,304221,Equipment and Materials,01/11/2021,3929817-172417,"2,805.00",ALBANY OFFICE EQUIPMENT (WHOLESALE) LTD.
"Regeneration, Economy and Growth",Corporate Property and Land,Supplies and Services,304221,Equipment and Materials,01/11/2021,3929817-172420,"15,394.00",ALBANY OFFICE EQUIPMENT (WHOLESALE) LTD.
"Regeneration, Economy and Growth",Corporate Property and Land,Supplies and Services,304221,Equipment and Materials,01/11/2021,3929817-172421,"8,402.00",ALBANY OFFICE EQUIPMENT (WHOLESALE) LTD.
"Regeneration, Economy and Growth",Corporate Property and Land,Supplies and Services,304221,Equipment and Materials,01/11/2021,3929817-172423,"7,250.00",ALBANY OFFICE EQUIPMENT (WHOLESALE) LTD.
"Regeneration, Economy and Growth",Corporate Property and Land,Supplies and Services,304221,Equipment and Materials,01/11/2021,3929817-172424,"2,224.00",ALBANY OFFICE EQUIPMENT (WHOLESALE) LTD.
"Regeneration, Economy and Growth",Corporate Property and Land,Supplies and Services,304221,Equipment and Materials,01/11/2021,3929817-172425,"2,120.00",ALBANY OFFICE EQUIPMENT (WHOLESALE) LTD.
"Regeneration, Economy and Growth",Corporate Property and Land,Supplies and Services,304221,Equipment and Materials,01/11/2021,3929817-172428,"2,212.00",ALBANY OFFICE EQUIPMENT (WHOLESALE) LTD.
"Regeneration, Economy and Growth",Corporate Property and Land,Supplies and Services,304221,Equipment and Materials,01/11/2021,3929817-172429,"1,020.00",ALBANY OFFICE EQUIPMENT (WHOLESALE) LTD.
"Regeneration, Economy and Growth",Corporate Property and Land,Supplies and Services,304221,Equipment and Materials,01/11/2021,3929817-172467,"2,552.00",ALBANY OFFICE EQUIPMENT (WHOLESALE) LTD.
"Regeneration, Economy and Growth",Corporate Property and Land,Supplies and Services,304221,Equipment and Materials,01/11/2021,3929817-172468,511.00,ALBANY OFFICE EQUIPMENT (WHOLESALE) LTD.
"Regeneration, Economy and Growth",Transport and Contracted Services,Supplies and Services,304259,Equipment and Materials,01/11/2021,3929817-172702,"6,570.00",ALBANY OFFICE EQUIPMENT (WHOLESALE) LTD.
"Regeneration, Economy and Growth",Corporate Property and Land,Supplies and Services,304221,Equipment and Materials,01/11/2021,3929856-140008806,"8,354.32",CARLISLE CONSTRUCTION MATERIALS LTD.
Dedicated Schools Grant BG0015,DSG High Needs Block,Supplies and Services,304259,Equipment and Materials,01/11/2021,3929890-0000127620,"1,375.00",DIRECT HEALTHCARE GROUP LTD.
"Regeneration, Economy and Growth",Corporate Property and Land,Supplies and Services,304221,Equipment and Materials,01/11/2021,3929903-059-289887,"1,970.18",EDMUNDSON ELECTRICAL LTD.
"Regeneration, Economy and Growth",Corporate Property and Land,Supplies and Services,304221,Equipment and Materials,01/11/2021,3929903-059-290070,506.40,EDMUNDSON ELECTRICAL LTD.
Neighbourhoods and Climate Change,Environmental Services,Supplies and Services,304999,Equipment and Materials,01/11/2021,3929926-INV062595,"1,364.44",GOTT TECHNICAL SERVICES LTD.
Neighbourhoods and Climate Change,Technical Services CM0300,Supplies and Services,304221,Equipment and Materials,01/11/2021,3929972-0104/00491536,670.58,JT DOVE LTD.
Neighbourhoods and Climate Change,Technical Services CM0300,Supplies and Services,304221,Equipment and Materials,01/11/2021,3929972-0104/00495187,904.74,JT DOVE LTD.
Neighbourhoods and Climate Change,Technical Services CM0300,Supplies and Services,304221,Equipment and Materials,01/11/2021,3929972-0104/00496357,"2,625.48",JT DOVE LTD.
Neighbourhoods and Climate Change,Technical Services CM0300,Supplies and Services,304221,Equipment and Materials,01/11/2021,3929972-0107/00497481,543.80,JT DOVE LTD.
Neighbourhoods and Climate Change,Technical Services CM0300,Supplies and Services,304221,Equipment and Materials,01/11/2021,3929972-0113/00495188,812.76,JT DOVE LTD.
Neighbourhoods and Climate Change,Technical Services CM0300,Supplies and Services,304221,Equipment and Materials,01/11/2021,3929972-0303/00492715,"1,010.60",JT DOVE LTD.
"Regeneration, Economy and Growth",Corporate Property and Land,Supplies and Services,304221,Equipment and Materials,01/11/2021,3929972-0113/00468419,868.38,JT DOVE LTD.
Neighbourhoods and Climate Change,Technical Services CM0300,Supplies and Services,304358,Equipment and Materials,01/11/2021,3930001-MS3183,559.13,M SPENCE SURFACING LTD.
Neighbourhoods and Climate Change,Technical Services CM0300,Supplies and Services,304358,Equipment and Materials,01/11/2021,3930001-MS3184,825.75,M SPENCE SURFACING LTD.
Neighbourhoods and Climate Change,Technical Services CM0300,Supplies and Services,304358,Equipment and Materials,01/11/2021,3930001-MS3187,504.00,M SPENCE SURFACING LTD.
Neighbourhoods and Climate Change,Technical Services CM0300,Supplies and Services,304358,Equipment and Materials,01/11/2021,3930001-MS3212,603.00,M SPENCE SURFACING LTD.
Neighbourhoods and Climate Change,Technical Services CM0300,Supplies and Services,304358,Equipment and Materials,01/11/2021,3930001-MS3219,504.00,M SPENCE SURFACING LTD.
"Regeneration, Economy and Growth",Corporate Property and Land,Supplies and Services,304221,Equipment and Materials,01/11/2021,3930096-1085360002,881.11,STANNAH LIFT SERVICE LTD.
"Regeneration, Economy and Growth",Corporate Property and Land,Supplies and Services,304221,Equipment and Materials,01/11/2021,3930123-132119,710.40,TOMMY WARDLE.
"Regeneration, Economy and Growth",Corporate Property and Land,Supplies and Services,304999,Equipment and Materials,01/11/2021,3930126-105473,"2,050.00",TOTAL RENTAL SOLUTIONS.
Neighbourhoods and Climate Change,Technical Services CM0300,Supplies and Services,304221,Equipment and Materials,01/11/2021,3930129-226899,784.32,TYNEDALE ROADSTONE LTD.
Neighbourhoods and Climate Change,Technical Services CM0300,Supplies and Services,304221,Equipment and Materials,01/11/2021,3930129-227000,630.74,TYNEDALE ROADSTONE LTD.
Neighbourhoods and Climate Change,Technical Services CM0300,Supplies and Services,304221,Equipment and Materials,01/11/2021,3930129-227139,623.90,TYNEDALE ROADSTONE LTD.
Neighbourhoods and Climate Change,Technical Services CM0300,Supplies and Services,304221,Equipment and Materials,01/11/2021,3930129-227220,618.70,TYNEDALE ROADSTONE LTD.
Neighbourhoods and Climate Change,Technical Services CM0300,Supplies and Services,304221,Equipment and Materials,01/11/2021,3930129-227223,699.94,TYNEDALE ROADSTONE LTD.
Adult and Health Services,Public Health CC0450,Supplies and Services,384899,Miscellaneous Expenses,01/11/2021,3929895-6093,"6,774.00",EAST DURHAM COMMUNITY DEVELOPMENT TRUST LTD T/A EAST DURHAM TRUST.
Adult and Health Services,Public Health CC0450,Supplies and Services,384899,Miscellaneous Expenses,01/11/2021,3929895-6095,"10,498.00",EAST DURHAM COMMUNITY DEVELOPMENT TRUST LTD T/A EAST DURHAM TRUST.
Adult and Health Services,Public Health CC0450,Supplies and Services,384899,Miscellaneous Expenses,01/11/2021,3929896-7537,"9,587.79",EAST DURHAM COMMUNITY TRANSPORT LTD.
Adult and Health Services,Public Health CC0450,Supplies and Services,384899,Miscellaneous Expenses,01/11/2021,3929896-7544,"13,924.47",EAST DURHAM COMMUNITY TRANSPORT LTD.
Neighbourhoods and Climate Change,Environmental Services,Supplies and Services,384700,Miscellaneous Expenses,01/11/2021,3929902-RED-10-2021-220,"57,847.20",EDEN RIVERS TRUST.
Neighbourhoods and Climate Change,Partnerships & Community Engagement Div.,Supplies and Services,384086,Miscellaneous Expenses,01/11/2021,3929909-VOUCHER21NB-4TOG002,"5,000.00",ENTER CIC.
Neighbourhoods and Climate Change,Environmental Services,Supplies and Services,384700,Miscellaneous Expenses,01/11/2021,3929959-RED-10-2021-222,"4,611.10",JF EDGAR (FARMER).
Neighbourhoods and Climate Change,Environmental Services,Supplies and Services,384700,Miscellaneous Expenses,01/11/2021,3930060-RED-10-2021-221,"7,035.52",PHIL & GINNY SWAILE (FARMER).
Children and Young Peoples Services,Head of Education and Skills,Third Party Payments,440999,Other third party payments E440,01/11/2021,3929815-NEI-EXP-10-2021-077,716.39,AGE UK COUNTY DURHAM.
Children and Young Peoples Services,Head of Education and Skills,Third Party Payments,440999,Other third party payments E440,01/11/2021,3929821-NEI-EXP-10-2021-076,941.16,ANDREW MARSHALL RESIDENTIAL PROPERTIES LTD T/A AMRP.
Children and Young Peoples Services,Head of Education and Skills,Third Party Payments,440999,Other third party payments E440,01/11/2021,3929893-NEI-EXP-10-2021-080,"1,010.75",DURHAM SCHOOL.*
Children and Young Peoples Services,Head of Education and Skills,Third Party Payments,440999,Other third party payments E440,01/11/2021,3929893-NEI-EXP-10-2021-081,716.39,DURHAM SCHOOL.*
Children and Young Peoples Services,Head of Education and Skills,Third Party Payments,440999,Other third party payments E440,01/11/2021,3929893-NEI-EXP-10-2021-082,716.39,DURHAM SCHOOL.*
Children and Young Peoples Services,Head of Education and Skills,Third Party Payments,440999,Other third party payments E440,01/11/2021,3929893-NEI-EXP-10-2021-083,716.39,DURHAM SCHOOL.*
Children and Young Peoples Services,Head of Education and Skills,Third Party Payments,440999,Other third party payments E440,01/11/2021,3929893-NEI-EXP-10-2021-084,"1,010.75",DURHAM SCHOOL.*
Children and Young Peoples Services,Head of Education and Skills,Third Party Payments,440999,Other third party payments E440,01/11/2021,3929893-NEI-EXP-10-2021-085,"1,010.75",DURHAM SCHOOL.*
Children and Young Peoples Services,Head of Education and Skills,Third Party Payments,440999,Other third party payments E440,01/11/2021,3929893-NEI-EXP-10-2021-086,"1,010.75",DURHAM SCHOOL.*
Children and Young Peoples Services,Head of Education and Skills,Third Party Payments,440999,Other third party payments E440,01/11/2021,3929893-NEI-EXP-10-2021-087,"1,010.75",DURHAM SCHOOL.*
Children and Young Peoples Services,Head of Education and Skills,Third Party Payments,440999,Other third party payments E440,01/11/2021,3929930-NEI-EXP-10-2021-079,716.39,GREENCROFT DOG DAYCARE LTD.
Children and Young Peoples Services,Head of Education and Skills,Third Party Payments,440999,Other third party payments E440,01/11/2021,3929930-NEI-EXP-10-2021-088,"1,010.75",GREENCROFT DOG DAYCARE LTD.
Children and Young Peoples Services,Head of Education and Skills,Third Party Payments,440999,Other third party payments E440,01/11/2021,3929930-NEI-EXP-10-2021-091,716.39,GREENCROFT DOG DAYCARE LTD.
Children and Young Peoples Services,Head of Education and Skills,Third Party Payments,440999,Other third party payments E440,01/11/2021,3929933-DWPFS-ESF-JULY-AUGUST2021,"14,330.02",GROUNDWORK NORTH EAST.
Children and Young Peoples Services,Head of Education and Skills,Third Party Payments,440999,Other third party payments E440,01/11/2021,3930016-NEI-EXP-10-2021-078,"1,010.75",MOVEABLE FEASTS ARTS.
Adult and Health Services,Commissioning inc Supporting People,Third Party Payments,440999,Other third party payments E440,01/11/2021,3930074-CAS-10-2021-150,"3,400.00",RESOLVE (CARE NORTHERN) LTD..
Children and Young Peoples Services,Head of Education and Skills,Third Party Payments,440999,Other third party payments E440,01/11/2021,3930093-NEI-EXP-10-2021-090,716.39,ST OSWALD`S SUNSHINE CLUB.
Adult and Health Services,Head of Adults,Third Party Payments,473101,Purchase of Care,01/11/2021,3930141-CAS-10-2021-148,"1,306.80",WEAR VALLEY ANGLING CIC.
Neighbourhoods and Climate Change,Technical Services CM0300,Third Party Payments,430100,Rendered by Private Contractors,01/11/2021,3929833-CSUKOU/INV/115098,"22,477.75",BALFOUR BEATTY LIVING PLACES LTD.*
Neighbourhoods and Climate Change,Technical Services CM0300,Third Party Payments,430100,Rendered by Private Contractors,01/11/2021,3929840-207R01376A,923.30,BIFFA WASTE SERVICES LTD.
Neighbourhoods and Climate Change,Technical Services CM0300,Third Party Payments,430100,Rendered by Private Contractors,01/11/2021,3929840-207R01389A,"1,030.40",BIFFA WASTE SERVICES LTD.
"Regeneration, Economy and Growth",Corporate Property and Land,Third Party Payments,430100,Rendered by Private Contractors,01/11/2021,3929862-8366,"1,646.30",CATHEDRAL LOCK & SAFE SERVICES LTD.
"Regeneration, Economy and Growth",Corporate Property and Land,Third Party Payments,430100,Rendered by Private Contractors,01/11/2021,3929863-6763,"7,700.00",CENTURY FABRICATIONS LTD.
"Regeneration, Economy and Growth",Corporate Property and Land,Third Party Payments,430100,Rendered by Private Contractors,01/11/2021,3929863-6764,550.00,CENTURY FABRICATIONS LTD.
Neighbourhoods and Climate Change,Technical Services CM0300,Third Party Payments,430100,Rendered by Private Contractors,01/11/2021,3929944-IN094798,"3,403.80",HILL & SMITH LTD.
"Regeneration, Economy and Growth",Corporate Property and Land,Third Party Payments,430100,Rendered by Private Contractors,01/11/2021,3929951-11500,"2,003.05",INGLEFORD SCAFFOLDING LTD.
"Regeneration, Economy and Growth",Corporate Property and Land,Third Party Payments,430100,Rendered by Private Contractors,01/11/2021,3929951-11496,505.00,INGLEFORD SCAFFOLDING LTD.
"Regeneration, Economy and Growth",Corporate Property and Land,Third Party Payments,430100,Rendered by Private Contractors,01/11/2021,3930041-35205,"9,996.00",NE & C WINDOWS & DOORS LTD.
Neighbourhoods and Climate Change,Technical Services CM0300,Third Party Payments,430100,Rendered by Private Contractors,01/11/2021,3930057-319042,"3,220.70",PEART FENCING LTD.
Neighbourhoods and Climate Change,Technical Services CM0300,Third Party Payments,430100,Rendered by Private Contractors,01/11/2021,3930066-13657,"7,737.55",QUANTUM POWER CONNECTIONS LTD.
Neighbourhoods and Climate Change,Technical Services CM0300,Third Party Payments,430100,Rendered by Private Contractors,01/11/2021,3930066-13658,"3,239.00",QUANTUM POWER CONNECTIONS LTD.
Neighbourhoods and Climate Change,Technical Services CM0300,Third Party Payments,430100,Rendered by Private Contractors,01/11/2021,3930066-13660,"5,892.80",QUANTUM POWER CONNECTIONS LTD.
Neighbourhoods and Climate Change,Technical Services CM0300,Third Party Payments,430100,Rendered by Private Contractors,01/11/2021,3930088-23090A,"48,819.14",SEYMOUR (CIVIL ENGINEERING CONTRACTORS) LTD.
Neighbourhoods and Climate Change,Technical Services CM0300,Third Party Payments,430100,Rendered by Private Contractors,01/11/2021,3930088-23171A,"43,778.40",SEYMOUR (CIVIL ENGINEERING CONTRACTORS) LTD.
"Regeneration, Economy and Growth",Corporate Property and Land,Third Party Payments,430100,Rendered by Private Contractors,01/11/2021,3930092-7728,"8,860.00",ST ASTIER LTD.
"Regeneration, Economy and Growth",Corporate Property and Land,Third Party Payments,430100,Rendered by Private Contractors,01/11/2021,3930097-17593,"2,520.00",STEADFAST SECURITY SOLUTIONS LTD.
Neighbourhoods and Climate Change,Environmental Services,Transport,210057,Repair and Maintenance of Vehicles,01/11/2021,3929837-15193211,584.36,BELL TRUCK SALES LTD T/A BELL TRUCK & VAN.
Neighbourhoods and Climate Change,Environmental Services,Transport,210057,Repair and Maintenance of Vehicles,01/11/2021,3929837-15193486,932.88,BELL TRUCK SALES LTD T/A BELL TRUCK & VAN.
Neighbourhoods and Climate Change,Environmental Services,Transport,210057,Repair and Maintenance of Vehicles,01/11/2021,3929865-419093,"2,568.22",CHATFIELDS T/A EVANS HALSHAW.
Neighbourhoods and Climate Change,Environmental Services,Transport,210057,Repair and Maintenance of Vehicles,01/11/2021,3929885-96414079,920.04,DENNIS EAGLE LTD T/A TERBERG MATEC (UK) LTD.
Neighbourhoods and Climate Change,Environmental Services,Transport,210057,Repair and Maintenance of Vehicles,01/11/2021,3930055-17537636,607.48,PARTSPLUS.
Neighbourhoods and Climate Change,Environmental Services,Transport,210057,Repair and Maintenance of Vehicles,01/11/2021,3930055-17617267,885.90,PARTSPLUS.
Neighbourhoods and Climate Change,Environmental Services,Transport,210057,Repair and Maintenance of Vehicles,01/11/2021,3930064-P0213148,"1,295.87",PULMAN VOLKSWAGEN.
Neighbourhoods and Climate Change,Environmental Services,Transport,215005,Running Costs of Vehicles,01/11/2021,3930051-821857,"3,521.15",YOUR NRG LTD.
Neighbourhoods and Climate Change,Environmental Services,Transport,215005,Running Costs of Vehicles,01/11/2021,3930051-821865,"3,500.01",YOUR NRG LTD.
Neighbourhoods and Climate Change,Environmental Services,Transport,215022,Running Costs of Vehicles,01/11/2021,3930051-821861,713.40,YOUR NRG LTD.
Dedicated Schools Grant BG0015,DSG Early Years Block,Transfer Payments,510032,School Children,01/11/2021,3929814-27362,"3,313.80",ADVENTURE VALLEY DAY NURSERY LTD.
Dedicated Schools Grant BG0015,DSG Early Years Block,Transfer Payments,510030,School Children,01/11/2021,3929814-27472,"15,245.47",ADVENTURE VALLEY DAY NURSERY LTD.
Dedicated Schools Grant BG0015,DSG Early Years Block,Transfer Payments,510032,School Children,01/11/2021,3929824-27365,"1,104.60",ANN SMITH T/A ANN`S ANGELS.
Dedicated Schools Grant BG0015,DSG Early Years Block,Transfer Payments,510032,School Children,01/11/2021,3929832-27367,"1,380.75",AYCLIFFE DAY NURSERY.
Dedicated Schools Grant BG0015,DSG Early Years Block,Transfer Payments,510030,School Children,01/11/2021,3929832-27478,"5,696.25",AYCLIFFE DAY NURSERY.
Dedicated Schools Grant BG0015,DSG Early Years Block,Transfer Payments,510030,School Children,01/11/2021,3929844-27579,"2,003.40",BISHOP HOGARTH CATHOLIC EDUCATION TRUST T/A ST JOSEPHS PRIMARY SCHOOL.
Dedicated Schools Grant BG0015,DSG Early Years Block,Transfer Payments,510030,School Children,01/11/2021,3929845-27580,"3,181.50",BISHOP HOGARTH CATHOLIC EDUCATION TRUST.
Dedicated Schools Grant BG0015,DSG Early Years Block,Transfer Payments,510030,School Children,01/11/2021,3929846-27578,"7,172.55",BISHOP WILKINSON CE TRUST.
Dedicated Schools Grant BG0015,DSG Early Years Block,Transfer Payments,510032,School Children,01/11/2021,3929849-27370,"5,578.23",BRIGHT STAR NURSERY.
Dedicated Schools Grant BG0015,DSG Early Years Block,Transfer Payments,510030,School Children,01/11/2021,3929849-27481,"12,817.21",BRIGHT STAR NURSERY.
Dedicated Schools Grant BG0015,DSG Early Years Block,Transfer Payments,510032,School Children,01/11/2021,3929853-27371,552.30,BUTTERFLIES DAY CARE.
Dedicated Schools Grant BG0015,DSG Early Years Block,Transfer Payments,510030,School Children,01/11/2021,3929853-27482,"2,576.70",BUTTERFLIES DAY CARE.
Dedicated Schools Grant BG0015,DSG Early Years Block,Transfer Payments,510032,School Children,01/11/2021,3929854-27372,"3,866.10",BYERLEY ROAD PRE SCHOOL.
Dedicated Schools Grant BG0015,DSG Early Years Block,Transfer Payments,510030,School Children,01/11/2021,3929854-27483,"3,561.60",BYERLEY ROAD PRE SCHOOL.
Dedicated Schools Grant BG0015,DSG Early Years Block,Transfer Payments,510032,School Children,01/11/2021,3929859-27376,"1,380.75",CASTLE KINDERGARTEN LTD.
Dedicated Schools Grant BG0015,DSG Early Years Block,Transfer Payments,510032,School Children,01/11/2021,3929860-27375,"6,627.60",CASTLE KINDERGARTEN LTD.
Dedicated Schools Grant BG0015,DSG Early Years Block,Transfer Payments,510030,School Children,01/11/2021,3929859-27486,"3,980.02",CASTLE KINDERGARTEN LTD.
Dedicated Schools Grant BG0015,DSG Early Years Block,Transfer Payments,510030,School Children,01/11/2021,3929860-27485,"4,839.45",CASTLE KINDERGARTEN LTD.
Dedicated Schools Grant BG0015,DSG Early Years Block,Transfer Payments,510030,School Children,01/11/2021,3929861-27487,"23,225.40",CASTLE VIEW PRIVATE DAY NURSERY LTD.
Dedicated Schools Grant BG0015,DSG Early Years Block,Transfer Payments,510030,School Children,01/11/2021,3929875-27494,"2,028.60",CONKERS LIFE LTD (NURSERY SCHOOL).
Dedicated Schools Grant BG0015,DSG Early Years Block,Transfer Payments,510032,School Children,01/11/2021,3929877-27381,"3,589.95",COUNDON & LEEHOLME EARLY YEARS CENTRE LTD.
Dedicated Schools Grant BG0015,DSG Early Years Block,Transfer Payments,510030,School Children,01/11/2021,3929877-27495,"4,729.72",COUNDON & LEEHOLME EARLY YEARS CENTRE LTD.
Dedicated Schools Grant BG0015,DSG Early Years Block,Transfer Payments,510032,School Children,01/11/2021,3929880-27382,552.30,CRAGHEAD CHILDCARE CENTRE.
Dedicated Schools Grant BG0015,DSG Early Years Block,Transfer Payments,510032,School Children,01/11/2021,3929880-27383,"3,866.10",CRAGHEAD CHILDCARE CENTRE.
Dedicated Schools Grant BG0015,DSG Early Years Block,Transfer Payments,510030,School Children,01/11/2021,3929880-27497,"5,279.40",CRAGHEAD CHILDCARE CENTRE.
Dedicated Schools Grant BG0015,DSG Early Years Block,Transfer Payments,510030,School Children,01/11/2021,3929892-27524,"2,333.10",DURHAM & NEWCASTLE DIOCESAN LEARNING TRUST T/A INGLETON CE PRIMARY SCHOOL
Dedicated Schools Grant BG0015,DSG Early Years Block,Transfer Payments,510032,School Children,01/11/2021,3929894-27434,"2,209.20",EAST DURHAM COLLEGE.
Dedicated Schools Grant BG0015,DSG Early Years Block,Transfer Payments,510030,School Children,01/11/2021,3929894-27564,"4,452.00",EAST DURHAM COLLEGE.
Dedicated Schools Grant BG0015,DSG Early Years Block,Transfer Payments,510032,School Children,01/11/2021,3929899-27369,"1,656.90",EDEN ACADEMY TRUST LTD T/A BLUEBELL MEADOW PRIMARY SCHOOL.
Dedicated Schools Grant BG0015,DSG Early Years Block,Transfer Payments,510030,School Children,01/11/2021,3929899-27480,"4,006.80",EDEN ACADEMY TRUST LTD T/A BLUEBELL MEADOW PRIMARY SCHOOL.
Dedicated Schools Grant BG0015,DSG Early Years Block,Transfer Payments,510032,School Children,01/11/2021,3929900-27389,"3,866.10",EDEN GARDEN NURSERY.
Dedicated Schools Grant BG0015,DSG Early Years Block,Transfer Payments,510030,School Children,01/11/2021,3929900-27507,"5,236.87",EDEN GARDEN NURSERY.
Dedicated Schools Grant BG0015,DSG Early Years Block,Transfer Payments,510030,School Children,01/11/2021,3929901-27490,"11,760.70",EDEN LEARNING TRUST T/A CHILTON ACADEMY.
Dedicated Schools Grant BG0015,DSG Early Years Block,Transfer Payments,510032,School Children,01/11/2021,3929908-27392,"4,970.70",EMERALDS LITTLE GEMS DAYCARE LTD.
Dedicated Schools Grant BG0015,DSG Early Years Block,Transfer Payments,510032,School Children,01/11/2021,3929908-27393,"9,941.40",EMERALDS LITTLE GEMS DAYCARE LTD.
Dedicated Schools Grant BG0015,DSG Early Years Block,Transfer Payments,510030,School Children,01/11/2021,3929908-27509,"5,565.00",EMERALDS LITTLE GEMS DAYCARE LTD.
Dedicated Schools Grant BG0015,DSG Early Years Block,Transfer Payments,510030,School Children,01/11/2021,3929908-27510,"14,469.00",EMERALDS LITTLE GEMS DAYCARE LTD.
Dedicated Schools Grant BG0015,DSG Early Years Block,Transfer Payments,510032,School Children,01/11/2021,3929921-27396,"1,656.90",GIANT STEPS LTD.
Dedicated Schools Grant BG0015,DSG Early Years Block,Transfer Payments,510032,School Children,01/11/2021,3929922-27395,"2,209.20",GIANT STEPS LTD.
Dedicated Schools Grant BG0015,DSG Early Years Block,Transfer Payments,510032,School Children,01/11/2021,3929923-27394,"1,933.05",GIANT STEPS LTD.
Dedicated Schools Grant BG0015,DSG Early Years Block,Transfer Payments,510030,School Children,01/11/2021,3929921-27515,"2,147.25",GIANT STEPS LTD.
Dedicated Schools Grant BG0015,DSG Early Years Block,Transfer Payments,510030,School Children,01/11/2021,3929922-27514,"10,118.85",GIANT STEPS LTD.
Dedicated Schools Grant BG0015,DSG Early Years Block,Transfer Payments,510030,School Children,01/11/2021,3929923-27513,"6,363.00",GIANT STEPS LTD.
Dedicated Schools Grant BG0015,DSG Early Years Block,Transfer Payments,510032,School Children,01/11/2021,3929929-27397,"1,656.90",GREEN LANE NURSERY & CHILDCARE CENTRE.
Dedicated Schools Grant BG0015,DSG Early Years Block,Transfer Payments,510030,School Children,01/11/2021,3929929-27516,"10,650.15",GREEN LANE NURSERY & CHILDCARE CENTRE.
Dedicated Schools Grant BG0015,DSG Early Years Block,Transfer Payments,510032,School Children,01/11/2021,3929935-27422,"1,380.75",H WATSON-GREENWELL T/A LITTLE STARS NURSERY (ST BEDES).
Dedicated Schools Grant BG0015,DSG Early Years Block,Transfer Payments,510030,School Children,01/11/2021,3929935-27545,"3,912.30",H WATSON-GREENWELL T/A LITTLE STARS NURSERY (ST BEDES).
Dedicated Schools Grant BG0015,DSG Early Years Block,Transfer Payments,510030,School Children,01/11/2021,3929937-27517,"7,568.40",HARTSIDE PRIMARY ACADEMY.
Dedicated Schools Grant BG0015,DSG Early Years Block,Transfer Payments,510030,School Children,01/11/2021,3929961-27560,"3,260.25",JIGSAW LEARNING TRUST.
Dedicated Schools Grant BG0015,DSG Early Years Block,Transfer Payments,510032,School Children,01/11/2021,3929963-27384,"1,380.75",JOANNE HARDY T/A DAYBREAK NURSERY.
Dedicated Schools Grant BG0015,DSG Early Years Block,Transfer Payments,510030,School Children,01/11/2021,3929963-27499,"6,373.78",JOANNE HARDY T/A DAYBREAK NURSERY.
Dedicated Schools Grant BG0015,DSG Early Years Block,Transfer Payments,510032,School Children,01/11/2021,3929977-27412,"3,037.65",KELLOE PHOENIX CENTRE (CHILDCARE).
Dedicated Schools Grant BG0015,DSG Early Years Block,Transfer Payments,510030,School Children,01/11/2021,3929977-27533,"4,723.95",KELLOE PHOENIX CENTRE (CHILDCARE).
Dedicated Schools Grant BG0015,DSG Early Years Block,Transfer Payments,510032,School Children,01/11/2021,3929980-27414,"5,523.00",KIDZONE.
Dedicated Schools Grant BG0015,DSG Early Years Block,Transfer Payments,510030,School Children,01/11/2021,3929980-27535,"7,259.17",KIDZONE.
Dedicated Schools Grant BG0015,DSG Early Years Block,Transfer Payments,510030,School Children,01/11/2021,3929981-27536,"4,448.43",KIRK MERRINGTON PRE SCHOOL.
Dedicated Schools Grant BG0015,DSG Early Years Block,Transfer Payments,510030,School Children,01/11/2021,3929982-27537,"5,921.16",KIRKLANDS DAY NURSERY.
Dedicated Schools Grant BG0015,DSG Early Years Block,Transfer Payments,510032,School Children,01/11/2021,3929992-27418,"4,142.25",LEADGATE CHILD CENTRE LTD.
Dedicated Schools Grant BG0015,DSG Early Years Block,Transfer Payments,510030,School Children,01/11/2021,3929992-27542,"6,085.80",LEADGATE CHILD CENTRE LTD.
Dedicated Schools Grant BG0015,DSG Early Years Block,Transfer Payments,510032,School Children,01/11/2021,3929995-27420,"2,761.50",LITTLE ACORNS NORTH EAST LTD.
Dedicated Schools Grant BG0015,DSG Early Years Block,Transfer Payments,510030,School Children,01/11/2021,3929995-27544,"6,306.30",LITTLE ACORNS NORTH EAST LTD.
Dedicated Schools Grant BG0015,DSG Early Years Block,Transfer Payments,510032,School Children,01/11/2021,3929996-27423,"5,246.85",LITTLE WAVES DAY NURSERY LTD.
Dedicated Schools Grant BG0015,DSG Early Years Block,Transfer Payments,510030,School Children,01/11/2021,3929996-27546,"5,565.00",LITTLE WAVES DAY NURSERY LTD.
Dedicated Schools Grant BG0015,DSG Early Years Block,Transfer Payments,510032,School Children,01/11/2021,3930043-27429,"3,589.95",NELLIE`S DAY NURSERY LTD.
Dedicated Schools Grant BG0015,DSG Early Years Block,Transfer Payments,510030,School Children,01/11/2021,3930043-27556,"3,645.60",NELLIE`S DAY NURSERY LTD.
Dedicated Schools Grant BG0015,DSG Early Years Block,Transfer Payments,510032,School Children,01/11/2021,3930045-27430,"1,380.75",NEW BEGINNINGS (MOORSIDE) CO LTD.
Dedicated Schools Grant BG0015,DSG Early Years Block,Transfer Payments,510030,School Children,01/11/2021,3930045-27557,"3,435.60",NEW BEGINNINGS (MOORSIDE) CO LTD.
Dedicated Schools Grant BG0015,DSG Early Years Block,Transfer Payments,510032,School Children,01/11/2021,3930049-27433,"2,209.20",NORTHUMBRIAN TRUST DAY NURSERIES LTD.
Dedicated Schools Grant BG0015,DSG Early Years Block,Transfer Payments,510030,School Children,01/11/2021,3930049-27562,"3,299.62",NORTHUMBRIAN TRUST DAY NURSERIES LTD.
Dedicated Schools Grant BG0015,DSG Early Years Block,Transfer Payments,510032,School Children,01/11/2021,3930050-27431,"3,037.65",NURSERYTIME LTD.
Dedicated Schools Grant BG0015,DSG Early Years Block,Transfer Payments,510030,School Children,01/11/2021,3930050-27558,"8,013.60",NURSERYTIME LTD.
Dedicated Schools Grant BG0015,DSG Early Years Block,Transfer Payments,510030,School Children,01/11/2021,3930052-27559,"1,956.15",OLD BRIDGE NURSERY.
Dedicated Schools Grant BG0015,DSG Early Years Block,Transfer Payments,510030,School Children,01/11/2021,3930062-27563,"4,296.18",PLAYOLOGY LTD.
Dedicated Schools Grant BG0015,DSG Early Years Block,Transfer Payments,510032,School Children,01/11/2021,3930070-27437,"4,418.40",RAINBOW NURSERY LTD (MIDDLESTONE MOOR).
Dedicated Schools Grant BG0015,DSG Early Years Block,Transfer Payments,510030,School Children,01/11/2021,3930070-27567,"12,243.00",RAINBOW NURSERY LTD (MIDDLESTONE MOOR).
Dedicated Schools Grant BG0015,DSG Early Years Block,Transfer Payments,510032,School Children,01/11/2021,3929857-27373,552.30,REDACTED - PAYMENT TO INDIVIDUAL
Dedicated Schools Grant BG0015,DSG Early Years Block,Transfer Payments,510032,School Children,01/11/2021,3929858-27374,552.30,REDACTED - PAYMENT TO INDIVIDUAL
Dedicated Schools Grant BG0015,DSG Early Years Block,Transfer Payments,510032,School Children,01/11/2021,3929938-27398,690.37,REDACTED - PAYMENT TO INDIVIDUAL
Dedicated Schools Grant BG0015,DSG Early Years Block,Transfer Payments,510032,School Children,01/11/2021,3929939-27399,"1,794.97",REDACTED - PAYMENT TO INDIVIDUAL
Dedicated Schools Grant BG0015,DSG Early Years Block,Transfer Payments,510032,School Children,01/11/2021,3929942-27401,552.30,REDACTED - PAYMENT TO INDIVIDUAL
Dedicated Schools Grant BG0015,DSG Early Years Block,Transfer Payments,510032,School Children,01/11/2021,3929964-27404,"1,104.60",REDACTED - PAYMENT TO INDIVIDUAL
Dedicated Schools Grant BG0015,DSG Early Years Block,Transfer Payments,510032,School Children,01/11/2021,3929976-27411,828.45,REDACTED - PAYMENT TO INDIVIDUAL
Dedicated Schools Grant BG0015,DSG Early Years Block,Transfer Payments,510032,School Children,01/11/2021,3929979-27413,"1,104.60",REDACTED - PAYMENT TO INDIVIDUAL
Dedicated Schools Grant BG0015,DSG Early Years Block,Transfer Payments,510032,School Children,01/11/2021,3929990-27417,828.45,REDACTED - PAYMENT TO INDIVIDUAL
Dedicated Schools Grant BG0015,DSG Early Years Block,Transfer Payments,510032,School Children,01/11/2021,3929997-27424,828.45,REDACTED - PAYMENT TO INDIVIDUAL
Dedicated Schools Grant BG0015,DSG Early Years Block,Transfer Payments,510032,School Children,01/11/2021,3930040-27428,"2,153.97",REDACTED - PAYMENT TO INDIVIDUAL
Dedicated Schools Grant BG0015,DSG Early Years Block,Transfer Payments,510032,School Children,01/11/2021,3930068-27436,690.37,REDACTED - PAYMENT TO INDIVIDUAL
Dedicated Schools Grant BG0015,DSG Early Years Block,Transfer Payments,510032,School Children,01/11/2021,3930028-27386,828.45,REDACTED - PAYMENT TO INDIVIDUAL
Dedicated Schools Grant BG0015,DSG Early Years Block,Transfer Payments,510032,School Children,01/11/2021,3930082-27439,552.30,REDACTED - PAYMENT TO INDIVIDUAL
Dedicated Schools Grant BG0015,DSG Early Years Block,Transfer Payments,510030,School Children,01/11/2021,3929822-27473,972.19,REDACTED - PAYMENT TO INDIVIDUAL
Dedicated Schools Grant BG0015,DSG Early Years Block,Transfer Payments,510030,School Children,01/11/2021,3929919-27512,733.25,REDACTED - PAYMENT TO INDIVIDUAL
Dedicated Schools Grant BG0015,DSG Early Years Block,Transfer Payments,510030,School Children,01/11/2021,3929938-27518,600.60,REDACTED - PAYMENT TO INDIVIDUAL
Dedicated Schools Grant BG0015,DSG Early Years Block,Transfer Payments,510030,School Children,01/11/2021,3929939-27519,858.90,REDACTED - PAYMENT TO INDIVIDUAL
Dedicated Schools Grant BG0015,DSG Early Years Block,Transfer Payments,510030,School Children,01/11/2021,3929940-27520,"1,086.75",REDACTED - PAYMENT TO INDIVIDUAL
Dedicated Schools Grant BG0015,DSG Early Years Block,Transfer Payments,510030,School Children,01/11/2021,3929942-27522,667.80,REDACTED - PAYMENT TO INDIVIDUAL
Dedicated Schools Grant BG0015,DSG Early Years Block,Transfer Payments,510030,School Children,01/11/2021,3929955-27526,644.17,REDACTED - PAYMENT TO INDIVIDUAL
Dedicated Schools Grant BG0015,DSG Early Years Block,Transfer Payments,510030,School Children,01/11/2021,3929956-27527,612.67,REDACTED - PAYMENT TO INDIVIDUAL
Dedicated Schools Grant BG0015,DSG Early Years Block,Transfer Payments,510030,School Children,01/11/2021,3929975-27531,"1,272.60",REDACTED - PAYMENT TO INDIVIDUAL
Dedicated Schools Grant BG0015,DSG Early Years Block,Transfer Payments,510030,School Children,01/11/2021,3929997-27547,869.40,REDACTED - PAYMENT TO INDIVIDUAL
Dedicated Schools Grant BG0015,DSG Early Years Block,Transfer Payments,510030,School Children,01/11/2021,3930005-27552,827.40,REDACTED - PAYMENT TO INDIVIDUAL
Dedicated Schools Grant BG0015,DSG Early Years Block,Transfer Payments,510030,School Children,01/11/2021,3930010-27553,816.90,REDACTED - PAYMENT TO INDIVIDUAL
Dedicated Schools Grant BG0015,DSG Early Years Block,Transfer Payments,510030,School Children,01/11/2021,3930040-27555,"1,319.85",REDACTED - PAYMENT TO INDIVIDUAL
Dedicated Schools Grant BG0015,DSG Early Years Block,Transfer Payments,510030,School Children,01/11/2021,3930056-27561,"1,113.00",REDACTED - PAYMENT TO INDIVIDUAL
Dedicated Schools Grant BG0015,DSG Early Years Block,Transfer Payments,510030,School Children,01/11/2021,3930068-27566,966.26,REDACTED - PAYMENT TO INDIVIDUAL
Dedicated Schools Grant BG0015,DSG Early Years Block,Transfer Payments,510030,School Children,01/11/2021,3930082-27572,652.05,REDACTED - PAYMENT TO INDIVIDUAL
Dedicated Schools Grant BG0015,DSG Early Years Block,Transfer Payments,510030,School Children,01/11/2021,3930084-27573,827.40,REDACTED - PAYMENT TO INDIVIDUAL
Dedicated Schools Grant BG0015,DSG Early Years Block,Transfer Payments,510030,School Children,01/11/2021,3930075-27569,"12,910.80",RIBBON ACADEMY TRUST.
Dedicated Schools Grant BG0015,DSG Early Years Block,Transfer Payments,510032,School Children,01/11/2021,3930076-27438,"9,389.10",RIBBON DAYCARE.
Dedicated Schools Grant BG0015,DSG Early Years Block,Transfer Payments,510030,School Children,01/11/2021,3930076-27570,"3,680.32",RIBBON DAYCARE.
Dedicated Schools Grant BG0015,DSG Early Years Block,Transfer Payments,510030,School Children,01/11/2021,3930080-27571,"2,003.40",SACRISTON ACADEMY - EARLY YEARS T/A PRIVATE NURSERY.
Dedicated Schools Grant BG0015,DSG Early Years Block,Transfer Payments,510032,School Children,01/11/2021,3930086-27442,"2,209.20",SEASIDE LANE NURSERY.
Dedicated Schools Grant BG0015,DSG Early Years Block,Transfer Payments,510030,School Children,01/11/2021,3930086-27574,"1,979.77",SEASIDE LANE NURSERY.
Dedicated Schools Grant BG0015,DSG Early Years Block,Transfer Payments,510030,School Children,01/11/2021,3930087-27575,687.12,SEDGEFIELD OUT OF SCHOOL FUN CLUB.
Dedicated Schools Grant BG0015,DSG Early Years Block,Transfer Payments,510030,School Children,01/11/2021,3930094-27577,"5,012.70",STANLEY LEARNING PARTNERSHIP.
Dedicated Schools Grant BG0015,DSG Early Years Block,Transfer Payments,510030,School Children,01/11/2021,3930095-27479,"2,671.20",STANLEY LEARNING PARTNERSHIP.
Dedicated Schools Grant BG0015,DSG Early Years Block,Transfer Payments,510032,School Children,01/11/2021,3930102-27443,552.30,STEPPING STONES CO-OP NURSERY LTD.
Dedicated Schools Grant BG0015,DSG Early Years Block,Transfer Payments,510030,School Children,01/11/2021,3930102-27581,"4,608.45",STEPPING STONES CO-OP NURSERY LTD.
Dedicated Schools Grant BG0015,DSG Early Years Block,Transfer Payments,510030,School Children,01/11/2021,3930103-27582,"2,654.92",STEPPING STONES DAY NURSERY (DURHAM).
Dedicated Schools Grant BG0015,DSG Early Years Block,Transfer Payments,510032,School Children,01/11/2021,3930107-27447,"3,866.10",SUNSHINE DAY NURSERY LTD.
Dedicated Schools Grant BG0015,DSG Early Years Block,Transfer Payments,510032,School Children,01/11/2021,3930108-27445,"4,694.55",SUNSHINE DAY NURSERY LTD.
Dedicated Schools Grant BG0015,DSG Early Years Block,Transfer Payments,510032,School Children,01/11/2021,3930109-27446,"4,142.25",SUNSHINE DAY NURSERY LTD.
Dedicated Schools Grant BG0015,DSG Early Years Block,Transfer Payments,510030,School Children,01/11/2021,3930107-27585,"4,674.60",SUNSHINE DAY NURSERY LTD.
Dedicated Schools Grant BG0015,DSG Early Years Block,Transfer Payments,510030,School Children,01/11/2021,3930108-27583,"11,486.47",SUNSHINE DAY NURSERY LTD.
Dedicated Schools Grant BG0015,DSG Early Years Block,Transfer Payments,510030,School Children,01/11/2021,3930109-27584,"8,202.60",SUNSHINE DAY NURSERY LTD.
Dedicated Schools Grant BG0015,DSG Early Years Block,Transfer Payments,510032,School Children,01/11/2021,3930118-27448,"3,866.10",THE LAURELS CHILD CARE COMPANY LTD.
Dedicated Schools Grant BG0015,DSG Early Years Block,Transfer Payments,510030,School Children,01/11/2021,3930118-27590,"4,897.20",THE LAURELS CHILD CARE COMPANY LTD.
Dedicated Schools Grant BG0015,DSG Early Years Block,Transfer Payments,510032,School Children,01/11/2021,3930119-27449,"3,037.65",THE NURSERY.
Dedicated Schools Grant BG0015,DSG Early Years Block,Transfer Payments,510030,School Children,01/11/2021,3930119-27591,"8,799.00",THE NURSERY.
Dedicated Schools Grant BG0015,DSG Early Years Block,Transfer Payments,510032,School Children,01/11/2021,3930122-27403,"3,866.10",TM NURSERY ENTERPRISES LTD T/A JACK IN THE BOX DAYCARE.
Dedicated Schools Grant BG0015,DSG Early Years Block,Transfer Payments,510030,School Children,01/11/2021,3930122-27525,"8,458.80",TM NURSERY ENTERPRISES LTD T/A JACK IN THE BOX DAYCARE.
Dedicated Schools Grant BG0015,DSG Early Years Block,Transfer Payments,510032,School Children,01/11/2021,3930128-27450,828.45,TRIMDON`S LITTLE TYKES LTD.
Dedicated Schools Grant BG0015,DSG Early Years Block,Transfer Payments,510030,School Children,01/11/2021,3930128-27593,"1,304.10",TRIMDON`S LITTLE TYKES LTD.
Dedicated Schools Grant BG0015,DSG Early Years Block,Transfer Payments,510032,School Children,01/11/2021,3930131-27388,"1,104.60",UNIVERSITY OF DURHAM DAY NURSERY.
Dedicated Schools Grant BG0015,DSG Early Years Block,Transfer Payments,510030,School Children,01/11/2021,3930131-27506,"7,100.10",UNIVERSITY OF DURHAM DAY NURSERY.
Dedicated Schools Grant BG0015,DSG Early Years Block,Transfer Payments,510032,School Children,01/11/2021,3930132-27451,"5,523.00",USHAW MOOR DAYCARE.
Dedicated Schools Grant BG0015,DSG Early Years Block,Transfer Payments,510030,School Children,01/11/2021,3930132-27594,"3,378.37",USHAW MOOR DAYCARE.
Dedicated Schools Grant BG0015,DSG Early Years Block,Transfer Payments,510030,School Children,01/11/2021,3930134-27595,"3,964.59",VICTORIA LANE ACADEMY.
Dedicated Schools Grant BG0015,DSG Early Years Block,Transfer Payments,510032,School Children,01/11/2021,3930139-27379,"3,313.80",WAYMAN DEVELOPMENTS LTD T/A CHILDSPLAY PRIVATE NURSERY.
Dedicated Schools Grant BG0015,DSG Early Years Block,Transfer Payments,510032,School Children,01/11/2021,3930140-27380,"4,142.25",WAYMAN DEVELOPMENTS LTD T/A CHILDSPLAY PRIVATE NURSERY.
Dedicated Schools Grant BG0015,DSG Early Years Block,Transfer Payments,510030,School Children,01/11/2021,3930139-27488,"6,452.60",WAYMAN DEVELOPMENTS LTD T/A CHILDSPLAY PRIVATE NURSERY.
Dedicated Schools Grant BG0015,DSG Early Years Block,Transfer Payments,510030,School Children,01/11/2021,3930140-27489,"9,128.70",WAYMAN DEVELOPMENTS LTD T/A CHILDSPLAY PRIVATE NURSERY.
Dedicated Schools Grant BG0015,DSG Early Years Block,Transfer Payments,510032,School Children,01/11/2021,3930145-27453,"3,866.10",WHEATLEY HILL COMMUNITY NURSERY LTD.
Dedicated Schools Grant BG0015,DSG Early Years Block,Transfer Payments,510030,School Children,01/11/2021,3930145-27598,"5,433.75",WHEATLEY HILL COMMUNITY NURSERY LTD.
Dedicated Schools Grant BG0015,DSG Early Years Block,Transfer Payments,510032,School Children,01/11/2021,3930148-27454,"9,112.95",WINGATE COMMUNITY CHILDCARE LTD.
Dedicated Schools Grant BG0015,DSG Early Years Block,Transfer Payments,510032,School Children,01/11/2021,3930151-27455,"2,209.20",YORK HOUSE NURSERY.
Dedicated Schools Grant BG0015,DSG Early Years Block,Transfer Payments,510030,School Children,01/11/2021,3930151-27599,"9,571.80",YORK HOUSE NURSERY.
Children and Young Peoples Services,Head of Education and Skills,Supplies and Services,338027,Services,01/11/2021,3929819-13/2021,"1,750.00",REDACTED - PAYMENT TO INDIVIDUAL
Neighbourhoods and Climate Change,Environmental Services,Stock A926,926004,Stock,01/11/2021,3929928-SI-00001264,"2,457.38",GRAYS MACHINERY LTD.
Neighbourhoods and Climate Change,Technical Services CM0300,Stock A926,926900,Stock in hand-Inventory system,01/11/2021,3930152-145446738,526.00,ZG LIGHTING (UK) LTD.
Neighbourhoods and Climate Change,Technical Services CM0300,Stock A926,926900,Stock in hand-Inventory system,01/11/2021,3930152-145446739,"1,315.00",ZG LIGHTING (UK) LTD.
"Regeneration, Economy and Growth",Culture Sport and Tourism,Supplies and Services,336005,Advertising E336,02/11/2021,3930905-S5118,842.00,ROUND SUN LTD T/A PRIMARY TIMES NORTH EAST.
"Regeneration, Economy and Growth",Corporate Property and Land,Premises,145023,Cleaning and Domestic Supplies,02/11/2021,3930775-06/145460,866.48,GREENHAM TRADING LTD.
Neighbourhoods and Climate Change,Technical Services CM0300,Supplies and Services,342033,Computers and Communications,02/11/2021,3930794-2100003109-21,"1,760.00",INSIGHT DIRECT (UK) LTD.
Resources BK0010,Digital and Customer Services,Supplies and Services,342033,Computers and Communications,02/11/2021,3930794-2100018519-21,911.94,INSIGHT DIRECT (UK) LTD.
Resources BK0010,Digital and Customer Services,Supplies and Services,342033,Computers and Communications,02/11/2021,3930863-0000002783,765.94,NOMINET UK.
Neighbourhoods and Climate Change,Technical Services CM0300,Supplies and Services,342051,Computers and Communications,02/11/2021,3930934-SINV-2021001910,860.00,SYMOLOGY LTD.
Adult and Health Services,Commissioning inc Supporting People,Supplies and Services,352001,Conference Expenses,02/11/2021,3930923-11814,"1,000.00",ST CUTHBERTS HOSPICE DURHAM.
Neighbourhoods and Climate Change,Environmental Services,Construction work A908,908105,Construction work,02/11/2021,3930697-4614,"53,855.00",AUTOMATIC FLARE SYSTEMS LTD.
Children and Young Peoples Services,Head of Education and Skills,Construction work A908,908105,Construction work,02/11/2021,3930888-900940582,"22,847.75",PORTAKABIN LTD.
Children and Young Peoples Services,Head of Education and Skills,Transport,230034,Contract Hire,02/11/2021,3930677-92101-OCT,"2,064.00",24/7 TAXI SERVICES (PETERLEE) LTD.
Children and Young Peoples Services,Head of Education and Skills,Transport,230034,Contract Hire,02/11/2021,3930677-102115,"1,920.00",24/7 TAXI SERVICES (PETERLEE) LTD.
Children and Young Peoples Services,Head of Education and Skills,Transport,230007,Contract Hire,02/11/2021,3930677-102102,"1,593.12",24/7 TAXI SERVICES (PETERLEE) LTD.
Children and Young Peoples Services,Head of Education and Skills,Transport,230006,Contract Hire,02/11/2021,3930677-102106,"1,806.88",24/7 TAXI SERVICES (PETERLEE) LTD.
Children and Young Peoples Services,Head of Education and Skills,Transport,230006,Contract Hire,02/11/2021,3930677-102108,800.00,24/7 TAXI SERVICES (PETERLEE) LTD.
Children and Young Peoples Services,Head of Education and Skills,Transport,230006,Contract Hire,02/11/2021,3930677-102117,"1,280.00",24/7 TAXI SERVICES (PETERLEE) LTD.
Children and Young Peoples Services,Head of Education and Skills,Transport,230006,Contract Hire,02/11/2021,3930677-102111,"2,554.40",24/7 TAXI SERVICES (PETERLEE) LTD.
Children and Young Peoples Services,Head of Education and Skills,Transport,230006,Contract Hire,02/11/2021,3930677-102118,944.00,24/7 TAXI SERVICES (PETERLEE) LTD.
Children and Young Peoples Services,Head of Education and Skills,Transport,230006,Contract Hire,02/11/2021,3930677-102120,"2,595.00",24/7 TAXI SERVICES (PETERLEE) LTD.
Children and Young Peoples Services,Head of Education and Skills,Transport,230012,Contract Hire,02/11/2021,3930677-102113,"1,920.00",24/7 TAXI SERVICES (PETERLEE) LTD.
Children and Young Peoples Services,Head of Education and Skills,Transport,230012,Contract Hire,02/11/2021,3930677-102122,"2,400.00",24/7 TAXI SERVICES (PETERLEE) LTD.
Children and Young Peoples Services,Head of Education and Skills,Transport,230016,Contract Hire,02/11/2021,3930677-102110,"1,910.00",24/7 TAXI SERVICES (PETERLEE) LTD.
Children and Young Peoples Services,Head of Education and Skills,Transport,230008,Contract Hire,02/11/2021,3930677-102107,"2,064.00",24/7 TAXI SERVICES (PETERLEE) LTD.
Children and Young Peoples Services,Head of Education and Skills,Transport,230008,Contract Hire,02/11/2021,3930677-102109,"2,142.86",24/7 TAXI SERVICES (PETERLEE) LTD.
Children and Young Peoples Services,Head of Education and Skills,Transport,230008,Contract Hire,02/11/2021,3930677-102112,"2,457.00",24/7 TAXI SERVICES (PETERLEE) LTD.
Children and Young Peoples Services,Head of Education and Skills,Transport,230008,Contract Hire,02/11/2021,3930677-102114,"3,658.20",24/7 TAXI SERVICES (PETERLEE) LTD.
Children and Young Peoples Services,Head of Education and Skills,Transport,230008,Contract Hire,02/11/2021,3930677-102121,"2,670.00",24/7 TAXI SERVICES (PETERLEE) LTD.
Children and Young Peoples Services,Head of Education and Skills,Transport,230008,Contract Hire,02/11/2021,3930677-102116,"1,584.00",24/7 TAXI SERVICES (PETERLEE) LTD.
Children and Young Peoples Services,Head of Education and Skills,Transport,230007,Contract Hire,02/11/2021,3930683-DCC092,"2,235.70",ALSTON ROAD GARAGE.
Children and Young Peoples Services,Head of Education and Skills,Transport,230006,Contract Hire,02/11/2021,3930687-1-OCT21,585.00,ANDREW ROBSON`S TAXI.
Children and Young Peoples Services,Head of Education and Skills,Transport,230034,Contract Hire,02/11/2021,3930694-867,"1,104.00",AT TAXIS LTD.
Children and Young Peoples Services,Head of Education and Skills,Transport,230007,Contract Hire,02/11/2021,3930694-869,"1,520.00",AT TAXIS LTD.
Children and Young Peoples Services,Head of Education and Skills,Transport,230007,Contract Hire,02/11/2021,3930694-870,"1,639.04",AT TAXIS LTD.
Children and Young Peoples Services,Head of Education and Skills,Transport,230008,Contract Hire,02/11/2021,3930694-868,"1,520.00",AT TAXIS LTD.
Children and Young Peoples Services,Head of Education and Skills,Transport,230008,Contract Hire,02/11/2021,3930694-865,"2,147.84",AT TAXIS LTD.
Children and Young Peoples Services,Head of Education and Skills,Transport,230008,Contract Hire,02/11/2021,3930694-866,"2,320.00",AT TAXIS LTD.
Children and Young Peoples Services,Head of Education and Skills,Transport,230006,Contract Hire,02/11/2021,3930695-04259,"1,125.00",ATLAS TAXIS CONSETT.
Children and Young Peoples Services,Head of Education and Skills,Transport,230006,Contract Hire,02/11/2021,3930695-04260,"1,279.04",ATLAS TAXIS CONSETT.
Children and Young Peoples Services,Head of Education and Skills,Transport,230008,Contract Hire,02/11/2021,3930702-793,"1,702.88",BEELINE MINI BUSES.
Children and Young Peoples Services,Head of Education and Skills,Transport,230003,Contract Hire,02/11/2021,3930703-STJOHNS80301021,"2,100.00",BELL BROTHERS TRAVEL.
Children and Young Peoples Services,Head of Education and Skills,Transport,230007,Contract Hire,02/11/2021,3930711-32791,919.80,BLUELINE TAXIS.
Children and Young Peoples Services,Head of Education and Skills,Transport,230006,Contract Hire,02/11/2021,3930711-32811,"1,638.00",BLUELINE TAXIS.
Children and Young Peoples Services,Head of Education and Skills,Transport,230008,Contract Hire,02/11/2021,3930734-1738,"1,766.40",CONNORS MINI BUSES.*
Children and Young Peoples Services,Head of Education and Skills,Transport,230008,Contract Hire,02/11/2021,3930734-1739,"1,823.52",CONNORS MINI BUSES.*
Children and Young Peoples Services,Head of Education and Skills,Transport,230008,Contract Hire,02/11/2021,3930734-1740,"1,595.52",CONNORS MINI BUSES.*
Children and Young Peoples Services,Head of Education and Skills,Transport,230008,Contract Hire,02/11/2021,3930734-1741,"1,424.00",CONNORS MINI BUSES.*
Children and Young Peoples Services,Head of Education and Skills,Transport,230006,Contract Hire,02/11/2021,3930749-1187,"3,178.00",EAST DURHAM TAXIS.
Children and Young Peoples Services,Head of Education and Skills,Transport,230009,Contract Hire,02/11/2021,3930767-1544,800.40,FMR SILVA PITA.
Children and Young Peoples Services,Head of Education and Skills,Transport,230008,Contract Hire,02/11/2021,3930767-1543,"1,472.00",FMR SILVA PITA.
Children and Young Peoples Services,Head of Education and Skills,Transport,230007,Contract Hire,02/11/2021,3930789-2-OCT21,772.00,IAN SHEPLEY T/A RIVERSIDE TAXIS.
Children and Young Peoples Services,Head of Education and Skills,Transport,230008,Contract Hire,02/11/2021,3930802-2021/11,"1,600.00",JAYS TAXIS/JOHN GARLAND (TAXIS).
Children and Young Peoples Services,Head of Education and Skills,Transport,230008,Contract Hire,02/11/2021,3930812-1213,"3,553.00",K & R TAXIS (STANLEY).
Children and Young Peoples Services,Head of Education and Skills,Transport,230008,Contract Hire,02/11/2021,3930822-20-OCT21,"2,051.84",LORRAINES TAXIS.
Children and Young Peoples Services,Head of Education and Skills,Transport,230007,Contract Hire,02/11/2021,3930823-270,608.00,LUMLEY TAXIS.
Children and Young Peoples Services,Head of Education and Skills,Transport,230010,Contract Hire,02/11/2021,3930823-269,"1,304.32",LUMLEY TAXIS.
Children and Young Peoples Services,Head of Education and Skills,Transport,230035,Contract Hire,02/11/2021,3930829-INV10/202106,"1,561.50",MARK & JOHN CHISHOLM T/A (CHEVRON).
Children and Young Peoples Services,Head of Education and Skills,Transport,230007,Contract Hire,02/11/2021,3930829-INV10/202105,870.00,MARK & JOHN CHISHOLM T/A (CHEVRON).
Children and Young Peoples Services,Head of Education and Skills,Transport,230007,Contract Hire,02/11/2021,3930829-INV10/202101,960.00,MARK & JOHN CHISHOLM T/A (CHEVRON).
Children and Young Peoples Services,Head of Education and Skills,Transport,230007,Contract Hire,02/11/2021,3930829-INV10/202102,736.00,MARK & JOHN CHISHOLM T/A (CHEVRON).
Children and Young Peoples Services,Head of Education and Skills,Transport,230007,Contract Hire,02/11/2021,3930829-INV10/202103,738.00,MARK & JOHN CHISHOLM T/A (CHEVRON).
Children and Young Peoples Services,Head of Education and Skills,Transport,230007,Contract Hire,02/11/2021,3930829-INV10/202104,624.00,MARK & JOHN CHISHOLM T/A (CHEVRON).
Children and Young Peoples Services,Head of Education and Skills,Transport,230009,Contract Hire,02/11/2021,3930829-INV10/202122,"1,401.00",MARK & JOHN CHISHOLM T/A (CHEVRON).
Children and Young Peoples Services,Head of Education and Skills,Transport,230010,Contract Hire,02/11/2021,3930829-INV10/202110,"1,568.00",MARK & JOHN CHISHOLM T/A (CHEVRON).
Children and Young Peoples Services,Head of Education and Skills,Transport,230010,Contract Hire,02/11/2021,3930829-INV10/202111,"1,488.96",MARK & JOHN CHISHOLM T/A (CHEVRON).
Children and Young Peoples Services,Head of Education and Skills,Transport,230010,Contract Hire,02/11/2021,3930829-INV10/202112,"1,488.96",MARK & JOHN CHISHOLM T/A (CHEVRON).
Children and Young Peoples Services,Head of Education and Skills,Transport,230010,Contract Hire,02/11/2021,3930829-INV10/202113,"1,954.26",MARK & JOHN CHISHOLM T/A (CHEVRON).
Children and Young Peoples Services,Head of Education and Skills,Transport,230008,Contract Hire,02/11/2021,3930829-INV10/202108,"1,892.52",MARK & JOHN CHISHOLM T/A (CHEVRON).
Children and Young Peoples Services,Head of Education and Skills,Transport,230008,Contract Hire,02/11/2021,3930829-INV10/202109,"1,270.00",MARK & JOHN CHISHOLM T/A (CHEVRON).
Children and Young Peoples Services,Head of Education and Skills,Transport,230008,Contract Hire,02/11/2021,3930829-INV10/202118,"2,460.00",MARK & JOHN CHISHOLM T/A (CHEVRON).
Children and Young Peoples Services,Head of Education and Skills,Transport,230008,Contract Hire,02/11/2021,3930829-INV10/202119,"2,886.00",MARK & JOHN CHISHOLM T/A (CHEVRON).
Children and Young Peoples Services,Head of Education and Skills,Transport,230008,Contract Hire,02/11/2021,3930829-INV10/202120,"2,242.00",MARK & JOHN CHISHOLM T/A (CHEVRON).
Children and Young Peoples Services,Head of Education and Skills,Transport,230008,Contract Hire,02/11/2021,3930829-INV10/202121,"2,088.30",MARK & JOHN CHISHOLM T/A (CHEVRON).
Children and Young Peoples Services,Head of Education and Skills,Transport,230008,Contract Hire,02/11/2021,3930829-INV10/202115,"1,248.00",MARK & JOHN CHISHOLM T/A (CHEVRON).
Children and Young Peoples Services,Head of Education and Skills,Transport,230008,Contract Hire,02/11/2021,3930829-INV10/202116,"2,176.00",MARK & JOHN CHISHOLM T/A (CHEVRON).
Children and Young Peoples Services,Head of Education and Skills,Transport,230008,Contract Hire,02/11/2021,3930829-INV10/202117,"1,078.00",MARK & JOHN CHISHOLM T/A (CHEVRON).
Children and Young Peoples Services,Head of Education and Skills,Transport,230008,Contract Hire,02/11/2021,3930829-INV10/202123,"2,090.88",MARK & JOHN CHISHOLM T/A (CHEVRON).
Children and Young Peoples Services,Head of Education and Skills,Transport,230008,Contract Hire,02/11/2021,3930829-INV10/202124,"1,911.36",MARK & JOHN CHISHOLM T/A (CHEVRON).
Children and Young Peoples Services,Head of Education and Skills,Transport,230008,Contract Hire,02/11/2021,3930829-INV10/202107,"1,410.00",MARK & JOHN CHISHOLM T/A (CHEVRON).
Children and Young Peoples Services,Head of Education and Skills,Transport,230006,Contract Hire,02/11/2021,3930844-A204-OCT21,"2,128.00",MOLLY`S TAXIS LTD.
Children and Young Peoples Services,Head of Education and Skills,Transport,230012,Contract Hire,02/11/2021,3930844-N051-OCT21,"2,640.00",MOLLY`S TAXIS LTD.
Children and Young Peoples Services,Head of Education and Skills,Transport,230008,Contract Hire,02/11/2021,3930844-A009-OCT21,"1,968.00",MOLLY`S TAXIS LTD.
Children and Young Peoples Services,Head of Education and Skills,Transport,230008,Contract Hire,02/11/2021,3930844-N038-OCT21,"2,672.00",MOLLY`S TAXIS LTD.
Children and Young Peoples Services,Head of Education and Skills,Transport,230006,Contract Hire,02/11/2021,3930847-A172/10/21,"1,037.43",MR RICHARD STANDLEY T/A RS TAXI SERVICES.
Children and Young Peoples Services,Head of Education and Skills,Transport,230004,Contract Hire,02/11/2021,3930848-10-21-F894,"1,980.00",MR S DOCKERY T/A SEAN'S TAXIS.
Children and Young Peoples Services,Head of Education and Skills,Transport,230008,Contract Hire,02/11/2021,3930850-060,"1,888.00",MRS SAMANTHA MACKENZIE T/A SAM`S TAXIS.
Children and Young Peoples Services,Head of Education and Skills,Transport,230008,Contract Hire,02/11/2021,3930850-057,"1,200.00",MRS SAMANTHA MACKENZIE T/A SAM`S TAXIS.
Children and Young Peoples Services,Head of Education and Skills,Transport,230006,Contract Hire,02/11/2021,3930879-F848-OCT21,"1,588.00",PAUL WILSON.
Children and Young Peoples Services,Head of Education and Skills,Transport,230008,Contract Hire,02/11/2021,3930879-M014-OCT21,"2,384.00",PAUL WILSON.
Children and Young Peoples Services,Head of Education and Skills,Transport,230008,Contract Hire,02/11/2021,3930879-N037-OCT21,"1,068.00",PAUL WILSON.
Children and Young Peoples Services,Head of Education and Skills,Transport,230009,Contract Hire,02/11/2021,3930881-7381-OCT,"1,424.00",PETER`S PRIVATE HIRE/PETER BEST.
Children and Young Peoples Services,Head of Education and Skills,Transport,230008,Contract Hire,02/11/2021,3930881-A028-OCT21,"1,836.00",PETER`S PRIVATE HIRE/PETER BEST.
Children and Young Peoples Services,Head of Education and Skills,Transport,230008,Contract Hire,02/11/2021,3930881-A191-OCT21,"3,037.50",PETER`S PRIVATE HIRE/PETER BEST.
Children and Young Peoples Services,Head of Education and Skills,Transport,230008,Contract Hire,02/11/2021,3930881-N097-OCT21,"3,410.33",PETER`S PRIVATE HIRE/PETER BEST.
Children and Young Peoples Services,Head of Education and Skills,Transport,230008,Contract Hire,02/11/2021,3930881-E007-OCT21,"1,568.00",PETER`S PRIVATE HIRE/PETER BEST.
Children and Young Peoples Services,Head of Education and Skills,Transport,230008,Contract Hire,02/11/2021,3930881-E014-OCT21,"1,844.80",PETER`S PRIVATE HIRE/PETER BEST.
Children and Young Peoples Services,Head of Education and Skills,Transport,230008,Contract Hire,02/11/2021,3930881-E025-OCT21,"2,000.00",PETER`S PRIVATE HIRE/PETER BEST.
Children and Young Peoples Services,Head of Education and Skills,Transport,230008,Contract Hire,02/11/2021,3930881-E051-OCT21,"2,160.00",PETER`S PRIVATE HIRE/PETER BEST.
Children and Young Peoples Services,Head of Education and Skills,Transport,230008,Contract Hire,02/11/2021,3930881-E061-OCT21,"3,077.12",PETER`S PRIVATE HIRE/PETER BEST.
Children and Young Peoples Services,Head of Education and Skills,Transport,230008,Contract Hire,02/11/2021,3930881-M066-OCT21,"1,744.00",PETER`S PRIVATE HIRE/PETER BEST.
Children and Young Peoples Services,Head of Education and Skills,Transport,230006,Contract Hire,02/11/2021,3930882-0014,"2,058.00",PHIL BELL EXECUTIVE TRAVEL.
Children and Young Peoples Services,Head of Education and Skills,Transport,230008,Contract Hire,02/11/2021,3930887-1372,"2,278.56",PODA TAXIS LTD.
Children and Young Peoples Services,Head of Education and Skills,Transport,230008,Contract Hire,02/11/2021,3930887-1373,"1,600.00",PODA TAXIS LTD.
Children and Young Peoples Services,Head of Education and Skills,Transport,230008,Contract Hire,02/11/2021,3930897-17687,"1,598.60",RAPID MINIBUSES.
Children and Young Peoples Services,Head of Education and Skills,Transport,230008,Contract Hire,02/11/2021,3930897-17688,"1,568.00",RAPID MINIBUSES.
Adult and Health Services,Head of Adults,Transport,230005,Contract Hire,02/11/2021,3930898-RDS071,584.00,RDS TAXI.
Children and Young Peoples Services,Head of Education and Skills,Transport,230007,Contract Hire,02/11/2021,3930902-1569,"3,080.00",ROBERTS TOURS.
Children and Young Peoples Services,Head of Education and Skills,Transport,230007,Contract Hire,02/11/2021,3930902-1570,"3,160.00",ROBERTS TOURS.
Children and Young Peoples Services,Head of Education and Skills,Transport,230007,Contract Hire,02/11/2021,3930902-1571,"4,784.00",ROBERTS TOURS.
Children and Young Peoples Services,Head of Education and Skills,Transport,230034,Contract Hire,02/11/2021,3930904-OCTOBER2021,"1,344.00",ROGERS TAXIS.
Children and Young Peoples Services,Head of Education and Skills,Transport,230006,Contract Hire,02/11/2021,3930926-00785A,578.60,STEPHEN VALLANCE T/A SELECT CABS.
Children and Young Peoples Services,Head of Education and Skills,Transport,230007,Contract Hire,02/11/2021,3930928-SI-1196,700.00,STEVEN PRATT T/A PTL TAXIS DURHAM.
Children and Young Peoples Services,Head of Education and Skills,Transport,230007,Contract Hire,02/11/2021,3930928-SI-1197,"1,320.00",STEVEN PRATT T/A PTL TAXIS DURHAM.
Children and Young Peoples Services,Head of Education and Skills,Transport,230006,Contract Hire,02/11/2021,3930928-SI-1192,"1,817.84",STEVEN PRATT T/A PTL TAXIS DURHAM.
Children and Young Peoples Services,Head of Education and Skills,Transport,230006,Contract Hire,02/11/2021,3930928-SI-1193,"1,973.46",STEVEN PRATT T/A PTL TAXIS DURHAM.
Children and Young Peoples Services,Head of Education and Skills,Transport,230016,Contract Hire,02/11/2021,3930928-SI-1194,855.00,STEVEN PRATT T/A PTL TAXIS DURHAM.
Children and Young Peoples Services,Head of Education and Skills,Transport,230008,Contract Hire,02/11/2021,3930928-SI-1195,"3,008.00",STEVEN PRATT T/A PTL TAXIS DURHAM.
Children and Young Peoples Services,Head of Education and Skills,Transport,230008,Contract Hire,02/11/2021,3930928-SI-1198,"1,760.00",STEVEN PRATT T/A PTL TAXIS DURHAM.
Children and Young Peoples Services,Head of Education and Skills,Transport,230008,Contract Hire,02/11/2021,3930928-SI-1199,"2,000.00",STEVEN PRATT T/A PTL TAXIS DURHAM.
Adult and Health Services,Public Health CC0450,Third Party Payments,460803,Contract Payments,02/11/2021,3930787-373-22-1803-06,"39,635.75",HUMANKIND CHARITY.
"Regeneration, Economy and Growth",Culture Sport and Tourism,Supplies and Services,304259,Equipment and Materials,02/11/2021,3930691-3392963726,"5,916.49",ARJO UK LTD.
"Regeneration, Economy and Growth",Corporate Property and Land,Supplies and Services,304221,Equipment and Materials,02/11/2021,3930730-2852ABI202,506.06,CITY PLUMBING SUPPLIES HOLDINGS LTD.
"Regeneration, Economy and Growth",Corporate Property and Land,Supplies and Services,304221,Equipment and Materials,02/11/2021,3930752-059-290168,540.89,EDMUNDSON ELECTRICAL LTD.
"Regeneration, Economy and Growth",Corporate Property and Land,Supplies and Services,304221,Equipment and Materials,02/11/2021,3930752-059-290238,784.49,EDMUNDSON ELECTRICAL LTD.
Neighbourhoods and Climate Change,Technical Services CM0300,Supplies and Services,304357,Equipment and Materials,02/11/2021,3930772-DCC101021,"18,236.41",GAP GROUP LTD.
Neighbourhoods and Climate Change,Environmental Services,Supplies and Services,304221,Equipment and Materials,02/11/2021,3930776-175294,"2,819.97",GUSTHARTS LTD.
Neighbourhoods and Climate Change,Environmental Services,Supplies and Services,304221,Equipment and Materials,02/11/2021,3930776-175312,"4,059.78",GUSTHARTS LTD.
Neighbourhoods and Climate Change,Environmental Services,Supplies and Services,304221,Equipment and Materials,02/11/2021,3930777-9002130719,560.00,HAKO MACHINES LTD.
Neighbourhoods and Climate Change,Environmental Services,Supplies and Services,304221,Equipment and Materials,02/11/2021,3930790-8215,"3,870.00",IBA FABRICATIONS LTD.
"Regeneration, Economy and Growth",Culture Sport and Tourism,Supplies and Services,304259,Equipment and Materials,02/11/2021,3930809-121795,"1,125.74",JP LENNARD LTD.
"Regeneration, Economy and Growth",Corporate Property and Land,Supplies and Services,304221,Equipment and Materials,02/11/2021,3930811-0213/00497485,572.42,JT DOVE LTD.
"Regeneration, Economy and Growth",Corporate Property and Land,Supplies and Services,304221,Equipment and Materials,02/11/2021,3930811-0213/00497483,556.43,JT DOVE LTD.
Neighbourhoods and Climate Change,Environmental Services,Supplies and Services,304221,Equipment and Materials,02/11/2021,3930861-36593,679.80,NIGEL BUCHANAN T/A PREMIER PARTS UK LTD.
Neighbourhoods and Climate Change,Environmental Services,Supplies and Services,304221,Equipment and Materials,02/11/2021,3930861-36708,"2,600.00",NIGEL BUCHANAN T/A PREMIER PARTS UK LTD.
"Regeneration, Economy and Growth",Culture Sport and Tourism,Supplies and Services,304259,Equipment and Materials,02/11/2021,3930901-SIN005760,507.60,RLSS UK ENTERPRISES LTD T/A RLSS UK SHOP.
Neighbourhoods and Climate Change,Technical Services CM0300,Supplies and Services,304221,Equipment and Materials,02/11/2021,3930932-INV-0353,562.50,SUPAMOLE DIRECTIONAL DRILLING SPECIALISTS.
Neighbourhoods and Climate Change,Technical Services CM0300,Supplies and Services,304221,Equipment and Materials,02/11/2021,3930932-INV-0356,"1,423.00",SUPAMOLE DIRECTIONAL DRILLING SPECIALISTS.
Neighbourhoods and Climate Change,Environmental Services,Supplies and Services,304221,Equipment and Materials,02/11/2021,3930942-NSIN00063080,"2,248.96",THOMAS OWEN & SONS (NEWCASTLE) LTD.
Neighbourhoods and Climate Change,Technical Services CM0300,Supplies and Services,304221,Equipment and Materials,02/11/2021,3930942-NSIN00064024,"4,483.20",THOMAS OWEN & SONS (NEWCASTLE) LTD.
"Regeneration, Economy and Growth",Corporate Property and Land,Supplies and Services,304221,Equipment and Materials,02/11/2021,3930947-35497,"2,976.00",TOTAL PUMP SOLUTIONS LTD.
Neighbourhoods and Climate Change,Technical Services CM0300,Supplies and Services,304221,Equipment and Materials,02/11/2021,3930948-135468,"2,920.00",TP ELECTRICAL SUPPLIES & FIXINGS LTD.
Resources BK0010,Digital and Customer Services,Supplies and Services,304303,Equipment and Materials,02/11/2021,3930948-135403,"2,132.84",TP ELECTRICAL SUPPLIES & FIXINGS LTD.
Resources BK0010,Digital and Customer Services,Supplies and Services,304639,Equipment and Materials,02/11/2021,3930948-135431,"1,077.00",TP ELECTRICAL SUPPLIES & FIXINGS LTD.
Neighbourhoods and Climate Change,Community Protection,Cap Exp on Grants & Other Financial Assistance (REFCUS),918501,Exp assets not owned by authority,02/11/2021,3930700-93692,"4,543.64",BAYDALE CONTROL SYSTEMS LTD.
Neighbourhoods and Climate Change,Community Protection,Cap Exp on Grants & Other Financial Assistance (REFCUS),918501,Exp assets not owned by authority,02/11/2021,3930700-93693,"5,938.80",BAYDALE CONTROL SYSTEMS LTD.
"Regeneration, Economy and Growth",Development and Housing,Fees,901001,Internal fees,02/11/2021,3930832-INV-19053,"302,125.79",MGH CARD LLP.
"Regeneration, Economy and Growth",Development and Housing,Fees,901001,Internal fees,02/11/2021,3930832-INV-19056,"268,786.56",MGH CARD LLP.
Children and Young Peoples Services,Head of Early Help Inclusion & Vulnerable Children.,Supplies and Services,384871,Miscellaneous Expenses,02/11/2021,3930698-65668,"1,190.97",AVEC SPORT LTD.
"Regeneration, Economy and Growth",Culture Sport and Tourism,Supplies and Services,384199,Miscellaneous Expenses,02/11/2021,3930710-1273,"4,287.50",BLUEGRASS RESEARCH LTD.
Children and Young Peoples Services,Central Charges (CYPS),Supplies and Services,384197,Miscellaneous Expenses,02/11/2021,3930712-A0027172,666.91,BOX-IT NORTH.
Neighbourhoods and Climate Change,Technical Services CM0300,Supplies and Services,384899,Miscellaneous Expenses,02/11/2021,3930714-RED-11-2021-018,"1,833.00",BRANDON & BYSHOTTLES PARISH COUNCIL.
Adult and Health Services,Head of Adults,Supplies and Services,384199,Miscellaneous Expenses,02/11/2021,3930733-JOB001/20438,575.00,COLIN JOBLING T/A RAINBOW INTERNATIONAL.
Resources BK0010,Corporate Finance & Commercial Services,Supplies and Services,384956,Miscellaneous Expenses,02/11/2021,3930764-HEX67000728492,"3,253.60",EXPERIAN LTD.
"Regeneration, Economy and Growth",Development and Housing,Supplies and Services,384899,Miscellaneous Expenses,02/11/2021,3930766-SD024/01,"2,604.89",FIRST FACE TO FACE LTD T/A FIRST.
"Regeneration, Economy and Growth",Corporate Property and Land,Supplies and Services,384199,Miscellaneous Expenses,02/11/2021,3930806-0000083393,750.00,JOHN WADE (HAULAGE) LTD.
Neighbourhoods and Climate Change,Environmental Services,Supplies and Services,384199,Miscellaneous Expenses,02/11/2021,3930825-5515,990.00,MALLARD CONSULTANCY LTD.
Neighbourhoods and Climate Change,Technical Services CM0300,Supplies and Services,384899,Miscellaneous Expenses,02/11/2021,3930834-RED-11-2021-017,670.00,MIDDLETON IN TEESDALE & NEWBIGGIN PARISH COUNCIL.
"Regeneration, Economy and Growth",Culture Sport and Tourism,Supplies and Services,384199,Miscellaneous Expenses,02/11/2021,3930870-00018191,674.40,NSL LTD.
"Regeneration, Economy and Growth",Culture Sport and Tourism,Supplies and Services,384199,Miscellaneous Expenses,02/11/2021,3930899-SIR004057,500.00,RE:PRODUCTION LTD.
"Regeneration, Economy and Growth",Culture Sport and Tourism,Supplies and Services,384302,Miscellaneous Expenses,02/11/2021,3930955-020,"4,000.00",VETERANS WOOD CRAFT CIC.
"Regeneration, Economy and Growth",Culture Sport and Tourism,Supplies and Services,312013,Newspapers books and periodicals E312,02/11/2021,3930693-6583104,767.73,ASKEWS & HOLTS LIBRARY SERVICES LTD.
"Regeneration, Economy and Growth",Culture Sport and Tourism,Supplies and Services,312013,Newspapers books and periodicals E312,02/11/2021,3930693-6583574,619.45,ASKEWS & HOLTS LIBRARY SERVICES LTD.
"Regeneration, Economy and Growth",Culture Sport and Tourism,Supplies and Services,312017,Newspapers books and periodicals E312,02/11/2021,3930693-6583576,625.26,ASKEWS & HOLTS LIBRARY SERVICES LTD.
Children and Young Peoples Services,Head of Education and Skills,Third Party Payments,440999,Other third party payments E440,02/11/2021,3930935-10009809-ST,"5,892.22",SYSTEM GROUP LTD.
Resources BK0010,Digital and Customer Services,Supplies and Services,332029,Printing Stationery and Gen Off Exps,02/11/2021,3930886-I47178,628.05,PLASTIC DATA CARD LTD.
Children and Young Peoples Services,Head of Early Help Inclusion & Vulnerable Children.,Supplies and Services,324500,Provisions E324,02/11/2021,3930737-24071,"16,458.30",CREATIVE MANAGEMENT SERVICES LTD.
Adult and Health Services,Head of Adults,Third Party Payments,478151,Purchase of Care,02/11/2021,3930761-21388,"2,100.00",ESSENTIAL CARE & SUPPORT LTD.
Adult and Health Services,Head of Adults,Third Party Payments,478151,Purchase of Care,02/11/2021,3930889-26001628,"4,590.00",POTENSIAL LTD.
Adult and Health Services,Head of Adults,Third Party Payments,478151,Purchase of Care,02/11/2021,3930889-77002105,824.52,POTENSIAL LTD.
Neighbourhoods and Climate Change,Environmental Services,Third Party Payments,430100,Rendered by Private Contractors,02/11/2021,3930705-46062791,801.84,BELL TRUCK SALES LTD T/A BELL TRUCK & VAN.
Neighbourhoods and Climate Change,Technical Services CM0300,Third Party Payments,430100,Rendered by Private Contractors,02/11/2021,3930709-SI53839,"56,141.50",BLACHERE ILLUMINATION UK LTD.
"Regeneration, Economy and Growth",Corporate Property and Land,Third Party Payments,430100,Rendered by Private Contractors,02/11/2021,3930723-624,"3,041.98",CEILINGS DIRECT LTD.
Neighbourhoods and Climate Change,Environmental Services,Third Party Payments,430100,Rendered by Private Contractors,02/11/2021,3930759-13000576180,"1,819.60",ENTERPRISE FLEX-E-RENT T/A BURNT TREE GROUP LTD.
"Regeneration, Economy and Growth",Culture Sport and Tourism,Third Party Payments,430131,Rendered by Private Contractors,02/11/2021,3930833-2021026,"1,006.00",MICHELLE GARTON T/A GET FIT NORTH EAST.
"Regeneration, Economy and Growth",Corporate Property and Land,Third Party Payments,430100,Rendered by Private Contractors,02/11/2021,3930855-786027,"2,227.00",NATIONWIDE CHIMNEY COMPONENTS LTD.
Neighbourhoods and Climate Change,Technical Services CM0300,Third Party Payments,430100,Rendered by Private Contractors,02/11/2021,3930892-13650,584.64,QUANTUM POWER CONNECTIONS LTD.
"Regeneration, Economy and Growth",Corporate Property and Land,Third Party Payments,430100,Rendered by Private Contractors,02/11/2021,3930922-7774,"14,875.52",ST ASTIER LTD.
"Regeneration, Economy and Growth",Corporate Property and Land,Third Party Payments,430100,Rendered by Private Contractors,02/11/2021,3930922-7760,"7,200.00",ST ASTIER LTD.
"Regeneration, Economy and Growth",Culture Sport and Tourism,Third Party Payments,430131,Rendered by Private Contractors,02/11/2021,3930939-TT/2021103,640.00,TERESA DONNELLAN T/A T TRAINING.
Neighbourhoods and Climate Change,Environmental Services,Transport,210057,Repair and Maintenance of Vehicles,02/11/2021,3930751-S208362,"1,997.26",ECON ENGINEERING LTD.
Neighbourhoods and Climate Change,Environmental Services,Transport,215005,Running Costs of Vehicles,02/11/2021,3930871-824717,"13,539.26",YOUR NRG LTD.
Neighbourhoods and Climate Change,Environmental Services,Premises,108135,Service Repairs and Maintenance,02/11/2021,3930754-60246,970.00,ELEMENT MATERIALS TECHNOLOGY ENVIRONMENTAL UK LTD.*
"Regeneration, Economy and Growth",Business Durham CL0850,Premises,108099,Service Repairs and Maintenance,02/11/2021,3930909-14083,712.00,SAFEGUARD SECURITY (NE) LTD.
"Regeneration, Economy and Growth",Business Durham CL0850,Premises,108099,Service Repairs and Maintenance,02/11/2021,3930921-4688,"3,944.00",SPECIALIST VENTILATION SERVICES LTD.
"Regeneration, Economy and Growth",Culture Sport and Tourism,Supplies and Services,338047,Services,02/11/2021,3930681-180,"1,620.00",ALEXANDER JOSHUA BIRD T/A ABPRODUCTIONS.
"Regeneration, Economy and Growth",Culture Sport and Tourism,Supplies and Services,338047,Services,02/11/2021,3930716-001,"2,673.00",BREWIS SCOTT ASSOCIATES.
Neighbourhoods and Climate Change,Partnerships & Community Engagement Div.,Supplies and Services,338099,Services,02/11/2021,3930725-54456,"1,500.00",CHAMPIONS (UK) PLC.
Neighbourhoods and Climate Change,Environmental Services,Supplies and Services,338066,Services,02/11/2021,3930740-INV-0066,"1,200.00",DAVE BARRETT T/A TURNING MOMENT.
Children and Young Peoples Services,Head of Education and Skills,Supplies and Services,338044,Services,02/11/2021,3930741-CAS-11-2021-003,520.00,DAYPARK LTD T/A YELLOW WELLIES.
Adult and Health Services,Head of Adults,Supplies and Services,338044,Services,02/11/2021,3930746-21/22-015,"2,243.35",REDACTED - PAYMENT TO INDIVIDUAL
Adult and Health Services,Commissioning inc Supporting People,Supplies and Services,338089,Services,02/11/2021,3930747-467,625.00,DURHAM COUNTY CARERS SUPPORT.
Resources BK0010,Legal & Democratic Services,Supplies and Services,338025,Services,02/11/2021,3930748-09/2021,660.00,EAST DURHAM FUNERAL SERVICE LTD.
"Regeneration, Economy and Growth",Culture Sport and Tourism,Supplies and Services,338047,Services,02/11/2021,3930785-002836,700.00,HILARITY BITES COMEDY CLUB.
Neighbourhoods and Climate Change,Environmental Services,Supplies and Services,338066,Services,02/11/2021,3930792-BURSARY2OCT21,765.43,IMOGEN COVERDALE.
"Regeneration, Economy and Growth",Culture Sport and Tourism,Supplies and Services,338047,Services,02/11/2021,3930801-LC/8166,"1,691.96",JANET PLATER MANAGEMENT LTD.
Resources BK0010,Finance & Transactional Services,Supplies and Services,338066,Services,02/11/2021,3930857-91453715,"5,310.00",NEC SOFTWARE SOLUTIONS UK LTD.
Adult and Health Services,Head of Adults,Supplies and Services,338429,Services,02/11/2021,3930866-1-2021,750.00,NORTH EAST BEFRIENDING SERVICE CIC.
"Regeneration, Economy and Growth",Culture Sport and Tourism,Supplies and Services,338047,Services,02/11/2021,3930872-OGM001-TARH/COLES,"3,798.00",ORLANDO GRAY MANAGEMENT LTD.
Adult and Health Services,Adults Excluded,Supplies and Services,338027,Services,02/11/2021,3930953-VB0033,"2,250.00",REDACTED - PAYMENT TO INDIVIDUAL
"Regeneration, Economy and Growth",Culture Sport and Tourism,Supplies and Services,338047,Services,02/11/2021,3930726-01,"2,430.00",REDACTED - PAYMENT TO INDIVIDUAL
"Regeneration, Economy and Growth",Culture Sport and Tourism,Supplies and Services,338047,Services,02/11/2021,3930735-8/11/21,"1,620.00",REDACTED - PAYMENT TO INDIVIDUAL
"Regeneration, Economy and Growth",Culture Sport and Tourism,Supplies and Services,338047,Services,02/11/2021,3930756-GALA56,"5,985.00",REDACTED - PAYMENT TO INDIVIDUAL
"Regeneration, Economy and Growth",Culture Sport and Tourism,Supplies and Services,338047,Services,02/11/2021,3930799-GALA08112021,"2,206.87",REDACTED - PAYMENT TO INDIVIDUAL
"Regeneration, Economy and Growth",Culture Sport and Tourism,Supplies and Services,338047,Services,02/11/2021,3930813-DGT105092021,"1,620.00",REDACTED - PAYMENT TO INDIVIDUAL
"Regeneration, Economy and Growth",Culture Sport and Tourism,Supplies and Services,338047,Services,02/11/2021,3930815-1,"1,035.00",REDACTED - PAYMENT TO INDIVIDUAL
"Regeneration, Economy and Growth",Culture Sport and Tourism,Supplies and Services,338047,Services,02/11/2021,3930828-013,"4,680.00",REDACTED - PAYMENT TO INDIVIDUAL
"Regeneration, Economy and Growth",Culture Sport and Tourism,Supplies and Services,338047,Services,02/11/2021,3930835-MB27102021,"2,206.87",REDACTED - PAYMENT TO INDIVIDUAL
"Regeneration, Economy and Growth",Culture Sport and Tourism,Supplies and Services,338047,Services,02/11/2021,3930878-PD2122-01,"2,893.43",REDACTED - PAYMENT TO INDIVIDUAL
"Regeneration, Economy and Growth",Culture Sport and Tourism,Supplies and Services,338047,Services,02/11/2021,3930946-056,"2,430.00",REDACTED - PAYMENT TO INDIVIDUAL
Resources - C A C,Centrally Administered costs 069006,Supplies and Services,338066,Services,02/11/2021,3930913-INV-1076,"1,040.25",SECURITY RISK MANAGEMENT LTD.
Neighbourhoods and Climate Change,Environmental Services,Supplies and Services,338027,Services,02/11/2021,3930918-0000916491,"1,963.21",SOCOTEC UK LTD.
Children and Young Peoples Services,Head of Education and Skills,Supplies and Services,338044,Services,02/11/2021,3930930-CAS-11-2021-004,"1,040.00",SUNSHINE DAY NURSERY LTD.
Neighbourhoods and Climate Change,Environmental Services,Stock A926,926004,Stock,02/11/2021,3930705-15193366,543.68,BELL TRUCK SALES LTD T/A BELL TRUCK & VAN.
Neighbourhoods and Climate Change,Environmental Services,Stock A926,926004,Stock,02/11/2021,3930743-96414028,"1,782.60",DENNIS EAGLE LTD T/A TERBERG MATEC (UK) LTD.
Neighbourhoods and Climate Change,Technical Services CM0300,Stock A926,926900,Stock in hand-Inventory system,02/11/2021,3930775-06/145581,957.90,GREENHAM TRADING LTD.
Resources BK0010,Digital and Customer Services,Stock A926,926900,Stock in hand-Inventory system,02/11/2021,3930794-2100016240-21,817.00,INSIGHT DIRECT (UK) LTD.
Neighbourhoods and Climate Change,Technical Services CM0300,Stock A926,926900,Stock in hand-Inventory system,02/11/2021,3930805-10354,"1,053.20",JG UNIFORMS.
Neighbourhoods and Climate Change,Technical Services CM0300,Stock A926,926900,Stock in hand-Inventory system,02/11/2021,3930971-145447187,526.00,ZG LIGHTING (UK) LTD.
Neighbourhoods and Climate Change,Technical Services CM0300,Stock A926,926900,Stock in hand-Inventory system,02/11/2021,3930971-145447188,789.00,ZG LIGHTING (UK) LTD.
Neighbourhoods and Climate Change,Technical Services CM0300,Stock A926,926900,Stock in hand-Inventory system,02/11/2021,3930971-145447190,"1,315.00",ZG LIGHTING (UK) LTD.
Neighbourhoods and Climate Change,Technical Services CM0300,Stock A926,926900,Stock in hand-Inventory system,02/11/2021,3930971-145447191,"1,760.00",ZG LIGHTING (UK) LTD.
Neighbourhoods and Climate Change,Technical Services CM0300,Stock A926,926900,Stock in hand-Inventory system,02/11/2021,3930971-145447192,789.00,ZG LIGHTING (UK) LTD.
Neighbourhoods and Climate Change,Technical Services CM0300,Stock A926,926900,Stock in hand-Inventory system,02/11/2021,3930971-145447448,"2,104.00",ZG LIGHTING (UK) LTD.
"Regeneration, Economy and Growth",Communications Management,Supplies and Services,336005,Advertising E336,03/11/2021,3931007-8047190,"4,148.48",BAUER RADIO LTD.
Children and Young Peoples Services,Head of Childrens Social Care,Supplies and Services,336005,Advertising E336,03/11/2021,3931329-00002321,"2,232.00",RARING2GO TEES VALLEY & CO DURHAM.
"Regeneration, Economy and Growth",Transport and Contracted Services,Supplies and Services,336005,Advertising E336,03/11/2021,3931396-510714,"1,368.50",SUN FM LTD.
"Regeneration, Economy and Growth",Communications Management,Employees,080025,Agency Staff,03/11/2021,3931143-2453665,"148,537.13",GEOMETRIC RESULTS INTERNATIONAL.
"Regeneration, Economy and Growth",Culture Sport and Tourism,Supplies and Services,328041,Clothing uniforms and laundry E328,03/11/2021,3931426-NSIN00063632,625.84,THOMAS OWEN & SONS (NEWCASTLE) LTD.
Resources BK0010,Digital and Customer Services,Vehicles Equipment Furniture and Fittings,912701,Computer equipment,03/11/2021,3931086-7402754362,"1,438.63",DELL COMPUTER CORPORATION LTD.
Resources BK0010,Digital and Customer Services,Vehicles Equipment Furniture and Fittings,912701,Computer equipment,03/11/2021,3931465-LA38579,"7,018.08",XMA LTD.
Resources BK0010,Digital and Customer Services,Supplies and Services,342033,Computers and Communications,03/11/2021,3931086-7402753056,869.40,DELL COMPUTER CORPORATION LTD.
Resources BK0010,Digital and Customer Services,Supplies and Services,342051,Computers and Communications,03/11/2021,3931442-INVSOL011091,"2,080.00",VERSION 1 SOLUTIONS LTD.
Resources BK0010,Digital and Customer Services,Supplies and Services,342033,Computers and Communications,03/11/2021,3931445-0026,"2,084.00",VIKING PRODUCTIONS LTD.
Resources BK0010,Digital and Customer Services,Supplies and Services,352001,Conference Expenses,03/11/2021,3931223-2605,"2,700.00",LUCID OPTICAL SERVICES LTD.
Resources BK0010,Digital and Customer Services,Supplies and Services,352001,Conference Expenses,03/11/2021,3931223-2603,"4,150.00",LUCID OPTICAL SERVICES LTD.
"Regeneration, Economy and Growth",Business Durham CL0850,Construction work A908,908105,Construction work,03/11/2021,3931110-S0056236,"1,617.55",ENERGY ASSETS LTD.
Neighbourhoods and Climate Change,Technical Services CM0300,Construction work A908,908105,Construction work,03/11/2021,3931181-25753,808.40,JACK COUPE & SONS LTD T/A COUPE LINE.
"Regeneration, Economy and Growth",Corporate Property and Land,Construction work A908,908105,Construction work,03/11/2021,3931195-VAL1LEEHOLMEREC,"90,866.55",JOHN WADE (HAULAGE) LTD.
"Regeneration, Economy and Growth",Corporate Property and Land,Construction work A908,908105,Construction work,03/11/2021,3931195-VAL2LEEHOLMEREC,"4,370.00",JOHN WADE (HAULAGE) LTD.
Children and Young Peoples Services,Head of Education and Skills,Fees,901002,Professional fees,03/11/2021,3931121-21043880,783.20,FAITHFUL & GOULD LTD.*
Children and Young Peoples Services,Head of Education and Skills,Transport,230007,Contract Hire,03/11/2021,3930974-92107,609.00,24/7 TAXI SERVICES (PETERLEE) LTD.
Children and Young Peoples Services,Head of Education and Skills,Transport,230006,Contract Hire,03/11/2021,3930974-92123,"1,190.00",24/7 TAXI SERVICES (PETERLEE) LTD.
Children and Young Peoples Services,Head of Education and Skills,Transport,230008,Contract Hire,03/11/2021,3930976-O530,"1,646.40",ABC & OUSTON CABS.
Adult and Health Services,Head of Adults,Transport,230005,Contract Hire,03/11/2021,3930976-O527,902.00,ABC & OUSTON CABS.
Children and Young Peoples Services,Head of Education and Skills,Transport,230007,Contract Hire,03/11/2021,3930977-AC2033,"1,590.00",ACE TAXIS (WINSTON).
Children and Young Peoples Services,Head of Education and Skills,Transport,230007,Contract Hire,03/11/2021,3930977-AC2034,"1,320.00",ACE TAXIS (WINSTON).
Children and Young Peoples Services,Head of Education and Skills,Transport,230008,Contract Hire,03/11/2021,3930990-OCT21-E202,"1,991.36",ANDREW PYGALL T/A ARP TAXIS.
Adult and Health Services,Head of Adults,Transport,230005,Contract Hire,03/11/2021,3930998-DCC5OCT21,916.20,ATLAS TAXIS BISHOP AUCKLAND.
Adult and Health Services,Head of Adults,Transport,230005,Contract Hire,03/11/2021,3930998-DCC13OCT2021,"1,333.92",ATLAS TAXIS BISHOP AUCKLAND.
Children and Young Peoples Services,Head of Education and Skills,Transport,230008,Contract Hire,03/11/2021,3930999-DCC11OCT21,"2,551.20",ATLAS TAXIS MANAGEMENT LTD.
Children and Young Peoples Services,Head of Education and Skills,Transport,230006,Contract Hire,03/11/2021,3931011-27-OCT21,"1,687.02",BELMONT TAXIS.
Children and Young Peoples Services,Head of Education and Skills,Transport,230009,Contract Hire,03/11/2021,3931013-1-OCT21,600.00,BENNETTS TAXIS.
Children and Young Peoples Services,Head of Education and Skills,Transport,230009,Contract Hire,03/11/2021,3931017-000465,909.92,BIRDS TAXIS LTD.
Children and Young Peoples Services,Head of Education and Skills,Transport,230006,Contract Hire,03/11/2021,3931017-000468,512.00,BIRDS TAXIS LTD.
Children and Young Peoples Services,Head of Education and Skills,Transport,230008,Contract Hire,03/11/2021,3931017-000466,"2,160.00",BIRDS TAXIS LTD.
Adult and Health Services,Head of Adults,Transport,230005,Contract Hire,03/11/2021,3931017-000471,646.00,BIRDS TAXIS LTD.
Adult and Health Services,Head of Adults,Transport,230005,Contract Hire,03/11/2021,3931017-000470,630.00,BIRDS TAXIS LTD.
Children and Young Peoples Services,Head of Education and Skills,Transport,230008,Contract Hire,03/11/2021,3931032-W030024,"2,088.32",C & R TAXIS.
Adult and Health Services,Head of Adults,Transport,230005,Contract Hire,03/11/2021,3931045-EAS199-OCT21,"1,050.00",CHRIS BELL T/A MEGAN`S TAXIS.
Children and Young Peoples Services,Head of Education and Skills,Transport,230034,Contract Hire,03/11/2021,3931049-5208/12,704.00,CHRISTOPHER MADDISON (TAXI).
Children and Young Peoples Services,Head of Education and Skills,Transport,230034,Contract Hire,03/11/2021,3931049-5260/02,992.00,CHRISTOPHER MADDISON (TAXI).
Children and Young Peoples Services,Head of Education and Skills,Transport,230034,Contract Hire,03/11/2021,3931049-5289/02,810.00,CHRISTOPHER MADDISON (TAXI).
Children and Young Peoples Services,Head of Education and Skills,Transport,230007,Contract Hire,03/11/2021,3931049-5409/07,704.00,CHRISTOPHER MADDISON (TAXI).
Children and Young Peoples Services,Head of Education and Skills,Transport,230008,Contract Hire,03/11/2021,3931054-INV-062,960.00,CLARE LYNSEY STEWART T/A K&C TAXIS.
Children and Young Peoples Services,Head of Education and Skills,Transport,230007,Contract Hire,03/11/2021,3931058-C/1131,"3,168.00",COCHRANES T/A KELVIN TRAVEL.
Children and Young Peoples Services,Head of Education and Skills,Transport,230007,Contract Hire,03/11/2021,3931058-C/11310,"5,340.00",COCHRANES T/A KELVIN TRAVEL.
Children and Young Peoples Services,Head of Education and Skills,Transport,230003,Contract Hire,03/11/2021,3931058-C/11312,"1,920.00",COCHRANES T/A KELVIN TRAVEL.
Children and Young Peoples Services,Head of Education and Skills,Transport,230003,Contract Hire,03/11/2021,3931058-C/11313,"2,220.00",COCHRANES T/A KELVIN TRAVEL.
Children and Young Peoples Services,Head of Education and Skills,Transport,230003,Contract Hire,03/11/2021,3931058-C/11314,"2,820.00",COCHRANES T/A KELVIN TRAVEL.
Dedicated Schools Grant BG0015,DSG High Needs Block,Transport,230009,Contract Hire,03/11/2021,3931072-61,"1,242.00",CRAIG MASSEY`S TAXIS.
Dedicated Schools Grant BG0015,DSG High Needs Block,Transport,230009,Contract Hire,03/11/2021,3931072-62,"1,105.20",CRAIG MASSEY`S TAXIS.
Children and Young Peoples Services,Head of Education and Skills,Transport,230008,Contract Hire,03/11/2021,3931072-60,"1,440.00",CRAIG MASSEY`S TAXIS.
Children and Young Peoples Services,Head of Education and Skills,Transport,230008,Contract Hire,03/11/2021,3931082-3662,"1,827.20",DAVES MINIBUSES.
Children and Young Peoples Services,Head of Education and Skills,Transport,230008,Contract Hire,03/11/2021,3931082-3663,"1,671.60",DAVES MINIBUSES.
Children and Young Peoples Services,Head of Education and Skills,Transport,230008,Contract Hire,03/11/2021,3931082-3664,"1,473.28",DAVES MINIBUSES.
Children and Young Peoples Services,Head of Education and Skills,Transport,230008,Contract Hire,03/11/2021,3931082-3665,"1,536.00",DAVES MINIBUSES.
Children and Young Peoples Services,Head of Education and Skills,Transport,230008,Contract Hire,03/11/2021,3931082-3661,"1,924.16",DAVES MINIBUSES.
Children and Young Peoples Services,Head of Education and Skills,Transport,230008,Contract Hire,03/11/2021,3931082-3666,"1,568.00",DAVES MINIBUSES.
Children and Young Peoples Services,Head of Education and Skills,Transport,230008,Contract Hire,03/11/2021,3931083-B38,"2,000.00",DAVID FOREMAN T/A DAVES TAXIS.
Children and Young Peoples Services,Head of Education and Skills,Transport,230008,Contract Hire,03/11/2021,3931083-B37,"2,160.00",DAVID FOREMAN T/A DAVES TAXIS.
Children and Young Peoples Services,Head of Education and Skills,Transport,230008,Contract Hire,03/11/2021,3931083-B39,"1,559.04",DAVID FOREMAN T/A DAVES TAXIS.
Children and Young Peoples Services,Head of Education and Skills,Transport,230034,Contract Hire,03/11/2021,3931141-40,"1,024.00",GARY BRUNTON`S TAXI.
Children and Young Peoples Services,Head of Education and Skills,Transport,230006,Contract Hire,03/11/2021,3931141-42,"1,205.60",GARY BRUNTON`S TAXI.
Children and Young Peoples Services,Head of Education and Skills,Transport,230007,Contract Hire,03/11/2021,3931142-5767,"1,327.68",GEM TRAVEL.
Children and Young Peoples Services,Head of Education and Skills,Transport,230003,Contract Hire,03/11/2021,3931142-5766,"3,209.60",GEM TRAVEL.
Children and Young Peoples Services,Head of Education and Skills,Transport,230006,Contract Hire,03/11/2021,3931158-56,"1,810.88",HARDIP SINGH MAHIL T/A AMBER CARS.
Children and Young Peoples Services,Head of Education and Skills,Transport,230008,Contract Hire,03/11/2021,3931180-6110-2021,"1,213.96",J YOUNG T/A VIP TAXIS.
Children and Young Peoples Services,Head of Education and Skills,Transport,230008,Contract Hire,03/11/2021,3931183-057AC,"2,313.92",JACKIES TAXIS.
Adult and Health Services,Head of Adults,Transport,230005,Contract Hire,03/11/2021,3931184-0828,"2,782.50",JACKSON`S TAXI.
Children and Young Peoples Services,Head of Education and Skills,Transport,230008,Contract Hire,03/11/2021,3931189-2021/17,"2,736.96",JAYS TAXIS/JOHN GARLAND (TAXIS).
Children and Young Peoples Services,Head of Education and Skills,Transport,230034,Contract Hire,03/11/2021,3931191-2235,885.00,JDS PRIVATE HIRE DURHAM.
Children and Young Peoples Services,Head of Education and Skills,Transport,230034,Contract Hire,03/11/2021,3931191-2234,"1,354.72",JDS PRIVATE HIRE DURHAM.
Children and Young Peoples Services,Head of Education and Skills,Transport,230012,Contract Hire,03/11/2021,3931191-2246,"1,470.00",JDS PRIVATE HIRE DURHAM.
Children and Young Peoples Services,Head of Education and Skills,Transport,230012,Contract Hire,03/11/2021,3931191-2248,"1,792.00",JDS PRIVATE HIRE DURHAM.
Children and Young Peoples Services,Head of Education and Skills,Transport,230012,Contract Hire,03/11/2021,3931191-2240,"1,137.28",JDS PRIVATE HIRE DURHAM.
Children and Young Peoples Services,Head of Education and Skills,Transport,230008,Contract Hire,03/11/2021,3931191-2245,"1,182.00",JDS PRIVATE HIRE DURHAM.
Children and Young Peoples Services,Head of Education and Skills,Transport,230008,Contract Hire,03/11/2021,3931191-2237,"2,446.96",JDS PRIVATE HIRE DURHAM.
Children and Young Peoples Services,Head of Education and Skills,Transport,230008,Contract Hire,03/11/2021,3931191-2250,"2,805.00",JDS PRIVATE HIRE DURHAM.
Children and Young Peoples Services,Head of Education and Skills,Transport,230008,Contract Hire,03/11/2021,3931191-2241,"1,696.00",JDS PRIVATE HIRE DURHAM.
Children and Young Peoples Services,Head of Education and Skills,Transport,230008,Contract Hire,03/11/2021,3931191-2251,"2,538.87",JDS PRIVATE HIRE DURHAM.
Children and Young Peoples Services,Head of Education and Skills,Transport,230008,Contract Hire,03/11/2021,3931191-2252,"2,133.00",JDS PRIVATE HIRE DURHAM.
Children and Young Peoples Services,Head of Education and Skills,Transport,230008,Contract Hire,03/11/2021,3931191-2247,"1,520.64",JDS PRIVATE HIRE DURHAM.
Children and Young Peoples Services,Head of Education and Skills,Transport,230008,Contract Hire,03/11/2021,3931191-2238,"2,240.00",JDS PRIVATE HIRE DURHAM.
Children and Young Peoples Services,Head of Education and Skills,Transport,230008,Contract Hire,03/11/2021,3931191-2242,"1,515.68",JDS PRIVATE HIRE DURHAM.
Children and Young Peoples Services,Head of Education and Skills,Transport,230008,Contract Hire,03/11/2021,3931191-2243,"1,696.00",JDS PRIVATE HIRE DURHAM.
Children and Young Peoples Services,Head of Education and Skills,Transport,230008,Contract Hire,03/11/2021,3931191-2244,"1,290.40",JDS PRIVATE HIRE DURHAM.
Children and Young Peoples Services,Head of Education and Skills,Transport,230008,Contract Hire,03/11/2021,3931191-2249,"1,088.00",JDS PRIVATE HIRE DURHAM.
Children and Young Peoples Services,Head of Education and Skills,Transport,230008,Contract Hire,03/11/2021,3931191-2253,"2,064.00",JDS PRIVATE HIRE DURHAM.
Children and Young Peoples Services,Head of Education and Skills,Transport,230008,Contract Hire,03/11/2021,3931191-2254,"1,440.00",JDS PRIVATE HIRE DURHAM.
Children and Young Peoples Services,Head of Education and Skills,Transport,230008,Contract Hire,03/11/2021,3931191-2236,"1,830.00",JDS PRIVATE HIRE DURHAM.
Children and Young Peoples Services,Head of Education and Skills,Transport,230035,Contract Hire,03/11/2021,3931196-0002-2067,"1,104.00",JORA SINGH TAXIS.
Children and Young Peoples Services,Head of Education and Skills,Transport,230006,Contract Hire,03/11/2021,3931196-0002-OCT21,548.00,JORA SINGH TAXIS.
Children and Young Peoples Services,Head of Education and Skills,Transport,230010,Contract Hire,03/11/2021,3931196-0002-BL004,"1,392.09",JORA SINGH TAXIS.
Children and Young Peoples Services,Head of Education and Skills,Transport,230008,Contract Hire,03/11/2021,3931196-0033,"2,110.08",JORA SINGH TAXIS.
Children and Young Peoples Services,Head of Education and Skills,Transport,230008,Contract Hire,03/11/2021,3931203-2-M071,"2,080.00",KD TAXIS.
Children and Young Peoples Services,Head of Education and Skills,Transport,230034,Contract Hire,03/11/2021,3931204-HEXAC0002,"1,348.00",KEV ARKLESS TAXIS.
Children and Young Peoples Services,Head of Education and Skills,Transport,230007,Contract Hire,03/11/2021,3931205-CTD0002/21,"1,200.00",KEVIN WALKER T/A CENTRAL TAXIS.
Children and Young Peoples Services,Head of Education and Skills,Transport,230008,Contract Hire,03/11/2021,3931215-0065,"1,920.00",LEWIS PATTISON T/A LEWIS TAXIS.
Children and Young Peoples Services,Head of Education and Skills,Transport,230007,Contract Hire,03/11/2021,3931217-4643,"1,165.08",LINCAB TAXIS.
Children and Young Peoples Services,Head of Education and Skills,Transport,230008,Contract Hire,03/11/2021,3931217-4619,"2,552.76",LINCAB TAXIS.
Children and Young Peoples Services,Head of Education and Skills,Transport,230008,Contract Hire,03/11/2021,3931218-4640,"1,944.96",LINCAB TAXIS.
Children and Young Peoples Services,Head of Education and Skills,Transport,230008,Contract Hire,03/11/2021,3931218-4642,"2,543.04",LINCAB TAXIS.
Children and Young Peoples Services,Head of Education and Skills,Transport,230008,Contract Hire,03/11/2021,3931218-4641,"2,142.08",LINCAB TAXIS.
Children and Young Peoples Services,Head of Education and Skills,Transport,230012,Contract Hire,03/11/2021,3931220-4967,"1,330.00",LOCAL TRANSPORT LTD.
Children and Young Peoples Services,Head of Education and Skills,Transport,230012,Contract Hire,03/11/2021,3931220-5006,"1,120.00",LOCAL TRANSPORT LTD.
Children and Young Peoples Services,Head of Education and Skills,Transport,230008,Contract Hire,03/11/2021,3931220-4966,"1,620.00",LOCAL TRANSPORT LTD.
Children and Young Peoples Services,Head of Education and Skills,Transport,230008,Contract Hire,03/11/2021,3931220-4968,"1,800.00",LOCAL TRANSPORT LTD.
Children and Young Peoples Services,Head of Education and Skills,Transport,230008,Contract Hire,03/11/2021,3931220-5003,"1,357.84",LOCAL TRANSPORT LTD.
Children and Young Peoples Services,Head of Education and Skills,Transport,230008,Contract Hire,03/11/2021,3931220-5004,"1,600.00",LOCAL TRANSPORT LTD.
Children and Young Peoples Services,Head of Education and Skills,Transport,230008,Contract Hire,03/11/2021,3931220-5005,"1,440.00",LOCAL TRANSPORT LTD.
Children and Young Peoples Services,Head of Education and Skills,Transport,230006,Contract Hire,03/11/2021,3931227-56,765.00,M&C`S CABS LTD.
Adult and Health Services,Head of Adults,Transport,230005,Contract Hire,03/11/2021,3931236-000060,"1,100.00",MARK HUSBAND T/A TEAK`S TAXIS.
Children and Young Peoples Services,Head of Education and Skills,Transport,230008,Contract Hire,03/11/2021,3931250-181,852.20,MR A MCKENNA T/A ANDY CABS.
Children and Young Peoples Services,Head of Education and Skills,Transport,230034,Contract Hire,03/11/2021,3931251-244,"1,200.00",MR BRIAN JOHNSON T/A BRYS TAXIS.
Children and Young Peoples Services,Head of Education and Skills,Transport,230007,Contract Hire,03/11/2021,3931259-ESH1021-B,523.70,MR STUART SCOTT T/A AIRPORT CARS DURHAM
Children and Young Peoples Services,Head of Education and Skills,Transport,230006,Contract Hire,03/11/2021,3931261-CBC02,833.82,MR THOMAS G GRIFFITHS T/A TNL TAXIS.
Adult and Health Services,Head of Adults,Transport,230005,Contract Hire,03/11/2021,3931263-058,935.00,MRS SAMANTHA MACKENZIE T/A SAM`S TAXIS.
Children and Young Peoples Services,Head of Education and Skills,Transport,230007,Contract Hire,03/11/2021,3931294-1109-3037,"1,760.00",PBS TRAVEL LTD.
Children and Young Peoples Services,Head of Education and Skills,Transport,230007,Contract Hire,03/11/2021,3931294-1109-3065,"1,584.00",PBS TRAVEL LTD.
Children and Young Peoples Services,Head of Education and Skills,Transport,230007,Contract Hire,03/11/2021,3931294-1109-3058,"1,920.00",PBS TRAVEL LTD.
Children and Young Peoples Services,Head of Education and Skills,Transport,230008,Contract Hire,03/11/2021,3931300-N053-OCT21,"1,120.00",PETER`S PRIVATE HIRE/PETER BEST.
Adult and Health Services,Head of Adults,Transport,230005,Contract Hire,03/11/2021,3931302-INVOICE0015,660.00,PHIL BELL EXECUTIVE TRAVEL.
Children and Young Peoples Services,Head of Education and Skills,Transport,230034,Contract Hire,03/11/2021,3931304-43918,"1,824.00",PHOENIX TAXIS T/A PRATT`S TAXIS.
Children and Young Peoples Services,Head of Education and Skills,Transport,230034,Contract Hire,03/11/2021,3931304-43921,816.00,PHOENIX TAXIS T/A PRATT`S TAXIS.
Children and Young Peoples Services,Head of Education and Skills,Transport,230034,Contract Hire,03/11/2021,3931304-43922,"1,223.22",PHOENIX TAXIS T/A PRATT`S TAXIS.
Children and Young Peoples Services,Head of Education and Skills,Transport,230034,Contract Hire,03/11/2021,3931304-43923,896.00,PHOENIX TAXIS T/A PRATT`S TAXIS.
Children and Young Peoples Services,Head of Education and Skills,Transport,230007,Contract Hire,03/11/2021,3931304-43920,768.00,PHOENIX TAXIS T/A PRATT`S TAXIS.
Children and Young Peoples Services,Head of Education and Skills,Transport,230007,Contract Hire,03/11/2021,3931304-43919,575.68,PHOENIX TAXIS T/A PRATT`S TAXIS.
Children and Young Peoples Services,Head of Education and Skills,Transport,230007,Contract Hire,03/11/2021,3931304-43934,624.68,PHOENIX TAXIS T/A PRATT`S TAXIS.
Children and Young Peoples Services,Head of Education and Skills,Transport,230009,Contract Hire,03/11/2021,3931304-43924,"1,216.00",PHOENIX TAXIS T/A PRATT`S TAXIS.
Children and Young Peoples Services,Head of Education and Skills,Transport,230006,Contract Hire,03/11/2021,3931304-43933,640.00,PHOENIX TAXIS T/A PRATT`S TAXIS.
Children and Young Peoples Services,Head of Education and Skills,Transport,230016,Contract Hire,03/11/2021,3931328-17690,700.00,RAPID MINIBUSES.
Adult and Health Services,Head of Adults,Transport,230005,Contract Hire,03/11/2021,3931328-17685,"1,476.00",RAPID MINIBUSES.
Adult and Health Services,Head of Adults,Transport,230005,Contract Hire,03/11/2021,3931328-17686,"1,043.00",RAPID MINIBUSES.
Children and Young Peoples Services,Head of Education and Skills,Transport,230006,Contract Hire,03/11/2021,3931330-001A-OCT21,530.00,RAYMOND CHURNSIDE T/A S & L TAXI.
Children and Young Peoples Services,Head of Education and Skills,Transport,230006,Contract Hire,03/11/2021,3931331-001-JULY,695.00,RAYMOND CHURNSIDE T/A S & L TAXI.
Children and Young Peoples Services,Head of Education and Skills,Transport,230006,Contract Hire,03/11/2021,3931331-001-OCT21,900.00,RAYMOND CHURNSIDE T/A S & L TAXI.
Children and Young Peoples Services,Head of Education and Skills,Transport,230012,Contract Hire,03/11/2021,3931252-E054-OCT21,"1,635.00",REDACTED - PAYMENT TO INDIVIDUAL
Children and Young Peoples Services,Head of Education and Skills,Transport,230012,Contract Hire,03/11/2021,3931255-01021,708.19,REDACTED - PAYMENT TO INDIVIDUAL
Children and Young Peoples Services,Head of Education and Skills,Transport,230008,Contract Hire,03/11/2021,3931351-W014/27,"2,375.00",S & S TRAVEL LTD.
Children and Young Peoples Services,Head of Education and Skills,Transport,230008,Contract Hire,03/11/2021,3931351-S009/26,"2,217.60",S & S TRAVEL LTD.
Children and Young Peoples Services,Head of Education and Skills,Transport,230008,Contract Hire,03/11/2021,3931351-W03226,"2,331.20",S & S TRAVEL LTD.
Children and Young Peoples Services,Head of Education and Skills,Transport,230008,Contract Hire,03/11/2021,3931351-W036/02,"2,665.60",S & S TRAVEL LTD.
Children and Young Peoples Services,Head of Education and Skills,Transport,230008,Contract Hire,03/11/2021,3931351-W178/07,"1,280.00",S & S TRAVEL LTD.
Children and Young Peoples Services,Head of Education and Skills,Transport,230008,Contract Hire,03/11/2021,3931351-S027/26,"1,740.80",S & S TRAVEL LTD.
Children and Young Peoples Services,Head of Education and Skills,Transport,230008,Contract Hire,03/11/2021,3931351-W056/26-OCT21,"1,760.00",S & S TRAVEL LTD.
Children and Young Peoples Services,Head of Education and Skills,Transport,230008,Contract Hire,03/11/2021,3931351-W067/27,"2,476.80",S & S TRAVEL LTD.
Children and Young Peoples Services,Head of Education and Skills,Transport,230008,Contract Hire,03/11/2021,3931351-W076/26,"2,006.40",S & S TRAVEL LTD.
Adult and Health Services,Head of Adults,Transport,230005,Contract Hire,03/11/2021,3931351-SED112/31,"1,743.13",S & S TRAVEL LTD.
Children and Young Peoples Services,Head of Education and Skills,Transport,230008,Contract Hire,03/11/2021,3931354-AGB1002,"1,564.80",SAFELINE TRAVEL.
Children and Young Peoples Services,Head of Education and Skills,Transport,230008,Contract Hire,03/11/2021,3931354-AGB2002,"1,613.74",SAFELINE TRAVEL.
Children and Young Peoples Services,Head of Education and Skills,Transport,230007,Contract Hire,03/11/2021,3931375-2070,"1,408.00",SIMONS TAXIS.
Children and Young Peoples Services,Head of Education and Skills,Transport,230007,Contract Hire,03/11/2021,3931375-2072,"1,368.00",SIMONS TAXIS.
Children and Young Peoples Services,Head of Education and Skills,Transport,230008,Contract Hire,03/11/2021,3931379-AM202112,"1,115.20",SPENNYMOOR TAXIS.
Children and Young Peoples Services,Head of Education and Skills,Transport,230008,Contract Hire,03/11/2021,3931379-AL2021010,"1,927.50",SPENNYMOOR TAXIS.
Children and Young Peoples Services,Head of Education and Skills,Transport,230008,Contract Hire,03/11/2021,3931379-LTDD202107,"2,304.00",SPENNYMOOR TAXIS.
Children and Young Peoples Services,Head of Education and Skills,Transport,230008,Contract Hire,03/11/2021,3931379-PM202111,"1,952.00",SPENNYMOOR TAXIS.
Children and Young Peoples Services,Head of Education and Skills,Transport,230008,Contract Hire,03/11/2021,3931379-AAN202109,"1,504.00",SPENNYMOOR TAXIS.
Children and Young Peoples Services,Head of Education and Skills,Transport,230008,Contract Hire,03/11/2021,3931379-NUB202108,"1,600.00",SPENNYMOOR TAXIS.
Children and Young Peoples Services,Head of Education and Skills,Transport,230003,Contract Hire,03/11/2021,3931385-57859,"2,688.00",STANLEY TRAVEL (NORTH EAST) LTD.
Children and Young Peoples Services,Head of Education and Skills,Transport,230003,Contract Hire,03/11/2021,3931385-57860,"2,400.00",STANLEY TRAVEL (NORTH EAST) LTD.
Children and Young Peoples Services,Head of Education and Skills,Transport,230003,Contract Hire,03/11/2021,3931385-57861,"2,960.00",STANLEY TRAVEL (NORTH EAST) LTD.
Children and Young Peoples Services,Head of Education and Skills,Transport,230003,Contract Hire,03/11/2021,3931385-57862,"2,864.00",STANLEY TRAVEL (NORTH EAST) LTD.
Children and Young Peoples Services,Head of Education and Skills,Transport,230003,Contract Hire,03/11/2021,3931385-57864,"2,688.00",STANLEY TRAVEL (NORTH EAST) LTD.
Children and Young Peoples Services,Head of Education and Skills,Transport,230003,Contract Hire,03/11/2021,3931385-57865,"3,200.00",STANLEY TRAVEL (NORTH EAST) LTD.
Children and Young Peoples Services,Head of Education and Skills,Transport,230007,Contract Hire,03/11/2021,3931389-6618,"1,492.50",STEPHEN MAUDE LTD T/A MAUDES COACHES.
Children and Young Peoples Services,Head of Education and Skills,Transport,230007,Contract Hire,03/11/2021,3931389-6619,"4,441.60",STEPHEN MAUDE LTD T/A MAUDES COACHES.
Children and Young Peoples Services,Head of Education and Skills,Transport,230010,Contract Hire,03/11/2021,3931392-20210006,"1,840.00",STEVE`S CABS (TAXIS).
Children and Young Peoples Services,Head of Education and Skills,Transport,230007,Contract Hire,03/11/2021,3931404-3910WA,"1,541.44",T MOORE & SON.
Children and Young Peoples Services,Head of Education and Skills,Transport,230003,Contract Hire,03/11/2021,3931404-4010SL,"1,512.00",T MOORE & SON.
Children and Young Peoples Services,Head of Education and Skills,Transport,230003,Contract Hire,03/11/2021,3931404-3810SB,984.00,T MOORE & SON.
Children and Young Peoples Services,Head of Education and Skills,Transport,230006,Contract Hire,03/11/2021,3931404-3710BC,"1,185.00",T MOORE & SON.
Children and Young Peoples Services,Head of Education and Skills,Transport,230006,Contract Hire,03/11/2021,3931404-4110SF,550.80,T MOORE & SON.
Adult and Health Services,Head of Adults,Transport,230005,Contract Hire,03/11/2021,3931404-4210AP,966.00,T MOORE & SON.
Children and Young Peoples Services,Head of Education and Skills,Transport,230034,Contract Hire,03/11/2021,3931425-1289-OCT,702.08,THOMAS GLEN.
Children and Young Peoples Services,Head of Education and Skills,Transport,230006,Contract Hire,03/11/2021,3931425-F871-OCT,780.00,THOMAS GLEN.
Adult and Health Services,Head of Adults,Transport,230005,Contract Hire,03/11/2021,3931425-DM223-OCT,928.00,THOMAS GLEN.
Children and Young Peoples Services,Head of Education and Skills,Transport,230007,Contract Hire,03/11/2021,3931447-13-3334,880.00,WALTONS TAXIS.
Children and Young Peoples Services,Head of Education and Skills,Transport,230006,Contract Hire,03/11/2021,3931447-12-F701,870.00,WALTONS TAXIS.
Children and Young Peoples Services,Head of Education and Skills,Transport,230008,Contract Hire,03/11/2021,3931451-0003159,"2,019.20",WATSON OF SPENNYMOOR.
Children and Young Peoples Services,Head of Education and Skills,Transport,230008,Contract Hire,03/11/2021,3931451-0003160,"1,766.40",WATSON OF SPENNYMOOR.
Children and Young Peoples Services,Head of Education and Skills,Transport,230006,Contract Hire,03/11/2021,3931455-WESTLEA221021,"1,360.00",WESTLEA TAXIS.
Children and Young Peoples Services,Head of Education and Skills,Transport,230008,Contract Hire,03/11/2021,3931462-02-N029-OCT21,"2,640.00",WISS TAXIS.
Children and Young Peoples Services,Head of Education and Skills,Transport,230008,Contract Hire,03/11/2021,3931462-02-N080-OCT21,"2,700.00",WISS TAXIS.
Neighbourhoods and Climate Change,Technical Services CM0300,Third Party Payments,460251,Contract Payments,03/11/2021,3931144-INV-000538,"25,543.77",GINGER LEHMANN LTD.
"Regeneration, Economy and Growth",Business Durham CL0850,Third Party Payments,460305,Contract Payments,03/11/2021,3931440-RED-11-2021-027,"1,260.00",UMI COMMERCIAL LTD.
Neighbourhoods and Climate Change,Technical Services CM0300,Supplies and Services,304221,Equipment and Materials,03/11/2021,3930979-32201884,"1,383.57",AGGREGATE INDUSTRIES UK LTD.
"Regeneration, Economy and Growth",Corporate Property and Land,Supplies and Services,304221,Equipment and Materials,03/11/2021,3931001-33423,"1,320.00",AYCLIFFE FABRICATIONS LTD.
"Regeneration, Economy and Growth",Corporate Property and Land,Supplies and Services,304221,Equipment and Materials,03/11/2021,3931036-10601631,"2,770.00",CARPET & FLOORING (TRADING) LTD.
"Regeneration, Economy and Growth",Corporate Property and Land,Supplies and Services,304221,Equipment and Materials,03/11/2021,3931103-059-286878,720.00,EDMUNDSON ELECTRICAL LTD.
Neighbourhoods and Climate Change,Environmental Services,Supplies and Services,304403,Equipment and Materials,03/11/2021,3931120-DI138974,685.67,EXPRESS MOTOR FACTORS (NE) LTD.
Resources BK0010,Digital and Customer Services,Supplies and Services,304303,Equipment and Materials,03/11/2021,3931154-INV0184392,"1,392.83",GVAV LTD.
Adult and Health Services,Head of Adults,Supplies and Services,304259,Equipment and Materials,03/11/2021,3931175-51193772,"3,000.00",INDEED IRELAND OPERATIONS LTD.
Neighbourhoods and Climate Change,Technical Services CM0300,Supplies and Services,304221,Equipment and Materials,03/11/2021,3931199-0119/00498645,"1,326.00",JT DOVE LTD.
"Regeneration, Economy and Growth",Corporate Property and Land,Supplies and Services,304221,Equipment and Materials,03/11/2021,3931199-0213/00500912,"1,023.66",JT DOVE LTD.
Neighbourhoods and Climate Change,Technical Services CM0300,Supplies and Services,304358,Equipment and Materials,03/11/2021,3931350-2736,777.00,S & R LANDSCAPES.
Neighbourhoods and Climate Change,Technical Services CM0300,Supplies and Services,304358,Equipment and Materials,03/11/2021,3931350-2737,700.00,S & R LANDSCAPES.
Neighbourhoods and Climate Change,Technical Services CM0300,Supplies and Services,304358,Equipment and Materials,03/11/2021,3931350-2751,854.00,S & R LANDSCAPES.
Neighbourhoods and Climate Change,Technical Services CM0300,Supplies and Services,304358,Equipment and Materials,03/11/2021,3931350-2848,"1,202.00",S & R LANDSCAPES.
Neighbourhoods and Climate Change,Technical Services CM0300,Supplies and Services,304358,Equipment and Materials,03/11/2021,3931350-2852,"1,040.00",S & R LANDSCAPES.
Neighbourhoods and Climate Change,Technical Services CM0300,Supplies and Services,304358,Equipment and Materials,03/11/2021,3931350-2854,838.50,S & R LANDSCAPES.
Neighbourhoods and Climate Change,Technical Services CM0300,Supplies and Services,304358,Equipment and Materials,03/11/2021,3931350-2855,"1,006.50",S & R LANDSCAPES.
Neighbourhoods and Climate Change,Technical Services CM0300,Supplies and Services,304358,Equipment and Materials,03/11/2021,3931350-2856,812.50,S & R LANDSCAPES.
Neighbourhoods and Climate Change,Technical Services CM0300,Supplies and Services,304358,Equipment and Materials,03/11/2021,3931350-2857,663.00,S & R LANDSCAPES.
Neighbourhoods and Climate Change,Technical Services CM0300,Supplies and Services,304358,Equipment and Materials,03/11/2021,3931350-2858,979.50,S & R LANDSCAPES.
Neighbourhoods and Climate Change,Technical Services CM0300,Supplies and Services,304358,Equipment and Materials,03/11/2021,3931350-2859,777.00,S & R LANDSCAPES.
Neighbourhoods and Climate Change,Technical Services CM0300,Supplies and Services,304358,Equipment and Materials,03/11/2021,3931350-2869,840.00,S & R LANDSCAPES.
Neighbourhoods and Climate Change,Technical Services CM0300,Supplies and Services,304358,Equipment and Materials,03/11/2021,3931350-2870,777.00,S & R LANDSCAPES.
Neighbourhoods and Climate Change,Technical Services CM0300,Supplies and Services,304358,Equipment and Materials,03/11/2021,3931350-2872,795.50,S & R LANDSCAPES.
Neighbourhoods and Climate Change,Technical Services CM0300,Supplies and Services,304358,Equipment and Materials,03/11/2021,3931350-2873,"1,006.50",S & R LANDSCAPES.
Neighbourhoods and Climate Change,Technical Services CM0300,Supplies and Services,304358,Equipment and Materials,03/11/2021,3931350-2874,996.00,S & R LANDSCAPES.
Neighbourhoods and Climate Change,Technical Services CM0300,Supplies and Services,304358,Equipment and Materials,03/11/2021,3931350-2879,572.00,S & R LANDSCAPES.
Neighbourhoods and Climate Change,Technical Services CM0300,Supplies and Services,304221,Equipment and Materials,03/11/2021,3931409-9044317092,977.50,TARMAC TRADING LTD.
"Regeneration, Economy and Growth",Corporate Property and Land,Supplies and Services,304221,Equipment and Materials,03/11/2021,3931413-P38920,546.00,TERRY GROUP LTD.
Neighbourhoods and Climate Change,Environmental Services,Supplies and Services,304259,Equipment and Materials,03/11/2021,3931436-IN0156771,557.20,TUDOR (UK) LTD T/A TUDOR ENVIRONMENTAL.
"Regeneration, Economy and Growth",Development and Housing,Supplies and Services,308011,Furniture,03/11/2021,3931070-REG008,539.00,COUNTY DURHAM FURNITURE HELP SCHEME (CDFHS).
"Regeneration, Economy and Growth",Corporate Property and Land,Supplies and Services,384199,Miscellaneous Expenses,03/11/2021,3930997-21042321,"6,990.00",ATKINS GLOBAL.
"Regeneration, Economy and Growth",Culture Sport and Tourism,Supplies and Services,384199,Miscellaneous Expenses,03/11/2021,3931041-INV-0710,"3,000.00",CHANNELL EVENTS LTD.
Adult and Health Services,Public Health CC0450,Supplies and Services,384899,Miscellaneous Expenses,03/11/2021,3931069-3910019208,"47,646.00",COUNTY DURHAM & DARLINGTON NHS FOUNDATION TRUST (CDDFT).
Adult and Health Services,Public Health CC0450,Supplies and Services,384899,Miscellaneous Expenses,03/11/2021,3931069-3980040092,"57,686.00",COUNTY DURHAM & DARLINGTON NHS FOUNDATION TRUST (CDDFT).
Children and Young Peoples Services,Head of Education and Skills,Supplies and Services,384199,Miscellaneous Expenses,03/11/2021,3931150-INV-000250,800.00,GO WELL.
"Regeneration, Economy and Growth",Development and Housing,Supplies and Services,384899,Miscellaneous Expenses,03/11/2021,3931157-ND014/11,"6,169.82",HANDCRAFTED PROJECTS.
Children and Young Peoples Services,Head of Early Help Inclusion & Vulnerable Children.,Supplies and Services,384302,Miscellaneous Expenses,03/11/2021,3931202-238003,888.89,KARTING NORTH EAST.
Children and Young Peoples Services,Head of Education and Skills,Supplies and Services,384199,Miscellaneous Expenses,03/11/2021,3931219-201,900.00,LK HEALTH & WELLBEING.
"Regeneration, Economy and Growth",Culture Sport and Tourism,Supplies and Services,384302,Miscellaneous Expenses,03/11/2021,3931224-2021/003,900.00,REDACTED - PAYMENT TO INDIVIDUAL
"Regeneration, Economy and Growth",Culture Sport and Tourism,Supplies and Services,384302,Miscellaneous Expenses,03/11/2021,3931391-21014,"2,400.00",REDACTED - PAYMENT TO INDIVIDUAL
"Regeneration, Economy and Growth",Culture Sport and Tourism,Supplies and Services,384199,Miscellaneous Expenses,03/11/2021,3931268-02/21,"2,100.00",REDACTED - PAYMENT TO INDIVIDUAL
"Regeneration, Economy and Growth",Corporate Property and Land,Supplies and Services,384199,Miscellaneous Expenses,03/11/2021,3931347-TEC583172,"7,430.00",RPS CONSULTING SERVICES LTD.
"Regeneration, Economy and Growth",Development and Housing,Supplies and Services,384199,Miscellaneous Expenses,03/11/2021,3931377-2021-569,"29,190.00",SOLMEK LTD.
"Regeneration, Economy and Growth",Transport and Contracted Services,Supplies and Services,384199,Miscellaneous Expenses,03/11/2021,3931401-9931,750.00,SURVEY & MARKETING SERVICES LTD T/A SMS MARKET RESEARCH.
"Regeneration, Economy and Growth",Business Durham CL0850,Third Party Payments,440999,Other third party payments E440,03/11/2021,3931009-DBRG-11-2021-06,"1,800.00",BEAUTY TRAINING NORTHEAST.
"Regeneration, Economy and Growth",Business Durham CL0850,Third Party Payments,440999,Other third party payments E440,03/11/2021,3931009-DBRG-11-2021-07,"1,222.43",BEAUTY TRAINING NORTHEAST.
Children and Young Peoples Services,Head of Education and Skills,Third Party Payments,440999,Other third party payments E440,03/11/2021,3931060-CTA/61,"1,950.00",COMMUNICATORS TRAINING ASSOCIATES LTD.
"Regeneration, Economy and Growth",Business Durham CL0850,Third Party Payments,440999,Other third party payments E440,03/11/2021,3931071-DBRG-11-2021-02,"1,309.50",CRAGGWOOD LEISURE LTD.
"Regeneration, Economy and Growth",Business Durham CL0850,Third Party Payments,440999,Other third party payments E440,03/11/2021,3931071-DBRG-11-2021-03,"1,091.96",CRAGGWOOD LEISURE LTD.
"Regeneration, Economy and Growth",Business Durham CL0850,Third Party Payments,440999,Other third party payments E440,03/11/2021,3931071-DBRG-11-2021-04,549.73,CRAGGWOOD LEISURE LTD.
"Regeneration, Economy and Growth",Business Durham CL0850,Third Party Payments,440999,Other third party payments E440,03/11/2021,3931071-DBRG-11-2021-05,839.60,CRAGGWOOD LEISURE LTD.
Children and Young Peoples Services,Head of Education and Skills,Third Party Payments,440999,Other third party payments E440,03/11/2021,3931153-M642,"3,120.00",GROUNDWORK NORTH EAST.
Children and Young Peoples Services,Head of Education and Skills,Third Party Payments,440999,Other third party payments E440,03/11/2021,3931170-156/22/0724,"9,652.50",HUMANKIND CHARITY.
Children and Young Peoples Services,Head of Childrens Social Care,Third Party Payments,440037,Other third party payments E440,03/11/2021,3931452-CPPNFERRYHILL-BMOON/JULY/AUGUST01,882.00,WAYMAN DEVELOPMENTS LTD T/A CHILDSPLAY PRIVATE NURSERY.
"Regeneration, Economy and Growth",Development and Housing,Supplies and Services,340001,Postages E340,03/11/2021,3931270-7032600343,"4,179.00",NHS DDES CCG.
Neighbourhoods and Climate Change,Environmental Services,Supplies and Services,324117,Provisions E324,03/11/2021,3931179-14882,824.80,J MORAN LTD T/A CAFFE VINCI.
Children and Young Peoples Services,Head of Childrens Social Care,Transport,235073,Public Transport,03/11/2021,3931464-45243,982.20,WRIXON SECURITY SERVICES LTD T/A WRIXON CARE.
Adult and Health Services,Head of Adults,Third Party Payments,470101,Purchase of Care,03/11/2021,3930975-UPLIFTPAYMENTPP7-9,"1,502.39",A CHARLES THOMAS (CARE) LTD.
Adult and Health Services,Head of Adults,Third Party Payments,470101,Purchase of Care,03/11/2021,3930981-UPLIFTPAYMENTPP7-6,"1,610.64",AKARI CARE LTD.
Adult and Health Services,Head of Adults,Third Party Payments,470101,Purchase of Care,03/11/2021,3930982-UPLIFTPAYMENTPP7-96,"1,736.54",AKARI CARE LTD.
Adult and Health Services,Head of Adults,Third Party Payments,470101,Purchase of Care,03/11/2021,3930986-UPLIFTPAYMENTPP7-21,"2,215.82",ALLIANCE CARE (TRENDLEWOOD) LTD.
Adult and Health Services,Head of Adults,Third Party Payments,470101,Purchase of Care,03/11/2021,3930989-UPLIFTPAYMENTPP7-92,"1,081.48",ANCHOR HANOVER GROUP.
Adult and Health Services,Head of Adults,Third Party Payments,470101,Purchase of Care,03/11/2021,3930996-UPLIFTPAYMENTPP7-79,841.29,ASCOT CARE NORTH EAST LTD..
Adult and Health Services,Head of Adults,Third Party Payments,474101,Purchase of Care,03/11/2021,3931005-UPLIFTPAYMENTPP7-44,"1,186.13",BARCHESTER HEALTHCARE HOMES LTD.
Adult and Health Services,Head of Adults,Third Party Payments,470101,Purchase of Care,03/11/2021,3931020-UPLIFTPAYMENTPP7-19,"1,784.39",BONDCARE WILLINGTON LTD.
Adult and Health Services,Head of Adults,Third Party Payments,470101,Purchase of Care,03/11/2021,3931021-UPLIFTPAYMENTPP7-62,"1,359.27",BONDCARE WILLINGTON LTD.
Adult and Health Services,Head of Adults,Third Party Payments,470101,Purchase of Care,03/11/2021,3931022-UPLIFTPAYMENTPP7-73,"2,065.53",BONDCARE WILLINGTON LTD.
Adult and Health Services,Head of Adults,Third Party Payments,470101,Purchase of Care,03/11/2021,3931028-UPLIFTPAYMENTPP7-65,902.50,BROOMHOUSE CARE LTD.
Adult and Health Services,Head of Adults,Third Party Payments,470101,Purchase of Care,03/11/2021,3931034-UPLIFTPAYMENTPP7-86,"1,133.53",CAREWELL (HEALTH CARE) LTD.
Adult and Health Services,Head of Adults,Third Party Payments,470101,Purchase of Care,03/11/2021,3931065-001,768.00,COUNT CARE SERVICES LTD.
Adult and Health Services,Head of Adults,Third Party Payments,470101,Purchase of Care,03/11/2021,3931065-002,"1,396.00",COUNT CARE SERVICES LTD.
Adult and Health Services,Head of Adults,Third Party Payments,474101,Purchase of Care,03/11/2021,3931067-UPLIFTPAYMENTPP7-98,"1,287.53",COUNTRYWIDE CARE HOMES (2) LTD.
Adult and Health Services,Head of Adults,Third Party Payments,470101,Purchase of Care,03/11/2021,3931066-UPLIFTPAYMENTPP7-74,"1,804.68",COUNTRYWIDE CARE HOMES (2) LTD.
Adult and Health Services,Head of Adults,Third Party Payments,470101,Purchase of Care,03/11/2021,3931068-UPLIFTPAYMENTPP7-40,897.25,COUNTRYWIDE CARE HOMES (2) LTD.
Adult and Health Services,Head of Adults,Third Party Payments,470101,Purchase of Care,03/11/2021,3931073-UPLIFTPAYMENTPP7-27,929.45,CRAIGARRAN LTD.
Adult and Health Services,Head of Adults,Third Party Payments,470101,Purchase of Care,03/11/2021,3931076-UPLIFTPAYMENTPP7-28,843.01,CROFT HOUSE (CARE) LTD.
Adult and Health Services,Head of Adults,Third Party Payments,470101,Purchase of Care,03/11/2021,3931077-UPLIFTPAYMENTPP7-77,"2,568.48",CROWN CARE VI LTD.
Adult and Health Services,Head of Adults,Third Party Payments,470101,Purchase of Care,03/11/2021,3931081-UPLIFTPAYMENTPP7-93,"1,321.05",D3 CARE LTD.
Adult and Health Services,Head of Adults,Third Party Payments,470101,Purchase of Care,03/11/2021,3931090-UPLIFTPAYMENTPP7-33,742.43,DEVONSHIRE HOUSE CARE LTD.
Adult and Health Services,Head of Adults,Third Party Payments,470101,Purchase of Care,03/11/2021,3931093-UPLIFTPAYMENTPP7-34,"2,366.26",DIPTON CARE HOME LTD.
Adult and Health Services,Head of Adults,Third Party Payments,474101,Purchase of Care,03/11/2021,3931097-UPLIFTPAYMENTPP7-63,"1,032.50",DURHAM CARELINE LTD.
Adult and Health Services,Head of Adults,Third Party Payments,470101,Purchase of Care,03/11/2021,3931105-UPLIFTPAYMENTPP7-35,812.74,ELBA CARE LTD.
Adult and Health Services,Head of Adults,Third Party Payments,478151,Purchase of Care,03/11/2021,3931107-KWVOIDS/PERIOD7-2021,"1,933.20",EMBRACING CARE.
Adult and Health Services,Head of Adults,Third Party Payments,478151,Purchase of Care,03/11/2021,3931108-DURHAMROADP7-2021,"2,354.52",EMBRACING CARE.
Adult and Health Services,Head of Adults,Third Party Payments,478151,Purchase of Care,03/11/2021,3931108-EASTFIELDSP7-2021,"1,015.45",EMBRACING CARE.
Adult and Health Services,Head of Adults,Third Party Payments,478151,Purchase of Care,03/11/2021,3931108-ETHERLEYP7-2021,"2,031.08",EMBRACING CARE.
Adult and Health Services,Head of Adults,Third Party Payments,478151,Purchase of Care,03/11/2021,3931108-GREENLANEPERIOD7-2021,"1,674.40",EMBRACING CARE.
Adult and Health Services,Head of Adults,Third Party Payments,478151,Purchase of Care,03/11/2021,3931108-LDCONTPERIOD7-2021,"3,962.40",EMBRACING CARE.
Adult and Health Services,Head of Adults,Third Party Payments,478151,Purchase of Care,03/11/2021,3931108-STGODRICS3PERIOD7-2021,"1,861.96",EMBRACING CARE.
Adult and Health Services,Head of Adults,Third Party Payments,470101,Purchase of Care,03/11/2021,3931117-UPLIFTPAYMENTPP7-1,"1,421.50",ESSENTIAL CARE & SUPPORT LTD.
Adult and Health Services,Head of Adults,Third Party Payments,478151,Purchase of Care,03/11/2021,3931116-21362,"1,091.16",ESSENTIAL CARE & SUPPORT LTD.
Adult and Health Services,Head of Adults,Third Party Payments,478151,Purchase of Care,03/11/2021,3931116-21385,"2,520.00",ESSENTIAL CARE & SUPPORT LTD.
Adult and Health Services,Head of Adults,Third Party Payments,478151,Purchase of Care,03/11/2021,3931117-21359,"1,091.16",ESSENTIAL CARE & SUPPORT LTD.
Adult and Health Services,Head of Adults,Third Party Payments,470101,Purchase of Care,03/11/2021,3931128-UPLIFTPAYMENTPP7-43,"1,344.28",FOUR SEASONS (NO 9) LTD.
Adult and Health Services,Head of Adults,Third Party Payments,470101,Purchase of Care,03/11/2021,3931129-UPLIFTPAYMENTPP7-71,"1,060.54",FOUR SEASONS HOMES NO 1 LTD.
Adult and Health Services,Head of Adults,Third Party Payments,470101,Purchase of Care,03/11/2021,3931136-UPLIFTPAYMENTPP7-59,865.70,GAINFORD CARE HOMES LTD.
Adult and Health Services,Head of Adults,Third Party Payments,470101,Purchase of Care,03/11/2021,3931136-UPLIFTPAYMENTPP7-60,"1,235.39",GAINFORD CARE HOMES LTD.
Adult and Health Services,Head of Adults,Third Party Payments,470101,Purchase of Care,03/11/2021,3931137-UPLIFTPAYMENTPP7-56,"1,786.06",GAINFORD CARE HOMES LTD.
Adult and Health Services,Head of Adults,Third Party Payments,470101,Purchase of Care,03/11/2021,3931138-UPLIFTPAYMENTPP7-55,"1,216.44",GAINFORD CARE HOMES LTD.
Adult and Health Services,Head of Adults,Third Party Payments,470101,Purchase of Care,03/11/2021,3931139-UPLIFTPAYMENTPP7-58,"1,492.96",GAINFORD CARE HOMES LTD.
Adult and Health Services,Head of Adults,Third Party Payments,470101,Purchase of Care,03/11/2021,3931140-UPLIFTPAYMENTPP7-57,"1,734.84",GAINFORD CARE HOMES LTD.
Adult and Health Services,Head of Adults,Third Party Payments,470101,Purchase of Care,03/11/2021,3931160-UPLIFTPAYMENTPP7-41,"2,253.88",HC-ONE BEAMISH LTD.
Adult and Health Services,Head of Adults,Third Party Payments,470101,Purchase of Care,03/11/2021,3931161-UPLIFTPAYMENTPP7-42,"1,438.48",HC-ONE BEAMISH LTD.
Adult and Health Services,Head of Adults,Third Party Payments,470101,Purchase of Care,03/11/2021,3931162-UPLIFTPAYMENTPP7-82,"1,393.02",HC-ONE BEAMISH LTD.
Adult and Health Services,Head of Adults,Third Party Payments,470101,Purchase of Care,03/11/2021,3931163-UPLIFTPAYMENTPP7-38,"2,312.13",HC-ONE BEAMISH LTD.
Adult and Health Services,Head of Adults,Third Party Payments,470101,Purchase of Care,03/11/2021,3931164-UPLIFTPAYMENTPP7-64,"2,229.65",HC-ONE BEAMISH LTD.
Adult and Health Services,Head of Adults,Third Party Payments,470101,Purchase of Care,03/11/2021,3931165-UPLIFTPAYMENTPP7-7,"1,238.35",HILL CARE 3 LTD.
Adult and Health Services,Head of Adults,Third Party Payments,470101,Purchase of Care,03/11/2021,3931166-UPLIFTPAYMENTPP7-68,"1,203.10",HILL CARE 3 LTD.
Adult and Health Services,Head of Adults,Third Party Payments,470101,Purchase of Care,03/11/2021,3931173-UPLIFTPAYMENTPP7-80,677.00,IDEAL CARE (NORTH) LTD.
Adult and Health Services,Head of Adults,Third Party Payments,474101,Purchase of Care,03/11/2021,3931208-UPLIFTPAYMENTPP7-50,"1,023.15",KINGSWAY CARE HOME LTD.
Adult and Health Services,Head of Adults,Third Party Payments,470101,Purchase of Care,03/11/2021,3931210-UPLIFTPAYMENTPP7-51,758.19,LAMBTON HOUSE LTD.
Adult and Health Services,Head of Adults,Third Party Payments,470101,Purchase of Care,03/11/2021,3931211-UPLIFTPAYMENTPP7-52,896.13,LANGLEY HOUSE CARE HOME LTD.
Adult and Health Services,Head of Adults,Third Party Payments,470101,Purchase of Care,03/11/2021,3931212-UPLIFTPAYMENTPP7-54,"1,479.40",LEAZES HALL CARE HOME LTD.
Adult and Health Services,Head of Adults,Third Party Payments,474101,Purchase of Care,03/11/2021,3931214-UPLIFTPAYMENTPP7-18,"1,185.04",LEONARD CHESHIRE DISABILITY.
Adult and Health Services,Head of Adults,Third Party Payments,474101,Purchase of Care,03/11/2021,3931229-UPLIFTPAYMENTPP7-67,"1,399.51",MALHOTRA CARE HOMES LTD.
Adult and Health Services,Head of Adults,Third Party Payments,470101,Purchase of Care,03/11/2021,3931231-UPLIFTPAYMENTPP7-97,"1,532.19",MARIA MALLABAND CARE GROUP LTD.
Adult and Health Services,Head of Adults,Third Party Payments,470101,Purchase of Care,03/11/2021,3931232-UPLIFTPAYMENTPP7-32,699.33,MARIPOSA CARE GROUP LTD.
Adult and Health Services,Head of Adults,Third Party Payments,470101,Purchase of Care,03/11/2021,3931233-UPLIFTPAYMENTPP7-46,"1,537.41",MARIPOSA CARE LTD.
Adult and Health Services,Head of Adults,Third Party Payments,470101,Purchase of Care,03/11/2021,3931237-UPLIFTPAYMENTPP7-53,"1,761.60",MARTON CARE HOMES LTD T/A LANGLEY PARK CARE HOME.
Adult and Health Services,Head of Adults,Third Party Payments,470101,Purchase of Care,03/11/2021,3931238-UPLIFTPAYMENTPP7-83,"1,203.53",MARTON CARE HOMES LTD T/A ST HELENS CARE HOME.
Adult and Health Services,Head of Adults,Third Party Payments,478151,Purchase of Care,03/11/2021,3931248-24,"1,800.00",MOORLAND HOLDINGS (NE) LTD.
Adult and Health Services,Head of Adults,Third Party Payments,470101,Purchase of Care,03/11/2021,3931287-UPLIFTPAYMENTPP7-14,968.44,OBJECT QUEST LTD.
Adult and Health Services,Head of Adults,Third Party Payments,470101,Purchase of Care,03/11/2021,3931297-UPLIFTPAYMENTPP7-13,657.08,PERFECT CARE LTD.
Adult and Health Services,Head of Adults,Third Party Payments,470101,Purchase of Care,03/11/2021,3931313-UPLIFTPAYMENTPP7-39,615.84,POPULAR CARE LTD..
Adult and Health Services,Head of Adults,Third Party Payments,470101,Purchase of Care,03/11/2021,3931313-UPLIFTPAYMENTPP7-69,"1,453.46",POPULAR CARE LTD..
Adult and Health Services,Head of Adults,Third Party Payments,478101,Purchase of Care,03/11/2021,3931314-2866,"12,751.44",POSITIVE INDIVIDUAL PROACTIVE SUPPORT LTD.
Adult and Health Services,Head of Adults,Third Party Payments,470101,Purchase of Care,03/11/2021,3931318-UPLIFTPAYMENTPP7-70,"1,771.49",PREMIER CARE HOMES LTD.
Adult and Health Services,Head of Adults,Third Party Payments,470101,Purchase of Care,03/11/2021,3931319-UPLIFTPAYMENTPP7-37,900.80,PREMIER CARE HOMES LTD.
Adult and Health Services,Head of Adults,Third Party Payments,470101,Purchase of Care,03/11/2021,3931332-UPLIFTPAYMENTPP7-29,772.78,RAYSON HOMES LTD.
Adult and Health Services,Head of Adults,Third Party Payments,470101,Purchase of Care,03/11/2021,3931342-UPLIFTPAYMENTPP7-4,"1,084.20",REDACTED - PAYMENT TO INDIVIDUAL
Adult and Health Services,Head of Adults,Third Party Payments,470101,Purchase of Care,03/11/2021,3931344-UPLIFTPAYMENTPP7-25,"1,500.36",ROSEBERRY CARE CENTRES GB LTD.
Adult and Health Services,Head of Adults,Third Party Payments,470101,Purchase of Care,03/11/2021,3931357-UPLIFTPAYMENTPP7-15,"1,810.60",SANCTUARY CARE (ENGLAND) LTD.
Adult and Health Services,Head of Adults,Third Party Payments,470101,Purchase of Care,03/11/2021,3931358-UPLIFTPAYMENTPP7-23,"2,363.61",SANCTUARY CARE (ENGLAND) LTD.
Adult and Health Services,Head of Adults,Third Party Payments,470101,Purchase of Care,03/11/2021,3931359-UPLIFTPAYMENTPP7-5,"2,839.41",SANCTUARY CARE (ENGLAND) LTD.
Adult and Health Services,Head of Adults,Third Party Payments,470101,Purchase of Care,03/11/2021,3931360-UPLIFTPAYMENTPP7-76,"1,214.41",SANCTUARY CARE (ENGLAND) LTD.
Adult and Health Services,Head of Adults,Third Party Payments,470101,Purchase of Care,03/11/2021,3931365-UPLIFTPAYMENTPP7-31,921.41,SEAHAM CARE LTD.
Adult and Health Services,Head of Adults,Third Party Payments,470101,Purchase of Care,03/11/2021,3931366-UPLIFTPAYMENTPP7-36,"1,767.39",SEAHAM CARE LTD.
Adult and Health Services,Head of Adults,Third Party Payments,470101,Purchase of Care,03/11/2021,3931369-UPLIFTPAYMENTPP7-72,"2,105.43",SHAFTESBURY CARE GROUP LTD.
Adult and Health Services,Head of Adults,Third Party Payments,470101,Purchase of Care,03/11/2021,3931370-UPLIFTPAYMENTPP7-12,696.64,SHERBURN HOUSE CHARITY.
Adult and Health Services,Head of Adults,Third Party Payments,470101,Purchase of Care,03/11/2021,3931371-UPLIFTPAYMENTPP7-78,608.09,SHOTLEY PARK HOMES FOR THE ELDERLY LTD.
Adult and Health Services,Head of Adults,Third Party Payments,470101,Purchase of Care,03/11/2021,3931381-UPLIFTPAYMENTPP7-81,920.35,ST ANDREWS MPS LTD.
Adult and Health Services,Head of Adults,Third Party Payments,470101,Purchase of Care,03/11/2021,3931383-UPLIFTPAYMENTPP7-17,"1,746.47",ST PHILIPS CARE LTD.
Adult and Health Services,Head of Adults,Third Party Payments,470101,Purchase of Care,03/11/2021,3931384-UPLIFTPAYMENTPP7-24,"1,346.91",ST PHILIPS CARE LTD.
Adult and Health Services,Head of Adults,Third Party Payments,470101,Purchase of Care,03/11/2021,3931405-UPLIFTPAYMENTPP7-8,"2,302.94",TAMARIS HEALTHCARE (ENGLAND) LTD.
Adult and Health Services,Head of Adults,Third Party Payments,470101,Purchase of Care,03/11/2021,3931406-UPLIFTPAYMENTPP7-45,"2,150.91",TAMARIS HEALTHCARE (ENGLAND) LTD.
Adult and Health Services,Head of Adults,Third Party Payments,470101,Purchase of Care,03/11/2021,3931407-UPLIFTPAYMENTPP7-20,742.51,TAMARIS HEALTHCARE (ENGLAND) LTD.
Adult and Health Services,Head of Adults,Third Party Payments,470101,Purchase of Care,03/11/2021,3931408-UPLIFTPAYMENTPP7-3,"1,822.88",TAMARIS HEALTHCARE (ENGLAND) LTD.
Adult and Health Services,Head of Adults,Third Party Payments,470101,Purchase of Care,03/11/2021,3931415-UPLIFTPAYMENTPP7-91,563.54,THE FIELDS CARE HOME.
Adult and Health Services,Head of Adults,Third Party Payments,470101,Purchase of Care,03/11/2021,3931417-UPLIFTPAYMENTPP7-2,"1,339.10",THE HAWTHORNS LODGE LTD.
Adult and Health Services,Head of Adults,Third Party Payments,473101,Purchase of Care,03/11/2021,317168-I-21-1914227,999.78,THE WIDER WORLD PROJECT.
Adult and Health Services,Head of Adults,Third Party Payments,470101,Purchase of Care,03/11/2021,3931433-UPLIFTPAYMENTPP7-66,"1,406.65",TRIMS GYM LTD.
Adult and Health Services,Head of Adults,Third Party Payments,470101,Purchase of Care,03/11/2021,3931453-UPLIFTPAYMENTPP7-94,685.24,WEST HOUSE CARE HOME LTD.
Adult and Health Services,Head of Adults,Third Party Payments,470101,Purchase of Care,03/11/2021,3931454-UPLIFTPAYMENTPP7-95,"2,399.86",WEST LODGE CARE HOMES LTD.
Adult and Health Services,Head of Adults,Third Party Payments,470101,Purchase of Care,03/11/2021,3931460-UPLIFTPAYMENTPP7-47,"1,148.16",WILLIAMS & SPENCELEY LTD.
Neighbourhoods and Climate Change,Environmental Services,Vehicles Equipment Furniture and Fittings,912529,Purchase-equipment,03/11/2021,3931156-078803,"68,713.73",HAGS-SMP LTD.
Children and Young Peoples Services,Head of Education and Skills,Third Party Payments,410037,Rendered by Other Local Authorities,03/11/2021,3931324-51641337,"1,039.10",PROTOCOL EDUCATION LTD.*
Children and Young Peoples Services,Head of Education and Skills,Third Party Payments,410037,Rendered by Other Local Authorities,03/11/2021,3931324-51644744,"1,039.10",PROTOCOL EDUCATION LTD.*
Children and Young Peoples Services,Head of Education and Skills,Third Party Payments,410037,Rendered by Other Local Authorities,03/11/2021,3931324-51646660,831.28,PROTOCOL EDUCATION LTD.*
Children and Young Peoples Services,Head of Education and Skills,Third Party Payments,410037,Rendered by Other Local Authorities,03/11/2021,3931324-51650616,646.60,PROTOCOL EDUCATION LTD.*
"Regeneration, Economy and Growth",Corporate Property and Land,Third Party Payments,430100,Rendered by Private Contractors,03/11/2021,3930978-48145788,"1,200.00",ADT FIRE & SECURITY PLC.
"Regeneration, Economy and Growth",Corporate Property and Land,Third Party Payments,430100,Rendered by Private Contractors,03/11/2021,3930978-48364825,608.57,ADT FIRE & SECURITY PLC.
"Regeneration, Economy and Growth",Corporate Property and Land,Third Party Payments,430100,Rendered by Private Contractors,03/11/2021,3930978-48369879,616.00,ADT FIRE & SECURITY PLC.
Neighbourhoods and Climate Change,Environmental Services,Third Party Payments,430120,Rendered by Private Contractors,03/11/2021,3931000-4612,"2,711.00",AUTOMATIC FLARE SYSTEMS LTD.
Neighbourhoods and Climate Change,Technical Services CM0300,Third Party Payments,430100,Rendered by Private Contractors,03/11/2021,3931003-CSUKOU/INV/115099,"10,536.41",BALFOUR BEATTY LIVING PLACES LTD.*
Neighbourhoods and Climate Change,Environmental Services,Third Party Payments,430100,Rendered by Private Contractors,03/11/2021,3931040-179612,"2,792.24",CG ROBINSON LTD.
Neighbourhoods and Climate Change,Environmental Services,Third Party Payments,430100,Rendered by Private Contractors,03/11/2021,3931087-96414493,"3,397.88",DENNIS EAGLE LTD T/A TERBERG MATEC (UK) LTD.
"Regeneration, Economy and Growth",Culture Sport and Tourism,Third Party Payments,430131,Rendered by Private Contractors,03/11/2021,3931246-2021027,"3,475.00",MICHELLE GARTON T/A GET FIT NORTH EAST.
"Regeneration, Economy and Growth",Corporate Property and Land,Third Party Payments,430100,Rendered by Private Contractors,03/11/2021,3931262-DCC204,"1,500.00",MR WILLIAM MAGUIRE T/A VALLUM LIFTS LTD.
"Regeneration, Economy and Growth",Corporate Property and Land,Third Party Payments,430100,Rendered by Private Contractors,03/11/2021,3931262-DCC206,"1,500.00",MR WILLIAM MAGUIRE T/A VALLUM LIFTS LTD.
"Regeneration, Economy and Growth",Corporate Property and Land,Third Party Payments,430100,Rendered by Private Contractors,03/11/2021,3931262-DCC208,700.00,MR WILLIAM MAGUIRE T/A VALLUM LIFTS LTD.
"Regeneration, Economy and Growth",Corporate Property and Land,Third Party Payments,430100,Rendered by Private Contractors,03/11/2021,3931266-786764,"3,093.00",NATIONWIDE CHIMNEY COMPONENTS LTD.
"Regeneration, Economy and Growth",Corporate Property and Land,Third Party Payments,430100,Rendered by Private Contractors,03/11/2021,3931283-176,500.00,NOVALOO LTD.
Neighbourhoods and Climate Change,Technical Services CM0300,Third Party Payments,430100,Rendered by Private Contractors,03/11/2021,3931285-7404,"8,100.00",NU PHALT CONTRACTING LTD.
"Regeneration, Economy and Growth",Corporate Property and Land,Third Party Payments,430100,Rendered by Private Contractors,03/11/2021,3931290-11089-51,697.80,OPUS BUILDING SERVICES LTD.
"Regeneration, Economy and Growth",Corporate Property and Land,Third Party Payments,430100,Rendered by Private Contractors,03/11/2021,3931291-2778,630.00,PARAMOUNT CEILINGS & PARTITIONS.
"Regeneration, Economy and Growth",Corporate Property and Land,Third Party Payments,430100,Rendered by Private Contractors,03/11/2021,3931291-2779,878.00,PARAMOUNT CEILINGS & PARTITIONS.
"Regeneration, Economy and Growth",Corporate Property and Land,Third Party Payments,430100,Rendered by Private Contractors,03/11/2021,3931291-2774,"2,240.00",PARAMOUNT CEILINGS & PARTITIONS.
"Regeneration, Economy and Growth",Corporate Property and Land,Third Party Payments,430100,Rendered by Private Contractors,03/11/2021,3931291-2810,920.00,PARAMOUNT CEILINGS & PARTITIONS.
Neighbourhoods and Climate Change,Technical Services CM0300,Third Party Payments,430100,Rendered by Private Contractors,03/11/2021,3931307-6239,"3,224.43",PINKNEY BUILDING CONTRACTORS LTD.
"Regeneration, Economy and Growth",Business Durham CL0850,Third Party Payments,430100,Rendered by Private Contractors,03/11/2021,3931310-DBRG-11-2021-01,"13,333.34",PLANET LEISURE.
"Regeneration, Economy and Growth",Corporate Property and Land,Third Party Payments,430100,Rendered by Private Contractors,03/11/2021,3931382-7776,"42,303.00",ST ASTIER LTD.
"Regeneration, Economy and Growth",Corporate Property and Land,Third Party Payments,430100,Rendered by Private Contractors,03/11/2021,3931393-18364,"1,165.66",STONE TECHNICAL SERVICES LTD.
"Regeneration, Economy and Growth",Corporate Property and Land,Third Party Payments,430100,Rendered by Private Contractors,03/11/2021,3931400-180636,"1,597.00",SUPATINT LTD T/A SUPATINT WINDOW FILMS & BLINDS.
Neighbourhoods and Climate Change,Environmental Services,Third Party Payments,430100,Rendered by Private Contractors,03/11/2021,3931449-88341,"1,804.00",WARREN ACCESS LTD.
Children and Young Peoples Services,Head of Childrens Social Care,Third Party Payments,425021,Rendered by Voluntary Organisations,03/11/2021,3931335-2,"3,740.00",RICKY L SMITH T/A RICKARDOS HOLIDAY LETS.
Children and Young Peoples Services,Head of Childrens Social Care,Third Party Payments,425020,Rendered by Voluntary Organisations,03/11/2021,3931468-1521,"1,110.00",ZOE PLACE BABY HOSPICE.
Neighbourhoods and Climate Change,Environmental Services,Transport,210057,Repair and Maintenance of Vehicles,03/11/2021,3931441-31408,"2,869.26",VERSALIFT DISTRIBUTORS (UK) LTD.
Neighbourhoods and Climate Change,Environmental Services,Transport,215012,Running Costs of Vehicles,03/11/2021,3931043-196135,"1,253.00",CHEVIN FLEET SOLUTIONS LTD.
Neighbourhoods and Climate Change,Environmental Services,Transport,215005,Running Costs of Vehicles,03/11/2021,3931288-824526,"13,944.00",YOUR NRG LTD.
Resources BK0010,Finance & Transactional Services,Supplies and Services,338066,Services,03/11/2021,3931018-SIN027993,"97,213.51",BLOOM PROCUREMENT SERVICES LTD (FORMERLY NEPRO LTD).
"Regeneration, Economy and Growth",Culture Sport and Tourism,Supplies and Services,338047,Services,03/11/2021,3931027-002,"3,071.20",BREWIS SCOTT ASSOCIATES.
Children and Young Peoples Services,Childrens Services Operational Support,Supplies and Services,338026,Services,03/11/2021,3931044-JH41,665.00,CHOICES & VOICES CARE LTD.
Adult and Health Services,Head of Adults,Supplies and Services,338429,Services,03/11/2021,3931059-JOB001/20463,525.00,COLIN JOBLING T/A RAINBOW INTERNATIONAL.
Resources BK0010,Legal & Democratic Services,Supplies and Services,338025,Services,03/11/2021,3931057-S45008-01195,630.00,CO-OPERATIVE FUNERAL CARE.
Neighbourhoods and Climate Change,Environmental Services,Supplies and Services,338066,Services,03/11/2021,3931102-2348,"4,000.00",ECONOMIC RESEARCH SERVICES LTD T/A ERS RESEARCH & CONSULTANCY.
"Regeneration, Economy and Growth",Culture Sport and Tourism,Supplies and Services,338047,Services,03/11/2021,3931112-20214218LB,"5,000.00",ENTERTAINMENT UNLIMITED.
"Regeneration, Economy and Growth",Transport and Contracted Services,Supplies and Services,338080,Services,03/11/2021,3931115-4148,"1,331.36",ESP SYSTEX LTD.
Neighbourhoods and Climate Change,Environmental Services,Supplies and Services,338099,Services,03/11/2021,3931186-SEPT21,577.00,JAMES MACKELL.
"Regeneration, Economy and Growth",Culture Sport and Tourism,Supplies and Services,338047,Services,03/11/2021,3931188-XX/8076,"5,872.65",JANET PLATER MANAGEMENT LTD.
Neighbourhoods and Climate Change,Technical Services CM0300,Supplies and Services,338027,Services,03/11/2021,3931225-209635,"7,074.76",LUCY ZODION LTD.
"Regeneration, Economy and Growth",Culture Sport and Tourism,Supplies and Services,338047,Services,03/11/2021,3931244-MTART/6128,"1,000.00",MIA THOMSON ASSOCIATES.
"Regeneration, Economy and Growth",Culture Sport and Tourism,Supplies and Services,338047,Services,03/11/2021,3931244-MTART/6129,"1,500.00",MIA THOMSON ASSOCIATES.
"Regeneration, Economy and Growth",Culture Sport and Tourism,Supplies and Services,338047,Services,03/11/2021,3931301-001-ROBINHOOD21/22,"3,665.79",PGI SMITH SOLUTIONS LTD.
"Regeneration, Economy and Growth",Culture Sport and Tourism,Supplies and Services,338047,Services,03/11/2021,3930987-ROBINHOOD8/11/21,900.00,REDACTED - PAYMENT TO INDIVIDUAL
"Regeneration, Economy and Growth",Culture Sport and Tourism,Supplies and Services,338047,Services,03/11/2021,3931185-JHT001-1,"1,035.00",REDACTED - PAYMENT TO INDIVIDUAL
"Regeneration, Economy and Growth",Corporate Property and Land,Supplies and Services,338078,Services,03/11/2021,3931353-14752,"1,025.00",SAFEGUARD SECURITY (NE) LTD.
Children and Young Peoples Services,Head of Early Help Inclusion & Vulnerable Children.,Supplies and Services,338078,Services,03/11/2021,3931387-17644,"17,844.32",STEADFAST SECURITY SOLUTIONS LTD.
Children and Young Peoples Services,Head of Childrens Social Care,Supplies and Services,338099,Services,03/11/2021,3931390-INV-5729,"3,000.00",STEVE DAVIDSON ADVERTISING LTD T/A SD ADVERTISING LTD.
Resources BK0010,Legal & Democratic Services,Supplies and Services,338025,Services,03/11/2021,3931395-12430,"1,090.00",STUART WRIGHT FUNERAL SERVICE LTD.
"Regeneration, Economy and Growth",Culture Sport and Tourism,Supplies and Services,338047,Services,03/11/2021,3931420-LW1939,"2,550.15",THE NARROW ROAD COMPANY.
Resources BK0010,Legal & Democratic Services,Supplies and Services,338042,Services,03/11/2021,3931434-292268/INVPG315,650.00,TRINITY CHAMBERS.
Resources BK0010,Procurement Sales & Business Services,Supplies and Services,338066,Services,03/11/2021,3931463-3581386,672.20,WOMBLE BOND DICKINSON (UK) LLP.
Neighbourhoods and Climate Change,Technical Services CM0300,Stock A926,926900,Stock in hand-Inventory system,03/11/2021,3931177-807147,"2,366.00",INSTARMAC GROUP PLC.
Neighbourhoods and Climate Change,Technical Services CM0300,Stock A926,926900,Stock in hand-Inventory system,03/11/2021,3931467-145447189,"2,893.00",ZG LIGHTING (UK) LTD.
Adult and Health Services,Commissioning inc Supporting People,Third Party Payments,442002,Supporting People E442,03/11/2021,3931098-CCG/DCC2021/003,"14,395.50",DURHAM DEAFENED SUPPORT.
"Regeneration, Economy and Growth",Culture Sport and Tourism,Supplies and Services,336005,Advertising E336,04/11/2021,3931605-C-INV057040,560.00,GLOBAL MEDIA GROUP SERVICES LTD.
Adult and Health Services,Public Health CC0450,Employees,080025,Agency Staff,04/11/2021,3931805-484973,"1,485.00",VISION FOR EDUCATION LTD.
Adult and Health Services,Public Health CC0450,Employees,080025,Agency Staff,04/11/2021,3931805-485404,"1,930.51",VISION FOR EDUCATION LTD.
"Regeneration, Economy and Growth",Transport and Contracted Services,Supplies and Services,328041,Clothing uniforms and laundry E328,04/11/2021,3931654-94232,"1,397.85",KING SCIENTIFIC.
Neighbourhoods and Climate Change,Technical Services CM0300,Construction work A908,908105,Construction work,04/11/2021,3931633-25747,650.22,JACK COUPE & SONS LTD T/A COUPE LINE.
Children and Young Peoples Services,Head of Education and Skills,Construction work A908,908105,Construction work,04/11/2021,3931714-NEI-EXP-10-2021-091,957.00,NORTHERN GAS NETWORKS LTD.
"Regeneration, Economy and Growth",Culture Sport and Tourism,Construction work A908,908105,Construction work,04/11/2021,3931810-HJT/A6443/F/10,"2,600.00",WILLIAM J MARSHALL & PARTNERS.
Children and Young Peoples Services,Head of Education and Skills,Transport,230034,Contract Hire,04/11/2021,3931472-75696-1268,"2,270.88",24X7LTD.
Children and Young Peoples Services,Head of Education and Skills,Transport,230007,Contract Hire,04/11/2021,3931472-75697-3336,"1,071.15",24X7LTD.
Children and Young Peoples Services,Head of Education and Skills,Transport,230007,Contract Hire,04/11/2021,3931472-75699-5411,"1,369.28",24X7LTD.
Children and Young Peoples Services,Head of Education and Skills,Transport,230007,Contract Hire,04/11/2021,3931472-75700-6052,"1,047.36",24X7LTD.
Children and Young Peoples Services,Head of Education and Skills,Transport,230003,Contract Hire,04/11/2021,3931472-75698-3441,"1,246.72",24X7LTD.
Children and Young Peoples Services,Head of Education and Skills,Transport,230009,Contract Hire,04/11/2021,3931472-75701,"1,249.12",24X7LTD.
Children and Young Peoples Services,Head of Education and Skills,Transport,230012,Contract Hire,04/11/2021,3931472-75704,"1,770.40",24X7LTD.
Children and Young Peoples Services,Head of Education and Skills,Transport,230012,Contract Hire,04/11/2021,3931472-75705,"2,275.52",24X7LTD.
Children and Young Peoples Services,Head of Education and Skills,Transport,230008,Contract Hire,04/11/2021,3931472-75703,"2,581.60",24X7LTD.
Children and Young Peoples Services,Head of Education and Skills,Transport,230008,Contract Hire,04/11/2021,3931485-0247,"2,080.00",A HENDERSON T/A CHUCKS TAXIS.
Children and Young Peoples Services,Head of Education and Skills,Transport,230034,Contract Hire,04/11/2021,3931486-1021/SE,"1,420.16",AABAT TAXIS.
Children and Young Peoples Services,Head of Education and Skills,Transport,230007,Contract Hire,04/11/2021,3931486-1021/SZ,924.93,AABAT TAXIS.
Children and Young Peoples Services,Head of Education and Skills,Transport,230007,Contract Hire,04/11/2021,3931486-1021/SL,"1,005.28",AABAT TAXIS.
Children and Young Peoples Services,Head of Education and Skills,Transport,230007,Contract Hire,04/11/2021,3931486-1021/SR,817.70,AABAT TAXIS.
Children and Young Peoples Services,Head of Education and Skills,Transport,230006,Contract Hire,04/11/2021,3931486-1021/SB,504.00,AABAT TAXIS.
Children and Young Peoples Services,Head of Education and Skills,Transport,230006,Contract Hire,04/11/2021,3931486-1021/SI,"1,290.00",AABAT TAXIS.
Children and Young Peoples Services,Head of Education and Skills,Transport,230012,Contract Hire,04/11/2021,3931486-1021/SS,"1,047.68",AABAT TAXIS.
Children and Young Peoples Services,Head of Education and Skills,Transport,230008,Contract Hire,04/11/2021,3931486-1021/SA,"2,384.00",AABAT TAXIS.
Children and Young Peoples Services,Head of Education and Skills,Transport,230008,Contract Hire,04/11/2021,3931486-1021/SC,"2,208.00",AABAT TAXIS.
Children and Young Peoples Services,Head of Education and Skills,Transport,230008,Contract Hire,04/11/2021,3931486-1021/SJ,967.68,AABAT TAXIS.
Adult and Health Services,Head of Adults,Transport,230005,Contract Hire,04/11/2021,3931486-1021/SK,"2,499.00",AABAT TAXIS.
Adult and Health Services,Head of Adults,Transport,230005,Contract Hire,04/11/2021,3931486-1021/SH,990.00,AABAT TAXIS.
Children and Young Peoples Services,Head of Education and Skills,Transport,230007,Contract Hire,04/11/2021,3931488-862,"1,088.00",AC TAXIS.
Children and Young Peoples Services,Head of Education and Skills,Transport,230006,Contract Hire,04/11/2021,3931488-863,795.00,AC TAXIS.
Children and Young Peoples Services,Head of Education and Skills,Transport,230007,Contract Hire,04/11/2021,3931495-308,"1,120.00",ALANS TAXIS BARNARD CASTLE.
Children and Young Peoples Services,Head of Education and Skills,Transport,230007,Contract Hire,04/11/2021,3931495-309,944.00,ALANS TAXIS BARNARD CASTLE.
Children and Young Peoples Services,Head of Education and Skills,Transport,230007,Contract Hire,04/11/2021,3931495-307,800.00,ALANS TAXIS BARNARD CASTLE.
Children and Young Peoples Services,Head of Education and Skills,Transport,230007,Contract Hire,04/11/2021,3931495-307OCT21,800.00,ALANS TAXIS BARNARD CASTLE.
Adult and Health Services,Head of Adults,Transport,230005,Contract Hire,04/11/2021,3931502-00236,"3,150.00",ANNE MARIE HENDERSON T/A HENDERSON HIRE (TAXIS).
Children and Young Peoples Services,Head of Education and Skills,Transport,230034,Contract Hire,04/11/2021,3931505-OCT2021-2,810.00,ARMSTRONG`S TAXIS.
Children and Young Peoples Services,Head of Education and Skills,Transport,230010,Contract Hire,04/11/2021,3931505-OCT2021-3,"1,504.00",ARMSTRONG`S TAXIS.
Children and Young Peoples Services,Head of Education and Skills,Transport,230008,Contract Hire,04/11/2021,3931508-DCC04OCT21,"2,692.05",ATLAS TAXIS BISHOP AUCKLAND.
Children and Young Peoples Services,Head of Education and Skills,Transport,230008,Contract Hire,04/11/2021,3931516-SMITH2/OCTOBER21,660.32,BEELINE PRIVATE HIRE.
Children and Young Peoples Services,Head of Education and Skills,Transport,230008,Contract Hire,04/11/2021,3931519-000467,"1,490.88",BIRDS TAXIS LTD.
Children and Young Peoples Services,Head of Education and Skills,Transport,230005,Contract Hire,04/11/2021,3931519-000472,798.00,BIRDS TAXIS LTD.
Children and Young Peoples Services,Head of Education and Skills,Transport,230008,Contract Hire,04/11/2021,3931546-N010/42,"1,280.00",COLIN STEWART T/A STEWART`S TAXIS.
Children and Young Peoples Services,Head of Education and Skills,Transport,230007,Contract Hire,04/11/2021,3931550-INV006,"1,511.68",CONSETT EXECUTIVE CABS.
Children and Young Peoples Services,Head of Education and Skills,Transport,230016,Contract Hire,04/11/2021,3931553-111490,"2,274.80",CROFT BUSINESS SERVICES LTD T/A CROFT TRAVEL.
Children and Young Peoples Services,Head of Education and Skills,Transport,230034,Contract Hire,04/11/2021,3931556-SEDGEFIELD311021-5253,936.00,D IRVING T/A BJ TAXIS.
Children and Young Peoples Services,Head of Education and Skills,Transport,230007,Contract Hire,04/11/2021,3931556-SEDGEFIELD311021,690.00,D IRVING T/A BJ TAXIS.
Adult and Health Services,Head of Adults,Transport,230005,Contract Hire,04/11/2021,3931556-THOR311021,985.75,D IRVING T/A BJ TAXIS.
Children and Young Peoples Services,Head of Education and Skills,Transport,230008,Contract Hire,04/11/2021,3931559-0081,"2,712.00",DAVID WALKER TAXIS.
Children and Young Peoples Services,Head of Education and Skills,Transport,230008,Contract Hire,04/11/2021,3931582-1021,"1,231.04",ELLIOTTS OF TRIMDON.
Children and Young Peoples Services,Head of Education and Skills,Transport,230034,Contract Hire,04/11/2021,3931589-202,"1,120.00",FIGGY BUS (TAXI).
Children and Young Peoples Services,Head of Education and Skills,Transport,230007,Contract Hire,04/11/2021,3931589-203,"2,201.92",FIGGY BUS (TAXI).
Children and Young Peoples Services,Head of Education and Skills,Transport,230006,Contract Hire,04/11/2021,3931589-205,724.08,FIGGY BUS (TAXI).
Children and Young Peoples Services,Head of Education and Skills,Transport,230007,Contract Hire,04/11/2021,3931619-760,"1,800.00",HEPWORTHS TRAVEL.
Children and Young Peoples Services,Head of Education and Skills,Transport,230008,Contract Hire,04/11/2021,3931619-758,"2,032.00",HEPWORTHS TRAVEL.
Children and Young Peoples Services,Head of Education and Skills,Transport,230008,Contract Hire,04/11/2021,3931619-759,"1,920.00",HEPWORTHS TRAVEL.
Adult and Health Services,Head of Adults,Transport,230005,Contract Hire,04/11/2021,3931629-7-CLS078,851.60,IAN SHEPLEY T/A RIVERSIDE TAXIS.
Children and Young Peoples Services,Head of Education and Skills,Transport,230007,Contract Hire,04/11/2021,3931637-INV3108,"2,080.00",JEFF ANDERSON COACHES LTD.
Children and Young Peoples Services,Head of Education and Skills,Transport,230007,Contract Hire,04/11/2021,3931637-INV3104,"1,202.40",JEFF ANDERSON COACHES LTD.
Children and Young Peoples Services,Head of Education and Skills,Transport,230008,Contract Hire,04/11/2021,3931637-INV3106,"1,504.48",JEFF ANDERSON COACHES LTD.
Children and Young Peoples Services,Head of Education and Skills,Transport,230008,Contract Hire,04/11/2021,3931637-INV3109,"1,422.24",JEFF ANDERSON COACHES LTD.
Children and Young Peoples Services,Head of Education and Skills,Transport,230008,Contract Hire,04/11/2021,3931637-INV3107,"1,524.64",JEFF ANDERSON COACHES LTD.
Children and Young Peoples Services,Head of Education and Skills,Transport,230007,Contract Hire,04/11/2021,3931641-32194,"2,960.00",JIM HUGHES COACHES LTD.
Children and Young Peoples Services,Head of Education and Skills,Transport,230003,Contract Hire,04/11/2021,3931640-32195,"3,584.00",JIM HUGHES COACHES LTD.
Children and Young Peoples Services,Head of Education and Skills,Transport,230008,Contract Hire,04/11/2021,3931642-22/10/21B,"2,329.60",JL EBDON. T/A DIAL-A-CAB.
Children and Young Peoples Services,Head of Education and Skills,Transport,230008,Contract Hire,04/11/2021,3931659-OCT21-A207,"1,760.00",LARS CARS LTD T/A STREETCARS.
Children and Young Peoples Services,Head of Education and Skills,Transport,230008,Contract Hire,04/11/2021,3931659-OCT21-N025,"1,440.00",LARS CARS LTD T/A STREETCARS.
Children and Young Peoples Services,Head of Education and Skills,Transport,230008,Contract Hire,04/11/2021,3931659-OCT21-N064,"1,920.00",LARS CARS LTD T/A STREETCARS.
Children and Young Peoples Services,Head of Education and Skills,Transport,230008,Contract Hire,04/11/2021,3931659-OCT21-N009,"1,440.00",LARS CARS LTD T/A STREETCARS.
Children and Young Peoples Services,Head of Education and Skills,Transport,230008,Contract Hire,04/11/2021,3931659-OCT21-N041,"1,920.00",LARS CARS LTD T/A STREETCARS.
Children and Young Peoples Services,Head of Education and Skills,Transport,230008,Contract Hire,04/11/2021,3931659-OTC21-N325,"1,760.00",LARS CARS LTD T/A STREETCARS.
Children and Young Peoples Services,Head of Education and Skills,Transport,230007,Contract Hire,04/11/2021,3931674-221021,528.00,MARK MUSGROVE T/A MARKS TAXIS.
Children and Young Peoples Services,Head of Education and Skills,Transport,230007,Contract Hire,04/11/2021,3931674-221021-4485,796.96,MARK MUSGROVE T/A MARKS TAXIS.
Children and Young Peoples Services,Head of Education and Skills,Transport,230008,Contract Hire,04/11/2021,3931685-0002-W082,"2,208.00",MR A MILLWARD T/A SWISS CABS PRIVATE HIRE.
Children and Young Peoples Services,Head of Education and Skills,Transport,230008,Contract Hire,04/11/2021,3931687-THPK10-21,"1,423.54",MR CT WALKER T/A CW TAXIS.
Children and Young Peoples Services,Head of Education and Skills,Transport,230034,Contract Hire,04/11/2021,3931688-KDK/OCT21,"1,092.30",MR IAN KELSEY T/A KDK TAXIS.
Children and Young Peoples Services,Head of Education and Skills,Transport,230009,Contract Hire,04/11/2021,3931688-KDK/OCT21-4390,800.00,MR IAN KELSEY T/A KDK TAXIS.
Children and Young Peoples Services,Head of Education and Skills,Transport,230007,Contract Hire,04/11/2021,3931689-BR/10/21,"1,120.00",MR J AGAR T/A PARK TAXIS.
Children and Young Peoples Services,Head of Education and Skills,Transport,230008,Contract Hire,04/11/2021,3931689-ND/10/21,"1,428.00",MR J AGAR T/A PARK TAXIS.
Children and Young Peoples Services,Head of Education and Skills,Transport,230006,Contract Hire,04/11/2021,3931690-F117-01,"1,350.00",MR KJB BOWERY T/A KJB TAXIS.
Adult and Health Services,Head of Adults,Transport,230005,Contract Hire,04/11/2021,3931691-211,640.00,MR NEIL LEONARD T/A LENNY`S TAXIS.
Adult and Health Services,Head of Adults,Transport,230005,Contract Hire,04/11/2021,3931691-212,882.00,MR NEIL LEONARD T/A LENNY`S TAXIS.
Children and Young Peoples Services,Head of Education and Skills,Transport,230008,Contract Hire,04/11/2021,3931692-3193,"3,256.00",MR S BOWERS T/A DH7 TAXIS.
Children and Young Peoples Services,Head of Education and Skills,Transport,230008,Contract Hire,04/11/2021,3931692-3192,"2,000.00",MR S BOWERS T/A DH7 TAXIS.
Children and Young Peoples Services,Head of Education and Skills,Transport,230008,Contract Hire,04/11/2021,3931692-3191,"1,415.68",MR S BOWERS T/A DH7 TAXIS.
Children and Young Peoples Services,Head of Education and Skills,Transport,230006,Contract Hire,04/11/2021,3931693-PETER0921,874.56,MR STUART SCOTT T/A AIRPORT CARS DURHAM
Children and Young Peoples Services,Head of Education and Skills,Transport,230010,Contract Hire,04/11/2021,3931694-2-21/22,"2,229.14",MR TERENCE DOUGHERTY T/A TERRYS TAXIS.
Children and Young Peoples Services,Head of Education and Skills,Transport,230007,Contract Hire,04/11/2021,3931703-2OCTOBER2021,"1,428.00",NC TAXI`S.
Children and Young Peoples Services,Head of Education and Skills,Transport,230006,Contract Hire,04/11/2021,3931704-OCTOBER2021/F806,840.00,ND TAXIS.
Children and Young Peoples Services,Head of Education and Skills,Transport,230007,Contract Hire,04/11/2021,3931724-SC-104-5122,"1,280.00",PAUL BURRELL T/A PAUL BURRELL TAXIS.
Children and Young Peoples Services,Head of Education and Skills,Transport,230006,Contract Hire,04/11/2021,3931724-SC-103-A107,935.00,PAUL BURRELL T/A PAUL BURRELL TAXIS.
Children and Young Peoples Services,Head of Education and Skills,Transport,230008,Contract Hire,04/11/2021,3931726-M065311021,"1,536.00",PB PRIVATE HIRE.
Children and Young Peoples Services,Head of Education and Skills,Transport,230006,Contract Hire,04/11/2021,3931729-N337-OCT21,"1,198.80",PETER`S TAXIS.
Children and Young Peoples Services,Head of Education and Skills,Transport,230008,Contract Hire,04/11/2021,3931733-ST3-E046,"1,785.00",PRESTYS HACKNEY & PRIVATE HIRE TAXIS.
Children and Young Peoples Services,Head of Education and Skills,Transport,230007,Contract Hire,04/11/2021,3931740-02-4062,"1,198.40",RAYNERS COACHES.
Children and Young Peoples Services,Head of Education and Skills,Transport,230007,Contract Hire,04/11/2021,3931740-02-4036,"2,000.00",RAYNERS COACHES.
Children and Young Peoples Services,Head of Education and Skills,Transport,230007,Contract Hire,04/11/2021,3931740-02-3194,"1,264.00",RAYNERS COACHES.
Children and Young Peoples Services,Head of Education and Skills,Transport,230007,Contract Hire,04/11/2021,3931740-02-4004,"1,232.00",RAYNERS COACHES.
Children and Young Peoples Services,Head of Education and Skills,Transport,230007,Contract Hire,04/11/2021,3931740-02-4005,"3,352.00",RAYNERS COACHES.
Children and Young Peoples Services,Head of Education and Skills,Transport,230008,Contract Hire,04/11/2021,3931740-02-W042,"1,782.00",RAYNERS COACHES.
Children and Young Peoples Services,Head of Education and Skills,Transport,230006,Contract Hire,04/11/2021,3931746-392,"1,294.00",ROBBIE`S PRIVATE HIRE.
Children and Young Peoples Services,Head of Education and Skills,Transport,230012,Contract Hire,04/11/2021,3931746-389,"1,092.80",ROBBIE`S PRIVATE HIRE.
Children and Young Peoples Services,Head of Education and Skills,Transport,230008,Contract Hire,04/11/2021,3931746-390,"1,557.50",ROBBIE`S PRIVATE HIRE.
Children and Young Peoples Services,Head of Education and Skills,Transport,230008,Contract Hire,04/11/2021,3931746-388,670.00,ROBBIE`S PRIVATE HIRE.
Children and Young Peoples Services,Head of Education and Skills,Transport,230007,Contract Hire,04/11/2021,3931747-1873,960.00,RON`S TAXIS (FISHBURN).
Adult and Health Services,Head of Adults,Transport,230005,Contract Hire,04/11/2021,3931747-1872,720.00,RON`S TAXIS (FISHBURN).
Neighbourhoods and Climate Change,Environmental Services,Transport,230710,Contract Hire,04/11/2021,3931763-105/21/24764,"1,476.00",SOCIETE GENERALE EQUIPMENT FINANCE LTD.
Neighbourhoods and Climate Change,Environmental Services,Transport,230710,Contract Hire,04/11/2021,3931763-105/21/24965,"9,775.00",SOCIETE GENERALE EQUIPMENT FINANCE LTD.
Neighbourhoods and Climate Change,Environmental Services,Transport,230710,Contract Hire,04/11/2021,3931763-105/21/24967,644.00,SOCIETE GENERALE EQUIPMENT FINANCE LTD.
Neighbourhoods and Climate Change,Environmental Services,Transport,230710,Contract Hire,04/11/2021,3931763-105/21/24968,"8,840.00",SOCIETE GENERALE EQUIPMENT FINANCE LTD.
Children and Young Peoples Services,Head of Education and Skills,Transport,230003,Contract Hire,04/11/2021,3931769-57866,"4,768.00",STANLEY TRAVEL (NORTH EAST) LTD.
Children and Young Peoples Services,Head of Education and Skills,Transport,230012,Contract Hire,04/11/2021,3931778-B1086,"1,360.00",TALBOTS TRAVEL LTD.
Children and Young Peoples Services,Head of Education and Skills,Transport,230008,Contract Hire,04/11/2021,3931778-B1085,"1,820.16",TALBOTS TRAVEL LTD.
Children and Young Peoples Services,Head of Education and Skills,Transport,230008,Contract Hire,04/11/2021,3931778-B1084,"1,600.00",TALBOTS TRAVEL LTD.
Children and Young Peoples Services,Head of Education and Skills,Transport,230007,Contract Hire,04/11/2021,3931786-4343-4006,"1,440.00",TERRY NICHOLSON T/A TM TRAVEL.
Children and Young Peoples Services,Head of Education and Skills,Transport,230007,Contract Hire,04/11/2021,3931786-4343-4371,"1,560.00",TERRY NICHOLSON T/A TM TRAVEL.
Adult and Health Services,Head of Adults,Transport,230005,Contract Hire,04/11/2021,3931795-0002279,"3,150.00",TONY RIDLEY T/A COLORS TAXIS LTD.
Children and Young Peoples Services,Head of Education and Skills,Transport,230007,Contract Hire,04/11/2021,3931807-17029,"2,275.20",WEARDALE MOTOR SERVICES LTD.
Children and Young Peoples Services,Head of Education and Skills,Transport,230007,Contract Hire,04/11/2021,3931807-17023,"2,784.00",WEARDALE MOTOR SERVICES LTD.
Children and Young Peoples Services,Head of Education and Skills,Transport,230003,Contract Hire,04/11/2021,3931807-17024,"3,200.00",WEARDALE MOTOR SERVICES LTD.
Children and Young Peoples Services,Head of Education and Skills,Transport,230003,Contract Hire,04/11/2021,3931807-17028,"3,664.00",WEARDALE MOTOR SERVICES LTD.
Children and Young Peoples Services,Head of Education and Skills,Transport,230008,Contract Hire,04/11/2021,3931807-17025,"2,364.00",WEARDALE MOTOR SERVICES LTD.
Children and Young Peoples Services,Head of Early Help Inclusion & Vulnerable Children.,Third Party Payments,460305,Contract Payments,04/11/2021,3931528-FUNANDFOOD-SUMMER2021,"10,810.00",BUSY BEES (DURHAM) LTD.
Adult and Health Services,Public Health CC0450,Third Party Payments,460803,Contract Payments,04/11/2021,3931616-DCCVC020,"4,321.42",HARBOUR SUPPORT SERVICES.
Neighbourhoods and Climate Change,Technical Services CM0300,Third Party Payments,460224,Contract Payments,04/11/2021,3931809-559,720.00,WHORLTON LAND SURVEYS LTD.
Neighbourhoods and Climate Change,Partnerships & Community Engagement Div.,Cap Exp on Grants & Other Financial Assistance (REFCUS),918004,Contributions to other bodies 918004,04/11/2021,3931627-VOUCHER20AB-3TWN014,"5,980.00",HUNWICK CRICKET CLUB.
Adult and Health Services,Commissioning inc Supporting People,Supplies and Services,377015,County Durham Development,04/11/2021,3931792-2572A,"2,101.50",THREE MOTION MEDIA LTD.
"Regeneration, Economy and Growth",Corporate Property and Land,Supplies and Services,304252,Equipment and Materials,04/11/2021,3931507-11135,"2,132.00",ASPECT FIRE SOLUTIONS LTD.
"Regeneration, Economy and Growth",Culture Sport and Tourism,Supplies and Services,304359,Equipment and Materials,04/11/2021,3931520-BMPR/745/SKIPS,673.05,BISHOP MIDDLEHAM PLANT & RECYCLING LTD.
"Regeneration, Economy and Growth",Corporate Property and Land,Supplies and Services,304221,Equipment and Materials,04/11/2021,3931532-140008347,"16,649.93",CARLISLE CONSTRUCTION MATERIALS LTD.
Resources BK0010,Finance & Transactional Services,Supplies and Services,304040,Equipment and Materials,04/11/2021,3931542-C/BN227926,"11,985.00",CIVICA UK LTD.
"Regeneration, Economy and Growth",Corporate Property and Land,Supplies and Services,304221,Equipment and Materials,04/11/2021,3931577-059-290448,612.42,EDMUNDSON ELECTRICAL LTD.
Neighbourhoods and Climate Change,Environmental Services,Supplies and Services,304221,Equipment and Materials,04/11/2021,3931584-6901338,"3,540.00",ESE WORLD LTD.
Neighbourhoods and Climate Change,Environmental Services,Supplies and Services,304221,Equipment and Materials,04/11/2021,3931584-6901447,"3,540.00",ESE WORLD LTD.
Neighbourhoods and Climate Change,Technical Services CM0300,Supplies and Services,304357,Equipment and Materials,04/11/2021,3931601-DCC171021,"18,291.83",GAP GROUP LTD.
Neighbourhoods and Climate Change,Technical Services CM0300,Supplies and Services,304358,Equipment and Materials,04/11/2021,3931643-31178,861.50,JOHN R BUTTERFIELD LTD.
Neighbourhoods and Climate Change,Technical Services CM0300,Supplies and Services,304358,Equipment and Materials,04/11/2021,3931643-31416,"1,433.50",JOHN R BUTTERFIELD LTD.
Neighbourhoods and Climate Change,Technical Services CM0300,Supplies and Services,304358,Equipment and Materials,04/11/2021,3931643-31621,"1,353.00",JOHN R BUTTERFIELD LTD.
Neighbourhoods and Climate Change,Technical Services CM0300,Supplies and Services,304358,Equipment and Materials,04/11/2021,3931643-31622,"4,554.00",JOHN R BUTTERFIELD LTD.
Neighbourhoods and Climate Change,Technical Services CM0300,Supplies and Services,304358,Equipment and Materials,04/11/2021,3931643-31636,"2,737.00",JOHN R BUTTERFIELD LTD.
Neighbourhoods and Climate Change,Technical Services CM0300,Supplies and Services,304358,Equipment and Materials,04/11/2021,3931643-31646,"6,705.00",JOHN R BUTTERFIELD LTD.
Neighbourhoods and Climate Change,Technical Services CM0300,Supplies and Services,304358,Equipment and Materials,04/11/2021,3931644-0000083387,750.00,JOHN WADE (HAULAGE) LTD.
Neighbourhoods and Climate Change,Technical Services CM0300,Supplies and Services,304358,Equipment and Materials,04/11/2021,3931651-3882,928.00,KEVIN SNOWDON GROUNDWORKS LTD.
Neighbourhoods and Climate Change,Technical Services CM0300,Supplies and Services,304358,Equipment and Materials,04/11/2021,3931651-3885,858.40,KEVIN SNOWDON GROUNDWORKS LTD.
Neighbourhoods and Climate Change,Technical Services CM0300,Supplies and Services,304358,Equipment and Materials,04/11/2021,3931651-3888,703.00,KEVIN SNOWDON GROUNDWORKS LTD.
Neighbourhoods and Climate Change,Technical Services CM0300,Supplies and Services,304358,Equipment and Materials,04/11/2021,3931651-3895,858.40,KEVIN SNOWDON GROUNDWORKS LTD.
Neighbourhoods and Climate Change,Technical Services CM0300,Supplies and Services,304358,Equipment and Materials,04/11/2021,3931669-MS3168A,642.38,M SPENCE SURFACING LTD.
Neighbourhoods and Climate Change,Technical Services CM0300,Supplies and Services,304358,Equipment and Materials,04/11/2021,3931705-NC/173/BW,"2,447.50",NEDCO CONTRACTS (NE) LTD.
Neighbourhoods and Climate Change,Technical Services CM0300,Supplies and Services,304358,Equipment and Materials,04/11/2021,3931705-NC/174/BW,"2,035.00",NEDCO CONTRACTS (NE) LTD.
Neighbourhoods and Climate Change,Technical Services CM0300,Supplies and Services,304358,Equipment and Materials,04/11/2021,3931705-NC/175/BW,"2,035.00",NEDCO CONTRACTS (NE) LTD.
Neighbourhoods and Climate Change,Technical Services CM0300,Supplies and Services,304358,Equipment and Materials,04/11/2021,3931705-NC/177/BW,"2,035.00",NEDCO CONTRACTS (NE) LTD.
Neighbourhoods and Climate Change,Environmental Services,Supplies and Services,304221,Equipment and Materials,04/11/2021,3931772-6006966,"2,100.00",STORM ENVIRONMENTAL LTD.
"Regeneration, Economy and Growth",Corporate Property and Land,Supplies and Services,304221,Equipment and Materials,04/11/2021,3931777-687646,739.18,T CROSSLING & CO LTD.
"Regeneration, Economy and Growth",Corporate Property and Land,Supplies and Services,304221,Equipment and Materials,04/11/2021,3931777-688618,765.00,T CROSSLING & CO LTD.
Resources BK0010,Digital and Customer Services,Supplies and Services,304639,Equipment and Materials,04/11/2021,3931813-LA39929,"1,259.58",XMA LTD.
Children and Young Peoples Services,Head of Early Help Inclusion & Vulnerable Children.,Supplies and Services,308011,Furniture,04/11/2021,3931526-16354,676.40,BROWN & ILLINGWORTH LTD.
"Regeneration, Economy and Growth",Development and Housing,Supplies and Services,384999,Miscellaneous Expenses,04/11/2021,3931534-6HOWLISHVIEW,575.00,CASTLEDENE SALES & LETTINGS.
"Regeneration, Economy and Growth",Culture Sport and Tourism,Supplies and Services,384999,Miscellaneous Expenses,04/11/2021,3931551-SI-4252,"1,666.00",COUNTY DURHAM SPORT.
Resources BK0010,Digital and Customer Services,Supplies and Services,384199,Miscellaneous Expenses,04/11/2021,3931560-0000005612,"13,409.00",DCMS (DEPARTMENT FOR DIGITAL CULTURE MEDIA & SPORT).
"Regeneration, Economy and Growth",Culture Sport and Tourism,Supplies and Services,384199,Miscellaneous Expenses,04/11/2021,3931561-VCD/AUG-OCT2021,"2,475.00",DEBBIE SHARRATT T/A DEBSHARRATT COMMUNICATIONS.
Children and Young Peoples Services,Head of Education and Skills,Supplies and Services,384199,Miscellaneous Expenses,04/11/2021,3931573-001-2021,"1,382.50",DURHAM CITY GYMNASTICS CLUB CIC.
Children and Young Peoples Services,Head of Early Help Inclusion & Vulnerable Children.,Supplies and Services,384199,Miscellaneous Expenses,04/11/2021,3931615-4100744316,510.00,HALL OF FAMERS LTD.
Neighbourhoods and Climate Change,Environmental Services,Supplies and Services,384899,Miscellaneous Expenses,04/11/2021,3931755-S000009469,"10,000.00",SCOTTISH WILDLIFE TRUST.
Children and Young Peoples Services,Head of Childrens Social Care,Third Party Payments,440047,Other third party payments E440,04/11/2021,3931544-DH16,"42,780.00",CO & CARE LTD.
Children and Young Peoples Services,Head of Education and Skills,Third Party Payments,440999,Other third party payments E440,04/11/2021,3931548-CTA/060,"2,920.00",COMMUNICATORS TRAINING ASSOCIATES LTD.
Children and Young Peoples Services,Head of Childrens Social Care,Third Party Payments,440038,Other third party payments E440,04/11/2021,3931684-CAL012,"10,020.00",MOVING UP CARE LTD.
Children and Young Peoples Services,Head of Childrens Social Care,Third Party Payments,440038,Other third party payments E440,04/11/2021,3931684-JFH005,"5,075.00",MOVING UP CARE LTD.
Children and Young Peoples Services,Head of Childrens Social Care,Third Party Payments,440038,Other third party payments E440,04/11/2021,3931684-NH005,"13,460.00",MOVING UP CARE LTD.
Children and Young Peoples Services,Head of Childrens Social Care,Third Party Payments,440038,Other third party payments E440,04/11/2021,3931684-RLB012,"11,115.00",MOVING UP CARE LTD.
Children and Young Peoples Services,Head of Childrens Social Care,Third Party Payments,440038,Other third party payments E440,04/11/2021,3931684-WCR012,"11,500.00",MOVING UP CARE LTD.
Children and Young Peoples Services,Head of Childrens Social Care,Third Party Payments,440039,Other third party payments E440,04/11/2021,3931684-GB005,"12,200.00",MOVING UP CARE LTD.
Children and Young Peoples Services,Head of Childrens Social Care,Third Party Payments,440039,Other third party payments E440,04/11/2021,3931684-KST003,"12,200.00",MOVING UP CARE LTD.
Children and Young Peoples Services,Head of Childrens Social Care,Third Party Payments,440046,Other third party payments E440,04/11/2021,3931806-INV-2168,"6,871.04",WE CARE RECRUITMENT SOLUTIONS LTD.
Children and Young Peoples Services,Head of Childrens Social Care,Third Party Payments,440046,Other third party payments E440,04/11/2021,3931806-INV-2267,"6,558.72",WE CARE RECRUITMENT SOLUTIONS LTD.
Children and Young Peoples Services,Head of Childrens Social Care,Third Party Payments,440046,Other third party payments E440,04/11/2021,3931806-INV-2272,"2,440.00",WE CARE RECRUITMENT SOLUTIONS LTD.
Resources BK0010,Legal & Democratic Services,Supplies and Services,340001,Postages E340,04/11/2021,3931749-9063805894,668.36,ROYAL MAIL GROUP PLC.
Adult and Health Services,Public Health CC0450,Supplies and Services,332047,Printing Stationery and Gen Off Exps,04/11/2021,3931496-172746,899.00,ALBANY OFFICE EQUIPMENT (WHOLESALE) LTD.
Adult and Health Services,Commissioning inc Supporting People,Third Party Payments,479111,Purchase of Care,04/11/2021,3931671-5139,"11,757.00",MAIN - TAKING AUTISM PERSONALLY.
Dedicated Schools Grant BG0015,DSG High Needs Block,Third Party Payments,410037,Rendered by Other Local Authorities,04/11/2021,3931547-2021243,"2,300.00",COMMON THREAD LTD.
Dedicated Schools Grant BG0015,DSG High Needs Block,Third Party Payments,410037,Rendered by Other Local Authorities,04/11/2021,3931547-2021246,"2,185.00",COMMON THREAD LTD.
Dedicated Schools Grant BG0015,DSG High Needs Block,Third Party Payments,410037,Rendered by Other Local Authorities,04/11/2021,3931547-2021368,"2,300.00",COMMON THREAD LTD.
Dedicated Schools Grant BG0015,DSG High Needs Block,Third Party Payments,410037,Rendered by Other Local Authorities,04/11/2021,3931547-2021370,"2,300.00",COMMON THREAD LTD.
Dedicated Schools Grant BG0015,DSG High Needs Block,Third Party Payments,410037,Rendered by Other Local Authorities,04/11/2021,3931547-2021447,"2,300.00",COMMON THREAD LTD.
"Regeneration, Economy and Growth",Culture Sport and Tourism,Third Party Payments,430100,Rendered by Private Contractors,04/11/2021,3931549-PSINV05122,"3,860.51",COMPETITION LINE UK LTD T/A LIFESTYLE FITNESS.
"Regeneration, Economy and Growth",Culture Sport and Tourism,Third Party Payments,430100,Rendered by Private Contractors,04/11/2021,3931549-PSINV05121,"25,349.00",COMPETITION LINE UK LTD T/A LIFESTYLE FITNESS.
"Regeneration, Economy and Growth",Culture Sport and Tourism,Third Party Payments,430100,Rendered by Private Contractors,04/11/2021,3931549-PSINV05123,"19,615.33",COMPETITION LINE UK LTD T/A LIFESTYLE FITNESS.
"Regeneration, Economy and Growth",Culture Sport and Tourism,Third Party Payments,430100,Rendered by Private Contractors,04/11/2021,3931549-PSINV05120,"7,595.36",COMPETITION LINE UK LTD T/A LIFESTYLE FITNESS.
"Regeneration, Economy and Growth",Culture Sport and Tourism,Third Party Payments,430100,Rendered by Private Contractors,04/11/2021,3931549-PSINV05119,"20,405.04",COMPETITION LINE UK LTD T/A LIFESTYLE FITNESS.
"Regeneration, Economy and Growth",Culture Sport and Tourism,Third Party Payments,430100,Rendered by Private Contractors,04/11/2021,3931549-PSINV05124,"24,440.29",COMPETITION LINE UK LTD T/A LIFESTYLE FITNESS.
"Regeneration, Economy and Growth",Culture Sport and Tourism,Third Party Payments,430100,Rendered by Private Contractors,04/11/2021,3931549-PSINV05125,"3,330.99",COMPETITION LINE UK LTD T/A LIFESTYLE FITNESS.
"Regeneration, Economy and Growth",Corporate Property and Land,Third Party Payments,430100,Rendered by Private Contractors,04/11/2021,3931604-INV-0775,"3,191.45",GLENFIELD ENERGY SOLUTIONS LTD.
Neighbourhoods and Climate Change,Technical Services CM0300,Third Party Payments,430100,Rendered by Private Contractors,04/11/2021,3931652-211364,"145,997.90",KIELY BROS LTD.
"Regeneration, Economy and Growth",Corporate Property and Land,Third Party Payments,430100,Rendered by Private Contractors,04/11/2021,3931695-DCC205,"1,440.00",MR WILLIAM MAGUIRE T/A VALLUM LIFTS LTD.
"Regeneration, Economy and Growth",Corporate Property and Land,Third Party Payments,430100,Rendered by Private Contractors,04/11/2021,3931695-DCC207,"1,500.00",MR WILLIAM MAGUIRE T/A VALLUM LIFTS LTD.
"Regeneration, Economy and Growth",Corporate Property and Land,Third Party Payments,430100,Rendered by Private Contractors,04/11/2021,3931719-10979-31,942.24,OPUS BUILDING SERVICES LTD.
"Regeneration, Economy and Growth",Corporate Property and Land,Third Party Payments,430100,Rendered by Private Contractors,04/11/2021,3931719-10979-32,789.08,OPUS BUILDING SERVICES LTD.
"Regeneration, Economy and Growth",Corporate Property and Land,Third Party Payments,430100,Rendered by Private Contractors,04/11/2021,3931719-11089-48,"1,128.38",OPUS BUILDING SERVICES LTD.
"Regeneration, Economy and Growth",Corporate Property and Land,Third Party Payments,430100,Rendered by Private Contractors,04/11/2021,3931719-11089-55,"1,128.38",OPUS BUILDING SERVICES LTD.
"Regeneration, Economy and Growth",Corporate Property and Land,Third Party Payments,430100,Rendered by Private Contractors,04/11/2021,3931719-11089-57,"1,164.67",OPUS BUILDING SERVICES LTD.
Neighbourhoods and Climate Change,Technical Services CM0300,Third Party Payments,430100,Rendered by Private Contractors,04/11/2021,3931738-13682,"1,948.80",QUANTUM POWER CONNECTIONS LTD.
"Regeneration, Economy and Growth",Culture Sport and Tourism,Third Party Payments,430131,Rendered by Private Contractors,04/11/2021,3931785-TT/2021104,540.00,TERESA DONNELLAN T/A T TRAINING.
"Regeneration, Economy and Growth",Corporate Property and Land,Third Party Payments,430100,Rendered by Private Contractors,04/11/2021,3931804-2647312,"5,249.25",VIEW LOGISTICS LTD T/A GASKELL MACKAY CARPETS.
"Regeneration, Economy and Growth",Corporate Property and Land,Third Party Payments,430100,Rendered by Private Contractors,04/11/2021,3931804-2648939,"1,500.00",VIEW LOGISTICS LTD T/A GASKELL MACKAY CARPETS.
Children and Young Peoples Services,Head of Childrens Social Care,Third Party Payments,425023,Rendered by Voluntary Organisations,04/11/2021,3931701-LIMECOTTAGE,"2,387.00",MULLEN PROPERTIES.
Children and Young Peoples Services,Head of Early Help Inclusion & Vulnerable Children.,Third Party Payments,486029,Service level agreements E486,04/11/2021,3931586-NOV21-0019,"19,042.50",FAMILY ACTION T/A PAC-UK LTD.
Resources BK0010,Legal & Democratic Services,Supplies and Services,338102,Services,04/11/2021,3931499-0010005,"10,140.00",ANALYTICAL SERVICES INTERNATIONAL LTD.
Resources BK0010,Legal & Democratic Services,Supplies and Services,338102,Services,04/11/2021,3931499-009991,"10,140.00",ANALYTICAL SERVICES INTERNATIONAL LTD.
Resources BK0010,Procurement Sales & Business Services,Supplies and Services,338066,Services,04/11/2021,3931518-10151235,"2,359.00",BEVAN BRITTAN LLP.
Children and Young Peoples Services,Childrens Services Operational Support,Supplies and Services,338026,Services,04/11/2021,3931538-BT134,798.75,CHOICES & VOICES CARE LTD.
Resources BK0010,Legal & Democratic Services,Supplies and Services,338101,Services,04/11/2021,3931565-10/2021,"2,400.00",REDACTED - PAYMENT TO INDIVIDUAL
Resources BK0010,Legal & Democratic Services,Supplies and Services,338101,Services,04/11/2021,3931567-PB182,"1,611.60",REDACTED - PAYMENT TO INDIVIDUAL
Neighbourhoods and Climate Change,Environmental Services,Supplies and Services,338066,Services,04/11/2021,3931635-BURSARY2OCT21,818.08,JAMES DILL-RUSSELL (GEOLOGIST).
Children and Young Peoples Services,Head of Education and Skills,Supplies and Services,338099,Services,04/11/2021,3931658-1755,750.00,KYM SCOTT CONSULTANCY LTD.
Neighbourhoods and Climate Change,Technical Services CM0300,Supplies and Services,338066,Services,04/11/2021,3931711-NPSL1459,"51,439.50",NORDIC PRODUCTS & SERVICES LTD.
Adult and Health Services,Adults Excluded,Supplies and Services,338027,Services,04/11/2021,3931739-NE21/01,"1,600.00",RACHEL DICKINSON LTD.
"Regeneration, Economy and Growth",Culture Sport and Tourism,Supplies and Services,338047,Services,04/11/2021,3931500-066AS,"1,800.00",REDACTED - PAYMENT TO INDIVIDUAL
"Regeneration, Economy and Growth",Culture Sport and Tourism,Supplies and Services,338047,Services,04/11/2021,3931728-1,"1,620.00",REDACTED - PAYMENT TO INDIVIDUAL
"Regeneration, Economy and Growth",Culture Sport and Tourism,Supplies and Services,338047,Services,04/11/2021,3931752-DG106,"1,620.00",REDACTED - PAYMENT TO INDIVIDUAL
"Regeneration, Economy and Growth",Culture Sport and Tourism,Supplies and Services,338047,Services,04/11/2021,3931790-GALA08112021,"2,673.00",REDACTED - PAYMENT TO INDIVIDUAL
"Regeneration, Economy and Growth",Culture Sport and Tourism,Supplies and Services,338047,Services,04/11/2021,3931757-SFTWED498,"2,182.18",SFTW (EDINBURGH) LTD.
Neighbourhoods and Climate Change,Environmental Services,Supplies and Services,338066,Services,04/11/2021,3931759-25090,"2,440.00",SHELLEY SIGNS LTD.
Neighbourhoods and Climate Change,Environmental Services,Supplies and Services,338066,Services,04/11/2021,3931761-1061,"3,075.00",SIMON LEES T/A COUNTRYSIDE TRAINING PARTNERSHIP.
"Regeneration, Economy and Growth",Culture Sport and Tourism,Supplies and Services,338047,Services,04/11/2021,3931775-04250,"2,521.33",SWEENEY ENTERTAINMENTS.
"Regeneration, Economy and Growth",Culture Sport and Tourism,Supplies and Services,338047,Services,04/11/2021,3931775-04251,"2,784.44",SWEENEY ENTERTAINMENTS.
"Regeneration, Economy and Growth",Development and Housing,Supplies and Services,338045,Services,04/11/2021,3931812-3562413,"4,144.40",WOMBLE BOND DICKINSON (UK) LLP.
"Regeneration, Economy and Growth",Development and Housing,Supplies and Services,338045,Services,04/11/2021,3931812-3569615,"3,997.50",WOMBLE BOND DICKINSON (UK) LLP.
Neighbourhoods and Climate Change,Technical Services CM0300,Stock A926,926900,Stock in hand-Inventory system,04/11/2021,3931611-06/139244,"3,375.00",GREENHAM TRADING LTD.
Neighbourhoods and Climate Change,Technical Services CM0300,Stock A926,926900,Stock in hand-Inventory system,04/11/2021,3931611-06/145815,540.40,GREENHAM TRADING LTD.
Neighbourhoods and Climate Change,Technical Services CM0300,Stock A926,926900,Stock in hand-Inventory system,04/11/2021,3931628-155148,"4,258.00",HYDRAM ENGINEERING LTD.
Neighbourhoods and Climate Change,Technical Services CM0300,Stock A926,926900,Stock in hand-Inventory system,04/11/2021,3931667-6901541681,790.50,LYRECO UK LTD.
Resources BK0010,Legal & Democratic Services,Supplies and Services,372009,Subscriptions E372,04/11/2021,3931787-29670,522.50,THE ASSOCIATION OF ELECTORAL ADMINISTRATORS.
Dedicated Schools Grant BG0015,DSG High Needs Block,Central Support and Other Recharges,689996,Unclassified E690,04/11/2021,3931624-CAS-11-2021-008,"117,942.00",HOPE WOOD ACADEMY.
"Regeneration, Economy and Growth",Development and Housing,Supplies and Services,336005,Advertising E336,05/11/2021,3932088-NEW14952,614.00,SANDERSON WEATHERALL LLP.
Neighbourhoods and Climate Change,Environmental Services,Premises,106083,Centrally Controlled Rep and Maint,05/11/2021,3931975-10045639,"5,154.00",INTEGRATED UTILITY SERVICES LTD.*
"Regeneration, Economy and Growth",Corporate Property and Land,Premises,106082,Centrally Controlled Rep and Maint,05/11/2021,3931980-25071,"2,461.36",JC MAINTENANCE SERVICES LTD.
